{"text_format":"1","workbook":"xlsx","n_sheets":4,"sheets":["Databáze","Seznam vypůjček","žánry","Kontingenční Tab"],"not_rendered":{"charts":0,"images":0,"macros":1,"external_links":0,"defined_names":5,"comments":0,"pivot_tables":1},"unopened":[],"bounds":{"document_bytes":16777216,"sheet_cells":100000,"rows_first":2000,"rows_last":500,"rows_between":2000,"halvings":0,"cell_chars":16384,"cell_head_chars":4096},"cells_cut":0,"cells_raw":0,"read":"whole","date_system":"1900"}

{"sheet":"Databáze","index":0,"n_rows":1292,"n_cols":11,"rows_kept":1292,"cut":false,"hidden":false,"merged":[]}
[null,"Databáze knih školní knihovny",null,null,null,null,null,true]
[null,"Přírust-\nkové č.","Dostup-\nnost","NÁZEV KNIHY","AUTOR","ŽÁNR","Doporučený věk","Umístění","Cena\n[Kč]","Poznámka","Rok vložení"]
[null,1,{"$f":"IFERROR(MATCH(B3,vypujcene,0),0)","v":0},"Pátračka Gilda","Allisonová Jennifer","Detektivka",null,"1. stupeň",159,"šablony I",2015]
[null,2,{"$f":"IFERROR(MATCH(B4,vypujcene,0),0)","v":0},"Záplaťák v pavoučí síti","Bass Guy","Horor pro děti",null,"1. stupeň",159,"šablony I",2015]
[null,3,{"$f":"IFERROR(MATCH(B5,vypujcene,0),0)","v":0},"O třech písmenkách","Jef a Besi","Pohádky",null,"1. stupeň",143,"šablony I",2015]
[null,4,{"$f":"IFERROR(MATCH(B6,vypujcene,0),0)","v":0},"Můj anděl se umí prát","Brat Roman","Příběh ze života",null,"1. stupeň",159,"šablony I",2015]
[null,5,{"$f":"IFERROR(MATCH(B7,vypujcene,0),0)","v":0},"Kuba nechce číst","Braunová Petra","Příběh ze života","od 6 let","1. stupeň",127,"šablony I",2015]
[null,6,{"$f":"IFERROR(MATCH(B8,vypujcene,0),0)","v":0},"Kuba nechce prohrávat","Braunová Petra","Příběh ze života",null,"1. stupeň",151,"šablony I",2015]
[null,7,{"$f":"IFERROR(MATCH(B9,vypujcene,0),0)","v":0},"Jak se Vojta ztratil","Braunová Petra","Příběh ze života","od 6 let","1. stupeň",135,"šablony I",2015]
[null,8,{"$f":"IFERROR(MATCH(B10,vypujcene,0),0)","v":0},"Klub čarodějek - Trable s koštětem","Brezina Thomas","Fantasy",null,"1. stupeň",103,"šablony I",2015]
[null,9,{"$f":"IFERROR(MATCH(B11,vypujcene,0),0)","v":0},"Útěk Kryšpína N.","Březinová Ivona","Pro dospívající",null,"1. stupeň",159,"šablony I",2015]
[null,10,{"$f":"IFERROR(MATCH(B12,vypujcene,0),0)","v":0},"Ekzoti","Buckley Michael","Dobrodružné",null,"1. stupeň",231,"šablony I",2015]
[null,11,{"$f":"IFERROR(MATCH(B13,vypujcene,0),0)","v":0},"Příhody Maxipsa Fíka","Čechura Rudolf","Pohádky",null,"1. stupeň",160,"šablony I",2015]
[null,12,{"$f":"IFERROR(MATCH(B14,vypujcene,0),0)","v":0},"Říkání o víle Amálce","Čtvrtek Václav","Pohádky",null,"1. stupeň",175,"šablony I",2015]
[null,13,{"$f":"IFERROR(MATCH(B15,vypujcene,0),0)","v":0},"Zlobilky","Drijverová Martina","Pohádky",null,"1. stupeň",135,"šablony I",2015]
[null,14,{"$f":"IFERROR(MATCH(B16,vypujcene,0),0)","v":0},"Zlobilky","Drijverová Martina","Pohádky",null,"1. stupeň",135,"šablony I",2015]
[null,15,{"$f":"IFERROR(MATCH(B17,vypujcene,0),0)","v":0},"Zlobilky","Drijverová Martina","Pohádky",null,"1. stupeň",135,"šablony I",2015]
[null,16,{"$f":"IFERROR(MATCH(B18,vypujcene,0),0)","v":0},"Příšerné zlobilky","Drijverová Martina","Pohádky",null,"1. stupeň",151,"šablony I",2015]
[null,17,{"$f":"IFERROR(MATCH(B19,vypujcene,0),0)","v":0},"Příšerné zlobilky","Drijverová Martina","Pohádky",null,"1. stupeň",151,"šablony I",2015]
[null,18,{"$f":"IFERROR(MATCH(B20,vypujcene,0),0)","v":0},"Příšerné zlobilky","Drijverová Martina","Pohádky",null,"1. stupeň",151,"šablony I",2015]
[null,19,{"$f":"IFERROR(MATCH(B21,vypujcene,0),0)","v":0},"Domov pro Marťany","Drijverová Martina","Příběh ze života",null,"1. stupeň",151,"šablony I",2015]
[null,20,{"$f":"IFERROR(MATCH(B22,vypujcene,0),0)","v":0},"Nezbedníci","Drijverová Martina","Pohádky",null,"1. stupeň",143,"šablony I",2015]
[null,21,{"$f":"IFERROR(MATCH(B23,vypujcene,0),0)","v":0},"Nezbedníci","Drijverová Martina","Pohádky",null,"1. stupeň",143,"šablony I",2015]
[null,22,{"$f":"IFERROR(MATCH(B24,vypujcene,0),0)","v":0},"Nezbedníci","Drijverová Martina","Pohádky",null,"1. stupeň",143,"šablony I",2015]
[null,23,{"$f":"IFERROR(MATCH(B25,vypujcene,0),0)","v":0},"Kouzelný meč Abaddon","Dvořák Otomar","Fantasy",null,"1. stupeň",99,"šablony I",2015]
[null,24,{"$f":"IFERROR(MATCH(B26,vypujcene,0),0)","v":0},"Kouzelný meč Abaddon","Dvořák Otomar","Fantasy",null,"1. stupeň",99,"šablony I",2015]
[null,25,{"$f":"IFERROR(MATCH(B27,vypujcene,0),0)","v":0},"Hraničářův učeň 1","Flanagan John","Fantasy",null,"1. stupeň",130,"šablony I",2015]
[null,26,{"$f":"IFERROR(MATCH(B28,vypujcene,0),0)","v":0},"Hraničářův učeň 2","Flanagan John","Fantasy",null,"1. stupeň",130,"šablony I",2015]
[null,27,{"$f":"IFERROR(MATCH(B29,vypujcene,0),0)","v":0},"Hraničářův učeň 3","Flanagan John","Fantasy",null,"1. stupeň",130,"šablony I",2015]
[null,28,{"$f":"IFERROR(MATCH(B30,vypujcene,0),0)","v":0},"Hraničářův učeň 4","Flanagan John","Fantasy",null,"1. stupeň",130,"šablony I",2015]
[null,29,{"$f":"IFERROR(MATCH(B31,vypujcene,0),0)","v":0},"Hraničářův učeň 5","Flanagan John","Fantasy",null,"1. stupeň",130,"šablony I",2015]
[null,30,{"$f":"IFERROR(MATCH(B32,vypujcene,0),0)","v":0},"Hraničářův učeň 6","Flanagan John","Fantasy",null,"1. stupeň",130,"šablony I",2015]
[null,31,{"$f":"IFERROR(MATCH(B33,vypujcene,0),0)","v":0},"Hraničářův učeň 7","Flanagan John","Fantasy",null,"1. stupeň",130,"šablony I",2015]
[null,32,{"$f":"IFERROR(MATCH(B34,vypujcene,0),0)","v":0},"Hraničářův učeň 8","Flanagan John","Fantasy",null,"1. stupeň",130,"šablony I",2015]
[null,33,{"$f":"IFERROR(MATCH(B35,vypujcene,0),0)","v":0},"Hraničářův učeň 9","Flanagan John","Fantasy",null,"1. stupeň",130,"šablony I",2015]
[null,34,{"$f":"IFERROR(MATCH(B36,vypujcene,0),0)","v":0},"Hraničářův učeň 10","Flanagan John","Fantasy",null,"1. stupeň",130,"šablony I",2015]
[null,35,{"$f":"IFERROR(MATCH(B37,vypujcene,0),0)","v":0},"Hraničářův učeň 11","Flanagan John","Fantasy",null,"1. stupeň",130,"šablony I",2015]
[null,36,{"$f":"IFERROR(MATCH(B38,vypujcene,0),0)","v":0},"Hraničářův učeň 12","Flanagan John","Fantasy",null,"1. stupeň",130,"šablony I",2015]
[null,37,{"$f":"IFERROR(MATCH(B39,vypujcene,0),0)","v":0},"Bílá paní na hlídání","Friedl Petr","Humor",null,"1. stupeň",239,"šablony I",2015]
[null,38,{"$f":"IFERROR(MATCH(B40,vypujcene,0),0)","v":0},"Dračí srdce - Tajemství mluvících stromů","Galánová Ana","Fantasy",null,"1. stupeň",159,"šablony I",2015]
[null,39,{"$f":"IFERROR(MATCH(B41,vypujcene,0),0)","v":0},"Divoška Lilly - Trable s blondýnkou","Gehm Franziska","Příběh ze života",null,"1. stupeň",103,"šablony I",2015]
[null,40,{"$f":"IFERROR(MATCH(B42,vypujcene,0),0)","v":0},"Divoška Lilly - Trable s blondýnkou","Gehm Franziska","Příběh ze života",null,"1. stupeň",103,"šablony I",2015]
[null,41,{"$f":"IFERROR(MATCH(B43,vypujcene,0),0)","v":0},"Příběhy malé elfky","Gehm Franziska","Pohádky","od 5 let","1. stupeň",127,"šablony I",2015]
[null,42,{"$f":"IFERROR(MATCH(B44,vypujcene,0),0)","v":0},"Nové Mikulášovy patálie - Sváteční oběd","Goscinny René","Příběh ze života",null,"1. stupeň",151,"šablony I",2015]
[null,43,{"$f":"IFERROR(MATCH(B45,vypujcene,0),0)","v":0},"Nové Mikulášovy patálie - Bezvadný vtip","Goscinny René","Příběh ze života",null,"1. stupeň",160,"šablony I",2015]
[null,44,{"$f":"IFERROR(MATCH(B46,vypujcene,0),0)","v":0},"Nové Mikulášovy patálie - Návrat z prázdnin","Goscinny René","Příběh ze života",null,"1. stupeň",151,"šablony I",2015]
[null,45,{"$f":"IFERROR(MATCH(B47,vypujcene,0),0)","v":0},"Mikuláš na prázdninách","Latourn - Burney","Příběh ze života",null,"1. stupeň",151,"šablony I",2015]
[null,47,{"$f":"IFERROR(MATCH(B48,vypujcene,0),0)","v":0},"Klářina dobrodružná výprava","Hagmarová Pia","Příběh ze života",null,"1. stupeň",152,"šablony I",2015]
[null,47,{"$f":"IFERROR(MATCH(B49,vypujcene,0),0)","v":0},"Klářina dobrodružná výprava","Hagmarová Pia","Příběh ze života",null,"1. stupeň",152,"šablony I",2015]
[null,48,{"$f":"IFERROR(MATCH(B50,vypujcene,0),0)","v":0},"Bláznivá teta a já","Heinlei Sylvia","Dobrodružné",null,"1. stupeň",160,"šablony I",2015]
[null,49,{"$f":"IFERROR(MATCH(B51,vypujcene,0),0)","v":0},"Tajemství 13. nástupiště","Ibbotsonová Eva","Dobrodružné",null,"1. stupeň",159,"šablony I",2015]
[null,50,{"$f":"IFERROR(MATCH(B52,vypujcene,0),0)","v":0},"Julinka a její zvířátka - Prázdninový zvěřinec","Johnson Rebecca","Příběh ze života",null,"1. stupeň",103,"šablony I",2015]
[null,51,{"$f":"IFERROR(MATCH(B53,vypujcene,0),0)","v":0},"Julinka a její zvířátka - Nezbedný poník","Johnson Rebecca","Příběh ze života",null,"1. stupeň",103,"šablony I",2015]
[null,52,{"$f":"IFERROR(MATCH(B54,vypujcene,0),0)","v":0},"Julinka a její zvířátka - Chůvy v akci","Johnson Rebecca","Příběh ze života",null,"1. stupeň",103,"šablony I",2015]
[null,53,{"$f":"IFERROR(MATCH(B55,vypujcene,0),0)","v":0},"Julinka a její zvířátka - Nemocnice pro mláďátka","Johnson Rebecca","Příběh ze života",null,"1. stupeň",104,"šablony I",2015]
[null,54,{"$f":"IFERROR(MATCH(B56,vypujcene,0),0)","v":0},"První kniha vikinga Vika","Jonsson Runer","Dobrodružné",null,"1. stupeň",184,"šablony I",2015]
[null,55,{"$f":"IFERROR(MATCH(B57,vypujcene,0),0)","v":0},"První kniha vikinga Vika","Jonsson Runer","Dobrodružné",null,"1. stupeň",183,"šablony I",2015]
[null,56,{"$f":"IFERROR(MATCH(B58,vypujcene,0),0)","v":0},"Broučci","Karafiát Jan","Pohádky",null,"1. stupeň",199,"šablony I",2015]
[null,57,{"$f":"IFERROR(MATCH(B59,vypujcene,0),0)","v":0},"Já a moje příšera","King-Smith Dick","Fantasy",null,"1. stupeň",143,"šablony I",2015]
[null,58,{"$f":"IFERROR(MATCH(B60,vypujcene,0),0)","v":0},"Já a moje příšera","King-Smith Dick","Fantasy",null,"1. stupeň",143,"šablony I",2015]
[null,59,{"$f":"IFERROR(MATCH(B61,vypujcene,0),0)","v":0},"Já a moje příšera","King-Smith Dick","Fantasy",null,"1. stupeň",143,"šablony I",2015]
[null,60,{"$f":"IFERROR(MATCH(B62,vypujcene,0),0)","v":0},"Deník malého poseroutky 1","Kinney Jeff","Humor",null,"1. stupeň",130,"šablony I",2015]
[null,61,{"$f":"IFERROR(MATCH(B63,vypujcene,0),0)","v":0},"Deník malého poseroutky 2","Kinney Jeff","Humor",null,"1. stupeň",130,"šablony I",2015]
[null,62,{"$f":"IFERROR(MATCH(B64,vypujcene,0),0)","v":0},"Deník malého poseroutky 3","Kinney Jeff","Humor",null,"1. stupeň",130,"šablony I",2015]
[null,63,{"$f":"IFERROR(MATCH(B65,vypujcene,0),0)","v":0},"Deník malého poseroutky 4","Kinney Jeff","Humor",null,"1. stupeň",130,"šablony I",2015]
[null,64,{"$f":"IFERROR(MATCH(B66,vypujcene,0),0)","v":0},"Deník malého poseroutky 5","Kinney Jeff","Humor",null,"1. stupeň",130,"šablony I",2015]
[null,65,{"$f":"IFERROR(MATCH(B67,vypujcene,0),0)","v":0},"Deník malého poseroutky 6","Kinney Jeff","Humor",null,"1. stupeň",130,"šablony I",2015]
[null,66,{"$f":"IFERROR(MATCH(B68,vypujcene,0),0)","v":0},"Deník malého poseroutky 7","Kinney Jeff","Humor",null,"1. stupeň",130,"šablony I",2015]
[null,67,{"$f":"IFERROR(MATCH(B69,vypujcene,0),0)","v":0},"Deník malého poseroutky 8","Kinney Jeff","Humor",null,"1. stupeň",130,"šablony I",2015]
[null,68,{"$f":"IFERROR(MATCH(B70,vypujcene,0),0)","v":0},"Deník malého poseroutky 1","Kinney Jeff","Humor",null,"1. stupeň",130,"šablony I",2015]
[null,69,{"$f":"IFERROR(MATCH(B71,vypujcene,0),0)","v":0},"Deník malého poseroutky 2","Kinney Jeff","Humor",null,"1. stupeň",130,"šablony I",2015]
[null,70,{"$f":"IFERROR(MATCH(B72,vypujcene,0),0)","v":0},"Deník malého poseroutky 3","Kinney Jeff","Humor",null,"1. stupeň",130,"šablony I",2015]
[null,71,{"$f":"IFERROR(MATCH(B73,vypujcene,0),0)","v":0},"Deník malého poseroutky 4","Kinney Jeff","Humor",null,"1. stupeň",130,"šablony I",2015]
[null,72,{"$f":"IFERROR(MATCH(B74,vypujcene,0),0)","v":0},"Deník malého poseroutky 5","Kinney Jeff","Humor",null,"1. stupeň",130,"šablony I",2015]
[null,73,{"$f":"IFERROR(MATCH(B75,vypujcene,0),0)","v":0},"Deník malého poseroutky 6","Kinney Jeff","Humor",null,"1. stupeň",130,"šablony I",2015]
[null,74,{"$f":"IFERROR(MATCH(B76,vypujcene,0),0)","v":0},"Deník malého poseroutky 7","Kinney Jeff","Humor",null,"1. stupeň",130,"šablony I",2015]
[null,75,{"$f":"IFERROR(MATCH(B77,vypujcene,0),0)","v":0},"Deník malého poseroutky 8","Kinney Jeff","Humor",null,"1. stupeň",130,"šablony I",2015]
[null,76,{"$f":"IFERROR(MATCH(B78,vypujcene,0),0)","v":0},"Deník m. poseroutky - Výlet za všechny peníze","Kinney Jeff","Humor",null,"1. stupeň",195,"šablony I",2015]
[null,77,{"$f":"IFERROR(MATCH(B79,vypujcene,0),0)","v":0},"Deník m. poseroutky - Výlet za všechny peníze","Kinney Jeff","Humor",null,"1. stupeň",195,"šablony I",2015]
[null,78,{"$f":"IFERROR(MATCH(B80,vypujcene,0),0)","v":0},"Kazičasové","Tylerová Val","Fantasy",null,"1. stupeň",239,"šablony I",2015]
[null,79,{"$f":"IFERROR(MATCH(B81,vypujcene,0),0)","v":0},"Sedmilhář Josífek","Krolupperová Daniela","Příběh ze života",null,"1. stupeň",136,"šablony I",2015]
[null,80,{"$f":"IFERROR(MATCH(B82,vypujcene,0),0)","v":0},"Josífkův pekelný týden","Krolupperová Daniela","Příběh ze života",null,"1. stupeň",143,"šablony I",2015]
[null,81,{"$f":"IFERROR(MATCH(B83,vypujcene,0),0)","v":0},"Josífkův pekelný týden","Krolupperová Daniela","Příběh ze života",null,"1. stupeň",144,"šablony I",2015]
[null,82,{"$f":"IFERROR(MATCH(B84,vypujcene,0),0)","v":0},"Josífkův pekelný týden","Krolupperová Daniela","Příběh ze života",null,"1. stupeň",143,"šablony I",2015]
[null,83,{"$f":"IFERROR(MATCH(B85,vypujcene,0),0)","v":0},"Pohádky skřítka Medovníčka","Lebeda Jan","Pohádky",null,"1. stupeň",199,"šablony I",2015]
[null,84,{"$f":"IFERROR(MATCH(B86,vypujcene,0),0)","v":0},"Emilovy skopičiny","Lindgrenová Astrid","Příběh ze života",null,"1. stupeň",151,"šablony I",2015]
[null,85,{"$f":"IFERROR(MATCH(B87,vypujcene,0),0)","v":0},"Lotta z Rošťácké uličky","Lindgrenová Astrid","Příběh ze života","od 6 let","1. stupeň",199,"šablony I",2015]
[null,86,{"$f":"IFERROR(MATCH(B88,vypujcene,0),0)","v":0},"Paní Láryfáry","MacDonaldová Betty","Humor",null,"1. stupeň",239,"šablony I",2015]
[null,87,{"$f":"IFERROR(MATCH(B89,vypujcene,0),0)","v":0},"Paní Láryfáry","MacDonaldová Betty","Humor",null,"1. stupeň",239,"šablony I",2015]
[null,88,{"$f":"IFERROR(MATCH(B90,vypujcene,0),0)","v":0},"Žofka ředitelkou ZOO","Macourek Miloš","Pohádky",null,"1. stupeň",183,"šablony I",2015]
[null,89,{"$f":"IFERROR(MATCH(B91,vypujcene,0),0)","v":0},"Půjčovna babiček","Marjanska-Czernik Maria","Příběh ze života",null,"1. stupeň",143,"šablony I",2015]
[null,90,{"$f":"IFERROR(MATCH(B92,vypujcene,0),0)","v":0},"Moje ségra je upír","Mercer Sienna","Fantasy",null,"1. stupeň",151,"šablony I",2015]
[null,91,{"$f":"IFERROR(MATCH(B93,vypujcene,0),0)","v":0},"Doktor Proktor a vana času","Nesbo Jo","Humor","od 9 let","1. stupeň",278,"šablony I",2015]
[null,92,{"$f":"IFERROR(MATCH(B94,vypujcene,0),0)","v":0},"Doktor Proktor a vana času","Nesbo Jo","Humor","od 9 let","1. stupeň",278,"šablony I",2015]
[null,93,{"$f":"IFERROR(MATCH(B95,vypujcene,0),0)","v":0},"Doktor Proktor a konec světa","Nesbo Jo","Humor","od 9 let","1. stupeň",278,"šablony I",2015]
[null,94,{"$f":"IFERROR(MATCH(B96,vypujcene,0),0)","v":0},"Doktor Proktor a konec světa","Nesbo Jo","Humor","od 9 let","1. stupeň",278,"šablony I",2015]
[null,95,{"$f":"IFERROR(MATCH(B97,vypujcene,0),0)","v":0},"Doktor Proktor a velká loupež zlata","Nesbo Jo","Humor","od 9 let","1. stupeň",238,"šablony I",2015]
[null,96,{"$f":"IFERROR(MATCH(B98,vypujcene,0),0)","v":0},"Doktor Proktor a velká loupež zlata","Nesbo Jo","Humor","od 9 let","1. stupeň",238,"šablony I",2015]
[null,97,{"$f":"IFERROR(MATCH(B99,vypujcene,0),0)","v":0},"Dobrodružství mezi piráty","Osborne Mary Pope","Dobrodružné",null,"1. stupeň",119,"šablony I",2015]
[null,98,{"$f":"IFERROR(MATCH(B100,vypujcene,0),0)","v":0},"Dobrodružství v době ledové","Osborne Mary Pope","Dobrodružné",null,"1. stupeň",120,"šablony I",2015]
[null,99,{"$f":"IFERROR(MATCH(B101,vypujcene,0),0)","v":0},"Dobrodružství na Měsíci","Osborne Mary Pope","Dobrodružné",null,"1. stupeň",119,"šablony I",2015]
[null,100,{"$f":"IFERROR(MATCH(B102,vypujcene,0),0)","v":0},"Kouzelná aktovka","Krolupperová Daniela","Pohádky",null,"1. stupeň",143,"šablony I",2015]
[null,101,{"$f":"IFERROR(MATCH(B103,vypujcene,0),0)","v":0},"Lovci pokladů","Patterson James","Dobrodružné",null,"1. stupeň",231,"šablony I",2015]
[null,102,{"$f":"IFERROR(MATCH(B104,vypujcene,0),0)","v":0},"Anička a její kamarádky","Peroutková Ivana","Příběh ze života",null,"1. stupeň",151,"šablony I",2015]
[null,103,{"$f":"IFERROR(MATCH(B105,vypujcene,0),0)","v":0},"Anička ve městě","Peroutková Ivana","Příběh ze života",null,"1. stupeň",151,"šablony I",2015]
[null,104,{"$f":"IFERROR(MATCH(B106,vypujcene,0),0)","v":0},"Anička u moře","Peroutková Ivana","Příběh ze života",null,"1. stupeň",151,"šablony I",2015]
[null,105,{"$f":"IFERROR(MATCH(B107,vypujcene,0),0)","v":0},"Anička a Velikonoce","Peroutková Ivana","Příběh ze života",null,"1. stupeň",152,"šablony I",2015]
[null,106,{"$f":"IFERROR(MATCH(B108,vypujcene,0),0)","v":0},"Anička a cirkus","Peroutková Ivana","Příběh ze života",null,"1. stupeň",151,"šablony I",2015]
[null,107,{"$f":"IFERROR(MATCH(B109,vypujcene,0),0)","v":0},"Anička v Austrálii","Peroutková Ivana","Příběh ze života",null,"1. stupeň",151,"šablony I",2015]
[null,108,{"$f":"IFERROR(MATCH(B110,vypujcene,0),0)","v":0},"Strašidelné prázdniny","Peroutková Ivana","Dobrodružné",null,"1. stupeň",199,"šablony I",2015]
[null,109,{"$f":"IFERROR(MATCH(B111,vypujcene,0),0)","v":0},"Školní strašidlo","Pospíšilová Zuzana","Pohádky",null,"1. stupeň",149,"šablony I",2015]
[null,110,{"$f":"IFERROR(MATCH(B112,vypujcene,0),0)","v":0},"Pohádky z parkoviště","Pospíšilová Zuzana","Pohádky",null,"1. stupeň",204,"šablony I",2015]
[null,111,{"$f":"IFERROR(MATCH(B113,vypujcene,0),0)","v":0},"Středa nám chutná","Procházková Iva","Příběh ze života",null,"1. stupeň",151,"šablony I",2015]
[null,112,{"$f":"IFERROR(MATCH(B114,vypujcene,0),0)","v":0},"Potrhlá dobrodružství - Zajatci parukových ostrovů","Reeve Philip","Dobrodružné",null,"1. stupeň",160,"šablony I",2015]
[null,113,{"$f":"IFERROR(MATCH(B115,vypujcene,0),0)","v":0},"Potrhlá dobrodružství - Zajatci parukových ostrovů","Reeve Philip","Dobrodružné",null,"1. stupeň",159,"šablony I",2015]
[null,114,{"$f":"IFERROR(MATCH(B116,vypujcene,0),0)","v":0},"Potrhlá dobrodružství - Dortouni útočí","Reeve Philip","Dobrodružné",null,"1. stupeň",183,"šablony I",2015]
[null,115,{"$f":"IFERROR(MATCH(B117,vypujcene,0),0)","v":0},"Potrhlá dobrodružství - Dortouni útočí","Reeve Philip","Dobrodružné",null,"1. stupeň",183,"šablony I",2015]
[null,116,{"$f":"IFERROR(MATCH(B118,vypujcene,0),0)","v":0},"Klára, zloděj bonbónů a já","Reiderová Katja","Detektivka",null,"1. stupeň",135,"šablony I",2015]
[null,117,{"$f":"IFERROR(MATCH(B119,vypujcene,0),0)","v":0},"Bohové Olympu - Proroctví","Riordan R.","Fantasy","od 13","1. stupeň",319,"šablony I",2015]
[null,118,{"$f":"IFERROR(MATCH(B120,vypujcene,0),0)","v":0},"Bohové Olympu - Znamení Athény","Riordan R.","Fantasy",null,"2. stupeň",319,"šablony I",2015]
[null,119,{"$f":"IFERROR(MATCH(B121,vypujcene,0),0)","v":0},"Bohové Olympu - Krev polobohů","Riordan R.","Fantasy","od 13","1. stupeň",319,"šablony I",2015]
[null,120,{"$f":"IFERROR(MATCH(B122,vypujcene,0),0)","v":0},"Bohové Olympu - Hádův chrám","Riordan R.","Fantasy","od 13","1. stupeň",319,"šablony I",2015]
[null,121,{"$f":"IFERROR(MATCH(B123,vypujcene,0),0)","v":0},"Bohové Olympu - Proroctví","Riordan R.","Fantasy","od 13","1. stupeň",320,"šablony I",2015]
[null,122,{"$f":"IFERROR(MATCH(B124,vypujcene,0),0)","v":0},"Bohové Olympu - Znamení Athény","Riordan R.","Fantasy","od 13","1. stupeň",319,"šablony I",2015]
[null,123,{"$f":"IFERROR(MATCH(B125,vypujcene,0),0)","v":0},"Bohové Olympu - Krev polobohů","Riordan R.","Fantasy","od 13","1. stupeň",319,"šablony I",2015]
[null,124,{"$f":"IFERROR(MATCH(B126,vypujcene,0),0)","v":0},"Bohové Olympu - Hádův chrám","Riordan R.","Fantasy","od 13","1. stupeň",319,"šablony I",2015]
[null,125,{"$f":"IFERROR(MATCH(B127,vypujcene,0),0)","v":0},"Percy Jackson - Moře nestvůr","Riordan R.","Fantasy","od 13","1. stupeň",280,"šablony I",2015]
[null,126,{"$f":"IFERROR(MATCH(B128,vypujcene,0),0)","v":0},"Percy Jackson - Moře nestvůr","Riordan R.","Fantasy","od 13","1. stupeň",279,"šablony I",2015]
[null,127,{"$f":"IFERROR(MATCH(B129,vypujcene,0),0)","v":0},"Percy Jackson - Poslední z bohů","Riordan R.","Fantasy","od 13","1. stupeň",319,"šablony I",2015]
[null,128,{"$f":"IFERROR(MATCH(B130,vypujcene,0),0)","v":0},"Percy Jackson - Poslední z bohů","Riordan R.","Fantasy","od 13","1. stupeň",319,"šablony I",2015]
[null,129,{"$f":"IFERROR(MATCH(B131,vypujcene,0),0)","v":0},"Percy Jackson - Bitva o labyrint","Riordan R.","Fantasy","od 13","1. stupeň",319,"šablony I",2015]
[null,130,{"$f":"IFERROR(MATCH(B132,vypujcene,0),0)","v":0},"Percy Jackson - Bitva o labyrint","Riordan R.","Fantasy","od 13","1. stupeň",319,"šablony I",2015]
[null,131,{"$f":"IFERROR(MATCH(B133,vypujcene,0),0)","v":0},"Percy Jackson - Prokletí Titánů","Riordan R.","Fantasy","od 13","1. stupeň",319,"šablony I",2015]
[null,132,{"$f":"IFERROR(MATCH(B134,vypujcene,0),0)","v":0},"Percy Jackson - Prokletí Titánů","Riordan R.","Fantasy","od 13","1. stupeň",319,"šablony I",2015]
[null,133,{"$f":"IFERROR(MATCH(B135,vypujcene,0),0)","v":0},"Percy Jackson - Zloděj blesku","Riordan R.","Fantasy","od 13","1. stupeň",319,"šablony I",2015]
[null,134,{"$f":"IFERROR(MATCH(B136,vypujcene,0),0)","v":0},"Percy Jackson - Zloděj blesku","Riordan R.","Fantasy","od 13","1. stupeň",319,"šablony I",2015]
[null,135,{"$f":"IFERROR(MATCH(B137,vypujcene,0),0)","v":0},"Tatínku, nezlob!","Rožnovská Lenka","Humor",null,"1. stupeň",175,"šablony I",2015]
[null,136,{"$f":"IFERROR(MATCH(B138,vypujcene,0),0)","v":0},"Bohové Olympu - Neptunův syn","Riordan R.","Fantasy","od 13","1. stupeň",319,"šablony I",2015]
[null,137,{"$f":"IFERROR(MATCH(B139,vypujcene,0),0)","v":0},"Deník mimoňky - Příběhy nešťastný lásky","Rusell R. ","Příběh ze života",null,"1. stupeň",231,"šablony I",2015]
[null,138,{"$f":"IFERROR(MATCH(B140,vypujcene,0),0)","v":0},"Deník mimoňky - Příběhy nešťastný lásky","Rusell R.","Příběh ze života",null,"1. stupeň",231,"šablony I",2015]
[null,140,{"$f":"IFERROR(MATCH(B141,vypujcene,0),0)","v":0},"Štaflík a Špagetka","Munková Alena","Pohádky",null,"1. stupeň",240,"šablony I",2015]
[null,141,{"$f":"IFERROR(MATCH(B142,vypujcene,0),0)","v":0},"Bruno u moře","Smith Alex T.","Dobrodružné",null,"1. stupeň",143,"šablony I",2015]
[null,142,{"$f":"IFERROR(MATCH(B143,vypujcene,0),0)","v":0},"Bruno ve městě","Smith Alex T.","Dobrodružné",null,"1. stupeň",143,"šablony I",2015]
[null,143,{"$f":"IFERROR(MATCH(B144,vypujcene,0),0)","v":0},"Pekelná třída řádí","Steklač Vojtěch","Příběh ze života",null,"1. stupeň",183,"šablony I",2015]
[null,144,{"$f":"IFERROR(MATCH(B145,vypujcene,0),0)","v":0},"Pekelná třída řádí","Steklač Vojtěch","Příběh ze života",null,"1. stupeň",183,"šablony I",2015]
[null,145,{"$f":"IFERROR(MATCH(B146,vypujcene,0),0)","v":0},"Modrá je barva nočních děsů","Stolarzová Laurie Faria","Horor pro děti",null,"1. stupeň",99,"šablony I",2015]
[null,146,{"$f":"IFERROR(MATCH(B147,vypujcene,0),0)","v":0},"Bílá je barva kouzel","Stolarzová Laurie Faria","Horor pro děti",null,"1. stupeň",99,"šablony I",2015]
[null,147,{"$f":"IFERROR(MATCH(B148,vypujcene,0),0)","v":0},"Pan Buřtík a pan Špejlička","Svěrák Zdeněk","Pohádky",null,"1. stupeň",199,"šablony I",2015]
[null,148,{"$f":"IFERROR(MATCH(B149,vypujcene,0),0)","v":0},"Lichožrouti","Šrut Pavel","Pohádky",null,"1. stupeň",273,"šablony I",2015]
[null,149,{"$f":"IFERROR(MATCH(B150,vypujcene,0),0)","v":0},"Lichožrouti","Šrut Pavel","Pohádky",null,"1. stupeň",279,"šablony I",2015]
[null,149,{"$f":"IFERROR(MATCH(B151,vypujcene,0),0)","v":0},"Lichožrouti se vracejí","Šrut Pavel","Pohádky",null,"1. stupeň",272,"šablony I",2015]
[null,150,{"$f":"IFERROR(MATCH(B152,vypujcene,0),0)","v":0},"Lichožrouti","Šrut Pavel","Pohádky",null,"1. stupeň",279,"šablony I",2015]
[null,151,{"$f":"IFERROR(MATCH(B153,vypujcene,0),0)","v":0},"100 osobností, které změnily svět","Gillialand Ben","Osobnosti a osudy",null,"2. stupeň",299,"šablony I",2015]
[null,152,{"$f":"IFERROR(MATCH(B154,vypujcene,0),0)","v":0},"Mami, kup mi psa","Štelbaská Zuzana","Příběh ze života",null,"1. stupeň",183,"šablony I",2015]
[null,152,{"$f":"IFERROR(MATCH(B155,vypujcene,0),0)","v":0},"3333 km k Jakubovi","Braunová Petra","Příběh ze života","od 12","2. stupeň",299,"šablony I",2015]
[null,153,{"$f":"IFERROR(MATCH(B156,vypujcene,0),0)","v":0},"Žil jsem jako kniha","Tashjianová Janet","Příběh ze života",null,"1. stupeň",159,"šablony I",2015]
[null,153,{"$f":"IFERROR(MATCH(B157,vypujcene,0),0)","v":0},"3334 km k Jakubovi","Braunová Petra","Příběh ze života","od 13","2. stupeň",199,"šablony I",2015]
[null,154,{"$f":"IFERROR(MATCH(B158,vypujcene,0),0)","v":0},"Žil jsem jako kaskadér","Tashjianová Janet","Dobrodružné","od 5 let","1. stupeň",160,"šablony I",2015]
[null,154,{"$f":"IFERROR(MATCH(B159,vypujcene,0),0)","v":0},"Alexa - Cvičitelka koní","Hauptmann Gaby","Příběh ze života",null,"2. stupeň",199,"šablony I",2015]
[null,155,{"$f":"IFERROR(MATCH(B160,vypujcene,0),0)","v":0},"Kazičasové","Tylerová Val","Fantasy",null,"1. stupeň",239,"šablony I",2015]
[null,155,{"$f":"IFERROR(MATCH(B161,vypujcene,0),0)","v":0},"Alexa - Cvičitelka koní","Hauptmann Gaby","Příběh ze života",null,"2. stupeň",199,"šablony I",2015]
[null,156,{"$f":"IFERROR(MATCH(B162,vypujcene,0),0)","v":0},"Alice a Mega hustý šoky","McCombie Karen","Humor",null,"2. stupeň",149,"šablony I",2015]
[null,157,{"$f":"IFERROR(MATCH(B163,vypujcene,0),0)","v":0},"Alice a Mega hustý šoky","McCombie Karen","Humor",null,"2. stupeň",149,"šablony I",2015]
[null,158,{"$f":"IFERROR(MATCH(B164,vypujcene,0),0)","v":0},"Amélie a tma","Neomillnerová Petra","Horor",null,"2. stupeň",199,"šablony I",2015]
[null,159,{"$f":"IFERROR(MATCH(B165,vypujcene,0),0)","v":0},"Amélie a tma","Neomillnerová Petra","Horor",null,"2. stupeň",199,"šablony I",2015]
[null,160,{"$f":"IFERROR(MATCH(B166,vypujcene,0),0)","v":0},"Anna a Anna","Indenová Charlotte","Příběh ze života",null,"2. stupeň",229,"šablony I",2015]
[null,161,{"$f":"IFERROR(MATCH(B167,vypujcene,0),0)","v":0},"Anne Franková - komiks","Jacobson, Colón","2. svět. válka",null,"2. stupeň",270,"šablony I",2015]
[null,165,{"$f":"IFERROR(MATCH(B168,vypujcene,0),0)","v":0},"Bella a Sebastián","Jacobson, Colón","Dobrodružné",null,"2. stupeň",270,"šablony I",2015]
[null,166,{"$f":"IFERROR(MATCH(B169,vypujcene,0),0)","v":0},"Blázniví donkichoti","Březinová Ivona","Pro dospívající",null,"2. stupeň",289,"šablony I",2015]
[null,167,{"$f":"IFERROR(MATCH(B170,vypujcene,0),0)","v":0},"Blázniví donkichoti","Březinová Ivona","Pro dospívající",null,"2. stupeň",79,"šablony I",2015]
[null,168,{"$f":"IFERROR(MATCH(B171,vypujcene,0),0)","v":0},"Blbnutí s Oskarem","Březinová Ivona","Pro dospívající",null,"2. stupeň",79,"šablony I",2015]
[null,169,{"$f":"IFERROR(MATCH(B172,vypujcene,0),0)","v":0},"Blbnutí s Oskarem","Březinová Ivona","Pro dospívající",null,"2. stupeň",199,"šablony I",2015]
[null,170,{"$f":"IFERROR(MATCH(B173,vypujcene,0),0)","v":0},"Bohové Olympu - Proroctví","Riordan R.","Fantasy","od 13 let","2. stupeň",399,"šablony I",2015]
[null,171,{"$f":"IFERROR(MATCH(B174,vypujcene,0),0)","v":0},"Bohové Olympu - Znamení Athény","Riordan R.","Fantasy","od 13 let","2. stupeň",399,"šablony I",2015]
[null,172,{"$f":"IFERROR(MATCH(B175,vypujcene,0),0)","v":0},"Čarodějka z Turlinghamu","Boswellová Ellie","Fantasy",null,"2. stupeň",199,"šablony I",2015]
[null,173,{"$f":"IFERROR(MATCH(B176,vypujcene,0),0)","v":0},"Česká služka aneb Byla jsem au-pair","Braunová Petra","Příběh ze života",null,"2. stupeň",39,"šablony I",2015]
[null,174,{"$f":"IFERROR(MATCH(B177,vypujcene,0),0)","v":0},"Deníček šílený holky","Patterson James","Příběh ze života",null,"2. stupeň",229,"šablony I",2015]
[null,175,{"$f":"IFERROR(MATCH(B178,vypujcene,0),0)","v":0},"Deníček šílený holky","Patterson James","Příběh ze života",null,"2. stupeň",229,"šablony I",2015]
[null,176,{"$f":"IFERROR(MATCH(B179,vypujcene,0),0)","v":0},"Deník Anny Frankové","Franková Anne","2. svět. válka",null,"2. stupeň",296,"šablony I",2015]
[null,178,{"$f":"IFERROR(MATCH(B180,vypujcene,0),0)","v":0},"Deník malého poseroutky","Kinney Jeff","Humor",null,"2. stupeň",229,"šablony I",2015]
[null,180,{"$f":"IFERROR(MATCH(B181,vypujcene,0),0)","v":0},"Deník malého poseroutky - Poslední kapka","Kinney Jeff","Humor",null,"2. stupeň",229,"šablony I",2015]
[null,181,{"$f":"IFERROR(MATCH(B182,vypujcene,0),0)","v":0},"Deník malého poseroutky - Poslední kapka","Kinney Jeff","Humor",null,"2. stupeň",229,"šablony I",2015]
[null,182,{"$f":"IFERROR(MATCH(B183,vypujcene,0),0)","v":0},"Deník rebelky - Moje trapný dvojče","McCombie Karen","Humor",null,"2. stupeň",149,"šablony I",2015]
[null,183,{"$f":"IFERROR(MATCH(B184,vypujcene,0),0)","v":0},"Deník rebelky - Moje trapný dvojče","McCombie Karen","Humor",null,"2. stupeň",149,"šablony I",2015]
[null,184,{"$f":"IFERROR(MATCH(B185,vypujcene,0),0)","v":0},"Deník rebelky - Moje trhlá rodinka","McCombie Karen","Humor",null,"2. stupeň",149,"šablony I",2015]
[null,185,{"$f":"IFERROR(MATCH(B186,vypujcene,0),0)","v":0},"Deník rebelky - Moje trhlá rodinka","McCombie Karen","Humor",null,"2. stupeň",149,"šablony I",2015]
[null,186,{"$f":"IFERROR(MATCH(B187,vypujcene,0),0)","v":0},"Deník rebelky - Moje šáhlý bábinky","McCombie Karen","Humor",null,"2. stupeň",149,"šablony I",2015]
[null,187,{"$f":"IFERROR(MATCH(B188,vypujcene,0),0)","v":0},"Deník rebelky - Moje šáhlý bábinky","McCombie Karen","Humor",null,"2. stupeň",149,"šablony I",2015]
[null,188,{"$f":"IFERROR(MATCH(B189,vypujcene,0),0)","v":0},"Dobrodružné výpravy do minulosti - Husité","Válková Veronika","dobrodružné",null,"2. stupeň",179,"šablony I",2015]
[null,189,{"$f":"IFERROR(MATCH(B190,vypujcene,0),0)","v":0},"Dobrodružné výpravy do minulosti - Pozdvižení…","Válková Veronika","dobrodružné",null,"2. stupeň",179,"šablony I",2015]
[null,190,{"$f":"IFERROR(MATCH(B191,vypujcene,0),0)","v":0},"Dobrodružné výpravy do minulosti - Rudolf II.","Válková Veronika","dobrodružné",null,"2. stupeň",179,"šablony I",2015]
[null,191,{"$f":"IFERROR(MATCH(B192,vypujcene,0),0)","v":0},"Dotek anděla","Brezina Thomas","Sci-fi","od 13","2. stupeň",199,"šablony I",2015]
[null,192,{"$f":"IFERROR(MATCH(B193,vypujcene,0),0)","v":0},"Dotek anděla","Brezina Thomas","Sci-fi","od 14","2. stupeň",199,"šablony I",2015]
[null,193,{"$f":"IFERROR(MATCH(B194,vypujcene,0),0)","v":0},"Dračí oči - Čarodějka","Hlaváčková Kristina","Fantasy",null,"2. stupeň",299,"šablony I",2015]
[null,193,{"$f":"IFERROR(MATCH(B195,vypujcene,0),0)","v":0},"Druhá stříbrná kniha snů","Gierová Kerstin","Fantasy",null,"2. stupeň",299,"šablony I",2015]
[null,194,{"$f":"IFERROR(MATCH(B196,vypujcene,0),0)","v":0},"Dračí oči - Čarodějka","Hlaváčková Kristina","Fantasy",null,"2. stupeň",299,"šablony I",2015]
[null,196,{"$f":"IFERROR(MATCH(B197,vypujcene,0),0)","v":0},"Elyonova země - Temné hory","Carman Patrick","Fantasy",null,"2. stupeň",179,"šablony I",2015]
[null,197,{"$f":"IFERROR(MATCH(B198,vypujcene,0),0)","v":0},"Elyonova země - Trnité údolí","Carman Patrick","Fantasy",null,"2. stupeň",179,"šablony I",2015]
[null,198,{"$f":"IFERROR(MATCH(B199,vypujcene,0),0)","v":0},"Expedice Kolumbus - Faraonův amulet","Brezina Thomas","Sci-fi",null,"2. stupeň",249,"šablony I",2015]
[null,199,{"$f":"IFERROR(MATCH(B200,vypujcene,0),0)","v":0},"Expedice Kolumbus - Faraonův amulet","Brezina Thomas","Sci-fi",null,"2. stupeň",249,"šablony I",2015]
[null,200,{"$f":"IFERROR(MATCH(B201,vypujcene,0),0)","v":0},"Expedice Kolumbus - Tajemství hradu","Brezina Thomas","Sci-fi",null,"2. stupeň",249,"šablony I",2015]
[null,201,{"$f":"IFERROR(MATCH(B202,vypujcene,0),0)","v":0},"Expedice Kolumbus - Tajemství hradu","Brezina Thomas","Sci-fi",null,"2. stupeň",249,"šablony I",2015]
[null,202,{"$f":"IFERROR(MATCH(B203,vypujcene,0),0)","v":0},"Horror School - Podivné sestry","Gilman Charles","Horor",null,"2. stupeň",229,"šablony I",2015]
[null,203,{"$f":"IFERROR(MATCH(B204,vypujcene,0),0)","v":0},"Horror School - Šílený profesor","Gilman Charles","Horor",null,"2. stupeň",229,"šablony I",2015]
[null,204,{"$f":"IFERROR(MATCH(B205,vypujcene,0),0)","v":0},"Hořké zrání Adriana Molea","Townsenová Sue","Příběh ze života",null,"2. stupeň",249,"šablony I",2015]
[null,206,{"$f":"IFERROR(MATCH(B206,vypujcene,0),0)","v":0},"Hovno hoří","Šabach Petr","Příběh ze života",null,"2. stupeň",219,"šablony I",2015]
[null,209,{"$f":"IFERROR(MATCH(B207,vypujcene,0),0)","v":0},"Hraničářův učeň 1 - Rozvaliny Gorlanu","Flanagan John","Fantasy",null,"2. stupeň",329,"šablony I",2015]
[null,212,{"$f":"IFERROR(MATCH(B208,vypujcene,0),0)","v":0},"Hraničářův učeň 2 - Hořící most","Flanagan John","Fantasy",null,"2. stupeň",329,"šablony I",2015]
[null,213,{"$f":"IFERROR(MATCH(B209,vypujcene,0),0)","v":0},"Hraničářův učeň 4 - Nositelé dubového listu","Flanagan John","Fantasy",null,"2. stupeň",349,"šablony I",2015]
[null,214,{"$f":"IFERROR(MATCH(B210,vypujcene,0),0)","v":0},"Hraničářův učeň - Výkupné za Eraka","Flanagan John","Fantasy",null,"2. stupeň",399,"šablony I",2015]
[null,215,{"$f":"IFERROR(MATCH(B211,vypujcene,0),0)","v":0},"Hraničářův učeň 3 - Ledová země","Flanagan John","Fantasy",null,"2. stupeň",329,"šablony I",2015]
[null,216,{"$f":"IFERROR(MATCH(B212,vypujcene,0),0)","v":0},"Hraničářův učeň 6 - Čaroděj na severu","Flanagan John","Fantasy",null,"2. stupeň",349,"šablony I",2015]
[null,217,{"$f":"IFERROR(MATCH(B213,vypujcene,0),0)","v":0},"Chramst!","Hiaasen Carl","Příběh ze života",null,"2. stupeň",199,"šablony I",2015]
[null,218,{"$f":"IFERROR(MATCH(B214,vypujcene,0),0)","v":0},"Jablečný koláč naděje","Fitzgeraldová Sarah Moo","Dobrodružné",null,"2. stupeň",299,"šablony I",2015]
[null,219,{"$f":"IFERROR(MATCH(B215,vypujcene,0),0)","v":0},"Jablečný koláč naděje","Fitzgeraldová Sarah Moo","Dobrodružné",null,"2. stupeň",299,"šablony I",2015]
[null,220,{"$f":"IFERROR(MATCH(B216,vypujcene,0),0)","v":0},"Kdo chytá v žitě","Salinger Jerome David","Příběh ze života","od 13 let","2. stupeň",199,"šablony I",2015]
[null,221,{"$f":"IFERROR(MATCH(B217,vypujcene,0),0)","v":0},"Klan koní","Bonnevieová Live","Příběh ze života",null,"2. stupeň",299,"šablony I",2015]
[null,222,{"$f":"IFERROR(MATCH(B218,vypujcene,0),0)","v":0},"Kočičí gen","Brezina Thomas","Sci-fi",null,"2. stupeň",199,"šablony I",2015]
[null,224,{"$f":"IFERROR(MATCH(B219,vypujcene,0),0)","v":0},"Líza a spol. - Nebezpečný útěk","Hosfeld Dagmar","Příběh ze života",null,"2. stupeň",179,"šablony I",2015]
[null,225,{"$f":"IFERROR(MATCH(B220,vypujcene,0),0)","v":0},"Líza a spol. - Nebezpečný útěk","Hosfeld Dagmar","Příběh ze života",null,"2. stupeň",179,"šablony I",2015]
[null,226,{"$f":"IFERROR(MATCH(B221,vypujcene,0),0)","v":0},"Líza a spol. - Nový kluk","Hosfeld Dagmar","Příběh ze života",null,"2. stupeň",179,"šablony I",2015]
[null,227,{"$f":"IFERROR(MATCH(B222,vypujcene,0),0)","v":0},"Líza a spol. - Nový kluk","Hosfeld Dagmar","Příběh ze života",null,"2. stupeň",179,"šablony I",2015]
[null,228,{"$f":"IFERROR(MATCH(B223,vypujcene,0),0)","v":0},"Lovci pokladů","Patterson James","Dobrodružné",null,"2. stupeň",289,"šablony I",2015]
[null,229,{"$f":"IFERROR(MATCH(B224,vypujcene,0),0)","v":0},"Lovci pokladů","Patterson James","Dobrodružné",null,"2. stupeň",289,"šablony I",2015]
[null,230,{"$f":"IFERROR(MATCH(B225,vypujcene,0),0)","v":0},"Mezi nebem a zemí - Čekání na zázrak","Kade Stacey","Fantasy","od 13 let","2. stupeň",239,"šablony I",2015]
[null,231,{"$f":"IFERROR(MATCH(B226,vypujcene,0),0)","v":0},"Můj (nový) vlastní deník malého poseroutky","Kinney Jeff","Humor",null,"2. stupeň",199,"šablony I",2015]
[null,232,{"$f":"IFERROR(MATCH(B227,vypujcene,0),0)","v":0},"Můj (nový) vlastní deník malého poseroutky","Kinney Jeff","Humor",null,"2. stupeň",199,"šablony I",2015]
[null,233,{"$f":"IFERROR(MATCH(B228,vypujcene,0),0)","v":0},"Nebe je všude","Nelsonová Jandy","Příběh ze života",null,"2. stupeň",299,"šablony I",2015]
[null,234,{"$f":"IFERROR(MATCH(B229,vypujcene,0),0)","v":0},"Nebe je všude","Nelsonová Jandy","Příběh ze života",null,"2. stupeň",299,"šablony I",2015]
[null,235,{"$f":"IFERROR(MATCH(B230,vypujcene,0),0)","v":0},"Ostrov zasvěcení","Pacovská Ilka","Fantasy",null,"2. stupeň",249,"šablony I",2015]
[null,236,{"$f":"IFERROR(MATCH(B231,vypujcene,0),0)","v":0},"Pán vzduchu","Neff Ondřej","Sci-fi",null,"2. stupeň",349,"šablony I",2015]
[null,237,{"$f":"IFERROR(MATCH(B232,vypujcene,0),0)","v":0},"Pán vzduchu","Neff Ondřej","Sci-fi",null,"2. stupeň",349,"šablony I",2015]
[null,238,{"$f":"IFERROR(MATCH(B233,vypujcene,0),0)","v":0},"Pán země","Neff Ondřej","Sci-fi",null,"2. stupeň",349,"šablony I",2015]
[null,239,{"$f":"IFERROR(MATCH(B234,vypujcene,0),0)","v":0},"Pán země","Neff Ondřej","Sci-fi",null,"2. stupeň",349,"šablony I",2015]
[null,240,{"$f":"IFERROR(MATCH(B235,vypujcene,0),0)","v":0},"Pátračka Gilda","Allisonová Jennifer","Detektivka",null,"2. stupeň",199,"šablony I",2015]
[null,241,{"$f":"IFERROR(MATCH(B236,vypujcene,0),0)","v":0},"Pátračka Gilda","Allisonová Jennifer","Detektivka",null,"2. stupeň",199,"šablony I",2015]
[null,242,{"$f":"IFERROR(MATCH(B237,vypujcene,0),0)","v":0},"Pět bojovníků - Had","Stone Jeff","Dobrodružné",null,"2. stupeň",149,"šablony I",2015]
[null,242,{"$f":"IFERROR(MATCH(B238,vypujcene,0),0)","v":0},"Pátračka Gilda","Allisonová Jennifer","Detektivka",null,"2. stupeň",199,"šablony I",2015]
[null,245,{"$f":"IFERROR(MATCH(B239,vypujcene,0),0)","v":0},"Pět bojovníků - Had","Stone Jeff","Dobrodružné",null,"2. stupeň",149,"šablony I",2015]
[null,246,{"$f":"IFERROR(MATCH(B240,vypujcene,0),0)","v":0},"Pět bojovníků - Had","Stone Jeff","Dobrodružné",null,"2. stupeň",149,"šablony I",2015]
[null,248,{"$f":"IFERROR(MATCH(B241,vypujcene,0),0)","v":0},"Poslední Mohykán","Cooper J. Fenimore","Dobrodružné",null,"2. stupeň",249,"šablony I",2015]
[null,249,{"$f":"IFERROR(MATCH(B242,vypujcene,0),0)","v":0},"Prázdniny s kouzelným deníkem","Dorr Stefanie","Dobrodružné",null,"2. stupeň",179,"šablony I",2015]
[null,250,{"$f":"IFERROR(MATCH(B243,vypujcene,0),0)","v":0},"Prázdniny s kouzelným deníkem","Dorr Stefanie","Dobrodružné",null,"2. stupeň",179,"šablony I",2015]
[null,251,{"$f":"IFERROR(MATCH(B244,vypujcene,0),0)","v":0},"Prázdniny s kouzelným deníkem","Dorr Stefanie","Dobrodružné",null,"2. stupeň",179,"šablony I",2015]
[null,252,{"$f":"IFERROR(MATCH(B245,vypujcene,0),0)","v":0},"Prázdniny s kouzelným deníkem","Dorr Stefanie","Dobrodružné",null,"2. stupeň",179,"šablony I",2015]
[null,253,{"$f":"IFERROR(MATCH(B246,vypujcene,0),0)","v":0},"Prevítem snadno a rychle","Brett Simon","Humor",null,"2. stupeň",169,"šablony I",2015]
[null,254,{"$f":"IFERROR(MATCH(B247,vypujcene,0),0)","v":0},"První stříbrná kniha snů","Gierová Kerstin","Fantasy",null,"2. stupeň",299,"šablony I",2015]
[null,254,{"$f":"IFERROR(MATCH(B248,vypujcene,0),0)","v":0},"Prevítem snadno a rychle","Brett Simon","Humor",null,"2. stupeň",169,"šablony I",2015]
[null,255,{"$f":"IFERROR(MATCH(B249,vypujcene,0),0)","v":0},"Pupíky 1","Delaf","Komiks",null,"2. stupeň",149,"šablony I",2015]
[null,256,{"$f":"IFERROR(MATCH(B250,vypujcene,0),0)","v":0},"Pupíky 2","Delaf","Komiks",null,"2. stupeň",149,"šablony I",2015]
[null,257,{"$f":"IFERROR(MATCH(B251,vypujcene,0),0)","v":0},"Rozděleni Časem - Bouře","Cross Julie","Sci-fi",null,"2. stupeň",279,"šablony I",2015]
[null,258,{"$f":"IFERROR(MATCH(B252,vypujcene,0),0)","v":0},"Řemesla","Smolíková Klára","Příběh ze života",null,"2. stupeň",199,"šablony I",2015]
[null,260,{"$f":"IFERROR(MATCH(B253,vypujcene,0),0)","v":0},"Smrt kouzelného džina","Pacovská Ilka","Fantasy",null,"2. stupeň",249,"šablony I",2015]
[null,262,{"$f":"IFERROR(MATCH(B254,vypujcene,0),0)","v":0},"Sofiin svět","Gaarder Jostein","Filozofie",null,"2. stupeň",269,"šablony I",2015]
[null,263,{"$f":"IFERROR(MATCH(B255,vypujcene,0),0)","v":0},"Společenstvo prstenu - Pán prstenu","Tolkien J. R. R.","Fantasy",null,"2. stupeň",258,"šablony I",2015]
[null,265,{"$f":"IFERROR(MATCH(B256,vypujcene,0),0)","v":0},"Společenstvo prstenu - Návrat krále","Tolkien J. R. R.","Fantasy",null,"2. stupeň",389,"šablony I",2015]
[null,267,{"$f":"IFERROR(MATCH(B257,vypujcene,0),0)","v":0},"Štěstí na dosah","Petříková Irena","Příběh ze života","od 13 let","2. stupeň",179,"šablony I",2015]
[null,268,{"$f":"IFERROR(MATCH(B258,vypujcene,0),0)","v":0},"Tajemství duchů - Moje zvláštní schopnosti","Pershall Mary K.","Fantasy",null,"2. stupeň",179,"šablony I",2015]
[null,269,{"$f":"IFERROR(MATCH(B259,vypujcene,0),0)","v":0},"Tajemství duchů - Přízrak beze jména","Pershall Mary K.","Fantasy",null,"1. stupeň",179,"šablony I",2015]
[null,270,{"$f":"IFERROR(MATCH(B260,vypujcene,0),0)","v":0},"Tajemství duchů - Zpráva ze záhrobí","Pershall Mary K.","Fantasy",null,"1. stupeň",179,"šablony I",2015]
[null,272,{"$f":"IFERROR(MATCH(B261,vypujcene,0),0)","v":0},"Výkřik do tmy","Martini Manuela","Horor",null,"2. stupeň",199,"šablony I",2015]
[null,277,{"$f":"IFERROR(MATCH(B262,vypujcene,0),0)","v":0},"Muřinoh a Krchomilka","Valenta Miroslav","Pohádky",null,"1. stupeň",239,"šablony I",2015]
[null,278,{"$f":"IFERROR(MATCH(B263,vypujcene,0),0)","v":0},"Muřinoh a Krchomilka","Valenta Miroslav","Pohádky",null,"1. stupeň",240,"šablony I",2015]
[null,279,{"$f":"IFERROR(MATCH(B264,vypujcene,0),0)","v":0},"Dvacet tisíc mil pod mořem","Verne Jules","Dobrodružné",null,"1. stupeň",199,"šablony I",2015]
[null,280,{"$f":"IFERROR(MATCH(B265,vypujcene,0),0)","v":0},"Kdo nevěří, ať tam jede","Vostrá Alena","Poezie pro děti",null,"1. stupeň",92,"šablony I",2015]
[null,281,{"$f":"IFERROR(MATCH(B266,vypujcene,0),0)","v":0},"Babička drsňačka","Williams David","Dobrodružné",null,"1. stupeň",191,"šablony I",2015]
[null,282,{"$f":"IFERROR(MATCH(B267,vypujcene,0),0)","v":0},"Babička drsňačka","Williams David","Dobrodružné",null,"1. stupeň",190,"šablony I",2015]
[null,283,{"$f":"IFERROR(MATCH(B268,vypujcene,0),0)","v":0},"Babička drsňačka","Williams David","Dobrodružné",null,"1. stupeň",191,"šablony I",2015]
[null,284,{"$f":"IFERROR(MATCH(B269,vypujcene,0),0)","v":0},"Ďábelská zubařka","Williams David","Fantasy","od 8 let","1. stupeň",230,"šablony I",2015]
[null,285,{"$f":"IFERROR(MATCH(B270,vypujcene,0),0)","v":0},"Ďábelská zubařka","Williams David","Fantasy","od 8 let","1. stupeň",230,"šablony I",2015]
[null,286,{"$f":"IFERROR(MATCH(B271,vypujcene,0),0)","v":0},"Emily Pírková a začarované dveře","Webbová Holly","Fantasy",null,"1. stupeň",159,"šablony I",2015]
[null,287,{"$f":"IFERROR(MATCH(B272,vypujcene,0),0)","v":0},"Bleška a veška","Werich Jan","Pohádky",null,"1. stupeň",151,"šablony I",2015]
[null,288,{"$f":"IFERROR(MATCH(B273,vypujcene,0),0)","v":0},"České divadelní pohádky","Zacharník František","Pohádky",null,"1. stupeň",160,"šablony I",2015]
[null,289,{"$f":"IFERROR(MATCH(B274,vypujcene,0),0)","v":0},"Čarodějné pohádky pro malé kouzelníky","Žáček Jiří","Pohádky",null,"1. stupeň",360,"šablony I",2015]
[null,290,{"$f":"IFERROR(MATCH(B275,vypujcene,0),0)","v":0},"O botě, která si šlapala na jazyk","Žiška Pavel","Pohádky",null,"1. stupeň",159,"šablony I",2015]
[null,291,{"$f":"IFERROR(MATCH(B276,vypujcene,0),0)","v":0},"Pachatelé dobrých skutků - Puntíkáři","Kratochvíl Miloš","Dobrodružné",null,"1. stupeň",112,"šablony I",2015]
[null,292,{"$f":"IFERROR(MATCH(B277,vypujcene,0),0)","v":0},"Pachatelé dobrých skutků Duchaři","Kratochvíl Miloš","Dobrodružné",null,"1. stupeň",112,"šablony I",2015]
[null,293,{"$f":"IFERROR(MATCH(B278,vypujcene,0),0)","v":0},"Pachatelé dobrých skutků - Kouzláci","Kratochvíl Miloš","Dobrodružné",null,"1. stupeň",112,"šablony I",2015]
[null,294,{"$f":"IFERROR(MATCH(B279,vypujcene,0),0)","v":0},"Pachatelé dobrých skutků - Bouráci","Kratochvíl Miloš","Dobrodružné",null,"1. stupeň",112,"šablony I",2015]
[null,295,{"$f":"IFERROR(MATCH(B280,vypujcene,0),0)","v":0},"Pachatelé dobrých skutků - Klofáci","Kratochvíl Miloš","Dobrodružné",null,"1. stupeň",112,"šablony I",2015]
[null,296,{"$f":"IFERROR(MATCH(B281,vypujcene,0),0)","v":0},"Bohové Olympu - Neptunův syn","Riordan R.","Fantasy","od 13","1. stupeň",319,"šablony I",2015]
[null,297,{"$f":"IFERROR(MATCH(B282,vypujcene,0),0)","v":0},"Povídky z jedné kapsy a Povídky z druhé kapsy","Čapek Karel","Detektivka",null,"2. stupeň",189,"šablony I",2015]
[null,298,{"$f":"IFERROR(MATCH(B283,vypujcene,0),0)","v":0},"Povídky z jedné kapsy a Povídky z druhé kapsy","Čapek Karel","Detektivka",null,"2. stupeň",189,"šablony I",2015]
[null,299,{"$f":"IFERROR(MATCH(B284,vypujcene,0),0)","v":0},"Povídky z jedné kapsy a Povídky z druhé kapsy","Čapek Karel","Detektivka",null,"2. stupeň",189,"šablony I",2015]
[null,300,{"$f":"IFERROR(MATCH(B285,vypujcene,0),0)","v":0},"Povídky z jedné kapsy a Povídky z druhé kapsy","Čapek Karel","Detektivka",null,"2. stupeň",189,"šablony I",2015]
[null,301,{"$f":"IFERROR(MATCH(B286,vypujcene,0),0)","v":0},"Povídky z jedné kapsy a Povídky z druhé kapsy","Čapek Karel","Detektivka",null,"2. stupeň",189,"šablony I",2015]
[null,302,{"$f":"IFERROR(MATCH(B287,vypujcene,0),0)","v":0},"Povídky z jedné kapsy a Povídky z druhé kapsy","Čapek Karel","Detektivka",null,"2. stupeň",189,"šablony I",2015]
[null,303,{"$f":"IFERROR(MATCH(B288,vypujcene,0),0)","v":0},"Povídky z jedné kapsy a Povídky z druhé kapsy","Čapek Karel","Detektivka",null,"2. stupeň",189,"šablony I",2015]
[null,304,{"$f":"IFERROR(MATCH(B289,vypujcene,0),0)","v":0},"Povídky z jedné kapsy a Povídky z druhé kapsy","Čapek Karel","Detektivka",null,"2. stupeň",189,"šablony I",2015]
[null,305,{"$f":"IFERROR(MATCH(B290,vypujcene,0),0)","v":0},"Povídky z jedné kapsy a Povídky z druhé kapsy","Čapek Karel","Detektivka",null,"2. stupeň",189,"šablony I",2015]
[null,306,{"$f":"IFERROR(MATCH(B291,vypujcene,0),0)","v":0},"Povídky z jedné kapsy a Povídky z druhé kapsy","Čapek Karel","Detektivka",null,"2. stupeň",189,"šablony I",2015]
[null,307,{"$f":"IFERROR(MATCH(B292,vypujcene,0),0)","v":0},"Povídky z jedné kapsy a Povídky z druhé kapsy","Čapek Karel","Detektivka",null,"2. stupeň",189,"šablony I",2015]
[null,308,{"$f":"IFERROR(MATCH(B293,vypujcene,0),0)","v":0},"Povídky z jedné kapsy a Povídky z druhé kapsy","Čapek Karel","Detektivka",null,"2. stupeň",189,"šablony I",2015]
[null,309,{"$f":"IFERROR(MATCH(B294,vypujcene,0),0)","v":0},"Povídky z jedné kapsy a Povídky z druhé kapsy","Čapek Karel","Detektivka",null,"2. stupeň",189,"šablony I",2015]
[null,310,{"$f":"IFERROR(MATCH(B295,vypujcene,0),0)","v":0},"Povídky z jedné kapsy a Povídky z druhé kapsy","Čapek Karel","Detektivka",null,"2. stupeň",189,"šablony I",2015]
[null,311,{"$f":"IFERROR(MATCH(B296,vypujcene,0),0)","v":0},"Povídky z jedné kapsy a Povídky z druhé kapsy","Čapek Karel","Detektivka",null,"2. stupeň",189,"šablony I",2015]
[null,312,{"$f":"IFERROR(MATCH(B297,vypujcene,0),0)","v":0},"Tarzan z rodu Opů","Burroughs Edgar Rice","Dobrodružné",null,"2. stupeň",299,"šablony I",2015]
[null,313,{"$f":"IFERROR(MATCH(B298,vypujcene,0),0)","v":0},"Tarzan z rodu Opů","Burroughs Edgar Rice","Dobrodružné",null,"2. stupeň",299,"šablony I",2015]
[null,314,{"$f":"IFERROR(MATCH(B299,vypujcene,0),0)","v":0},"Tarzanův návrat","Burroughs Edgar Rice","Dobrodružné",null,"2. stupeň",299,"šablony I",2015]
[null,315,{"$f":"IFERROR(MATCH(B300,vypujcene,0),0)","v":0},"Tarzanův návrat","Burroughs Edgar Rice","Dobrodružné",null,"2. stupeň",299,"šablony I",2015]
[null,316,{"$f":"IFERROR(MATCH(B301,vypujcene,0),0)","v":0},"Thorgal - Vlčice","Hamme Jean Van","Komiks",null,"2. stupeň",179,"šablony I",2015]
[null,317,{"$f":"IFERROR(MATCH(B302,vypujcene,0),0)","v":0},"Thorgal - Vlčice","Hamme Jean Van","Komiks",null,"2. stupeň",179,"šablony I",2015]
[null,318,{"$f":"IFERROR(MATCH(B303,vypujcene,0),0)","v":0},"Tobiáš Lolness","Fombelle de Timotheé","Dobrodružné",null,"2. stupeň",480,"šablony I",2015]
[null,319,{"$f":"IFERROR(MATCH(B304,vypujcene,0),0)","v":0},"Tobiáš Lolness","Fombelle de Timotheé","Dobrodružné",null,"2. stupeň",480,"šablony I",2015]
[null,320,{"$f":"IFERROR(MATCH(B305,vypujcene,0),0)","v":0},"V šedých tónech","Sepetysová Ruta","2. svět. válka",null,"2. stupeň",299,"šablony I",2015]
[null,321,{"$f":"IFERROR(MATCH(B306,vypujcene,0),0)","v":0},"V šedých tónech","Sepetysová Ruta","2. svět. válka",null,"2. stupeň",299,"šablony I",2015]
[null,322,{"$f":"IFERROR(MATCH(B307,vypujcene,0),0)","v":0},"Ve jménu Husa","Ležák Zdeněk","Komiks",null,"2. stupeň",399,"šablony I",2015]
[null,323,{"$f":"IFERROR(MATCH(B308,vypujcene,0),0)","v":0},"Venusshe - Perný týden","Šebesta Juraj","Příběh ze života",null,"2. stupeň",249,"šablony I",2015]
[null,324,{"$f":"IFERROR(MATCH(B309,vypujcene,0),0)","v":0},"Venusshe - Perný týden","Šebesta Juraj","Příběh ze života",null,"2. stupeň",249,"šablony I",2015]
[null,325,{"$f":"IFERROR(MATCH(B310,vypujcene,0),0)","v":0},"Diamantová cesta - Vládci Sedmihoří","Hlaváčková Iva","Fantasy",null,"2. stupeň",249,"šablony I",2015]
[null,326,{"$f":"IFERROR(MATCH(B311,vypujcene,0),0)","v":0},"Zakletá","Scott Card Orson","Fantasy",null,"2. stupeň",399,"šablony I",2015]
[null,327,{"$f":"IFERROR(MATCH(B312,vypujcene,0),0)","v":0},"Zakletá","Scott Card Orson","Fantasy",null,"2. stupeň",399,"šablony I",2015]
[null,328,{"$f":"IFERROR(MATCH(B313,vypujcene,0),0)","v":0},"Zločin na Starém Městě pražském","Krolupperová Daniela","Detektivka",null,"2. stupeň",249,"šablony I",2015]
[null,329,{"$f":"IFERROR(MATCH(B314,vypujcene,0),0)","v":0},"Zločin na Starém Městě pražském","Krolupperová Daniela","Detektivka",null,"2. stupeň",249,"šablony I",2015]
[null,330,{"$f":"IFERROR(MATCH(B315,vypujcene,0),0)","v":0},"ZOM-B","Shan Darren","Horor",null,"2. stupeň",249,"šablony I",2015]
[null,331,{"$f":"IFERROR(MATCH(B316,vypujcene,0),0)","v":0},"ZOM-B","Shan Darren","Horor",null,"2. stupeň",249,"šablony I",2015]
[null,332,{"$f":"IFERROR(MATCH(B317,vypujcene,0),0)","v":0},"Zpovědi podezřelé","Patterson James","Detektivka",null,"2. stupeň",249,"šablony I",2015]
[null,333,{"$f":"IFERROR(MATCH(B318,vypujcene,0),0)","v":0},"Ztracený svět v podzemí","Gordon Roderick","Fantasy",null,"2. stupeň",399,"šablony I",2015]
[null,334,{"$f":"IFERROR(MATCH(B319,vypujcene,0),0)","v":0},"Ztracený svět v podzemí","Gordon Roderick","Fantasy",null,"2. stupeň",399,"šablony I",2015]
[null,335,{"$f":"IFERROR(MATCH(B320,vypujcene,0),0)","v":0},"Život k sežrání","Ollivier Mikael","Příběh ze života",null,"2. stupeň",149,"šablony I",2015]
[null,336,{"$f":"IFERROR(MATCH(B321,vypujcene,0),0)","v":0},"Život k sežrání","Ollivier Mikael","Příběh ze života",null,"2. stupeň",279,"šablony I",2015]
[null,337,{"$f":"IFERROR(MATCH(B322,vypujcene,0),0)","v":0},"Uzly a pomeranče","Procházková Iva","Příběh ze života","od 13 let","2. stupeň",246,"šablony I",2015]
[null,338,{"$f":"IFERROR(MATCH(B323,vypujcene,0),0)","v":0},"Uzly a pomeranče","Procházková Iva","Příběh ze života","od 13 let","2. stupeň",246,"šablony I",2015]
[null,339,{"$f":"IFERROR(MATCH(B324,vypujcene,0),0)","v":0},"Hraničářův učeň - Obléhání Macindawu","Flanagan John","Fantasy",null,"2. stupeň",299,"šablony I",2015]
[null,341,{"$f":"IFERROR(MATCH(B325,vypujcene,0),0)","v":0},"Klub čarodějek - Velká záchranná akce","Brezina Thomas","Fantasy",null,"2. stupeň",129,"šablony I",2015]
[null,342,{"$f":"IFERROR(MATCH(B326,vypujcene,0),0)","v":0},"Klub čarodějek - Velká záchranná akce","Brezina Thomas","Fantasy",null,"2. stupeň",129,"šablony I",2015]
[null,343,{"$f":"IFERROR(MATCH(B327,vypujcene,0),0)","v":0},"To je otázka","Gaarder Jostein","Filozofie","od 5 let","2. stupeň",189,"šablony I",2015]
[null,344,{"$f":"IFERROR(MATCH(B328,vypujcene,0),0)","v":0},"To je otázka","Gaarder Jostein","Filozofie","od 5 let","2. stupeň",189,"šablony I",2015]
[null,915,{"$f":"IFERROR(MATCH(B329,vypujcene,0),0)","v":0},"Savci známí a neznámí","Dmitrijev","Zvířata",null,"Přírodopis",65,null,1988]
[null,918,{"$f":"IFERROR(MATCH(B330,vypujcene,0),0)","v":0},"Řekni proč","kol. autorů","Encyklopedie",null,"Encyklopedie",38,null,1988]
[null,919,{"$f":"IFERROR(MATCH(B331,vypujcene,0),0)","v":0},"Řekni proč","kol. autorů","Encyklopedie",null,"Encyklopedie",38,null,1988]
[null,920,{"$f":"IFERROR(MATCH(B332,vypujcene,0),0)","v":0},"Řekni proč","kol. autorů","Encyklopedie",null,"Encyklopedie",38,null,1988]
[null,922,{"$f":"IFERROR(MATCH(B333,vypujcene,0),0)","v":0},"Slovník cizích slov","Klimeš","Český jazyk",null,"Český jazyk a lit.",56,null,1988]
[null,923,{"$f":"IFERROR(MATCH(B334,vypujcene,0),0)","v":0},"Slovník cizích slov","Klimeš","Český jazyk",null,"Český jazyk a lit.",56,null,1988]
[null,925,{"$f":"IFERROR(MATCH(B335,vypujcene,0),0)","v":0},"Rostliny - kapesní atlas","Hron","Rostliny",null,"Přírodopis",44,null,1988]
[null,926,{"$f":"IFERROR(MATCH(B336,vypujcene,0),0)","v":0},"Rostliny - kapesní atlas","Hron","Rostliny",null,"Přírodopis",44,null,1988]
[null,930,{"$f":"IFERROR(MATCH(B337,vypujcene,0),0)","v":0},"Kapesní atlas exotických rostlin","Haager a kolektiv","Rostliny",null,"Přírodopis",36,null,1988]
[null,931,{"$f":"IFERROR(MATCH(B338,vypujcene,0),0)","v":0},"Afrika","Vagner Josef","Příroda",null,"Přírodopis",110,null,1988]
[null,945,{"$f":"IFERROR(MATCH(B339,vypujcene,0),0)","v":0},"Migrace zvířat","Thompson John","Zvířata",null,"Přírodopis",75,null,1988]
[null,946,{"$f":"IFERROR(MATCH(B340,vypujcene,0),0)","v":0},"Pestrá příroda","Dobroruka Luděk","Encyklopedie",null,"Přírodopis",110,null,1988]
[null,948,{"$f":"IFERROR(MATCH(B341,vypujcene,0),0)","v":0},"Procházka Prahou","kol. autorů","Zeměpis",null,"Zeměpis",63,null,1988]
[null,950,{"$f":"IFERROR(MATCH(B342,vypujcene,0),0)","v":0},"Červená kniha - Ptáci","kol. autorů","Zvířata",null,"Přírodopis",67,null,1988]
[null,955,{"$f":"IFERROR(MATCH(B343,vypujcene,0),0)","v":0},"Slovník světových literárních děl","kol. autorů","Český jazyk",null,"Český jazyk a lit.",80,null,1988]
[null,956,{"$f":"IFERROR(MATCH(B344,vypujcene,0),0)","v":0},"Obojživelníci a plazi","Dmitrijev","Zvířata",null,"Přírodopis",52,null,1988]
[null,957,{"$f":"IFERROR(MATCH(B345,vypujcene,0),0)","v":0},"Příroda v ČSSR","kol. autorů","Příroda",null,"Přírodopis",105,null,1988]
[null,970,{"$f":"IFERROR(MATCH(B346,vypujcene,0),0)","v":0},"Příběhy, pověsti a pohádky paní hudby","Hostomská Anna","Pohádky",null,"Hudební výchova",32,null,1988]
[null,971,{"$f":"IFERROR(MATCH(B347,vypujcene,0),0)","v":0},"Starověké báje a pověsti","Mertlík","Báje a pověsti",null,null,55,null,1988]
[null,983,{"$f":"IFERROR(MATCH(B348,vypujcene,0),0)","v":0},"Kapesní atlas léčivých rostlin","Jirásek - Slaný","Rostliny",null,"Přírodopis",33,null,1989]
[null,984,{"$f":"IFERROR(MATCH(B349,vypujcene,0),0)","v":0},"Dobrodružství barvy","Brožková","Naučná",null,"Výtvarná výchova",40,null,1989]
[null,985,{"$f":"IFERROR(MATCH(B350,vypujcene,0),0)","v":0},"Slovník spisovného jazyka II","Havránek","Český jazyk",null,"Český jazyk a lit.",73,null,1989]
[null,986,{"$f":"IFERROR(MATCH(B351,vypujcene,0),0)","v":0},"Slovník spisovného jazyka I","Havránek","Český jazyk",null,"Český jazyk a lit.",75,null,1989]
[null,987,{"$f":"IFERROR(MATCH(B352,vypujcene,0),0)","v":0},"Přehled vývoje TV","Reitmayer","Sport",null,"Tělesná výchova",23,null,1989]
[null,990,{"$f":"IFERROR(MATCH(B353,vypujcene,0),0)","v":0},"Aprílová škola","Žáček Jiří","Poezie pro děti",null,null,15,null,1989]
[null,991,{"$f":"IFERROR(MATCH(B354,vypujcene,0),0)","v":0},"Aprílová škola","Žáček Jiří","Poezie pro děti",null,null,15,null,1989]
[null,992,{"$f":"IFERROR(MATCH(B355,vypujcene,0),0)","v":0},"Aprílová škola","Žáček Jiří","Poezie pro děti",null,null,15,null,1989]
[null,993,{"$f":"IFERROR(MATCH(B356,vypujcene,0),0)","v":0},"Aprílová škola","Žáček Jiří","Poezie pro děti",null,null,15,null,1989]
[null,994,{"$f":"IFERROR(MATCH(B357,vypujcene,0),0)","v":0},"Aprílová škola","Žáček Jiří","Poezie pro děti",null,null,15,null,1989]
[null,995,{"$f":"IFERROR(MATCH(B358,vypujcene,0),0)","v":0},"Aprílová škola","Žáček Jiří","Poezie pro děti",null,null,15,null,1989]
[null,996,{"$f":"IFERROR(MATCH(B359,vypujcene,0),0)","v":0},"Aprílová škola","Žáček Jiří","Poezie pro děti",null,null,15,null,1989]
[null,997,{"$f":"IFERROR(MATCH(B360,vypujcene,0),0)","v":0},"Aprílová škola","Žáček Jiří","Poezie pro děti",null,null,15,null,1989]
[null,998,{"$f":"IFERROR(MATCH(B361,vypujcene,0),0)","v":0},"Aprílová škola","Žáček Jiří","Poezie pro děti",null,null,15,null,1989]
[null,999,{"$f":"IFERROR(MATCH(B362,vypujcene,0),0)","v":0},"Aprílová škola","Žáček Jiří","Poezie pro děti",null,null,15,null,1989]
[null,1000,{"$f":"IFERROR(MATCH(B363,vypujcene,0),0)","v":0},"Aprílová škola","Žáček Jiří","Poezie pro děti",null,null,15,null,1989]
[null,1001,{"$f":"IFERROR(MATCH(B364,vypujcene,0),0)","v":0},"Aprílová škola","Žáček Jiří","Poezie pro děti",null,null,15,null,1989]
[null,1002,{"$f":"IFERROR(MATCH(B365,vypujcene,0),0)","v":0},"Aprílová škola","Žáček Jiří","Poezie pro děti",null,null,15,null,1989]
[null,1003,{"$f":"IFERROR(MATCH(B366,vypujcene,0),0)","v":0},"Aprílová škola","Žáček Jiří","Poezie pro děti",null,null,15,null,1989]
[null,1004,{"$f":"IFERROR(MATCH(B367,vypujcene,0),0)","v":0},"Aprílová škola","Žáček Jiří","Poezie pro děti",null,null,15,null,1989]
[null,1005,{"$f":"IFERROR(MATCH(B368,vypujcene,0),0)","v":0},"Aprílová škola","Žáček Jiří","Poezie pro děti",null,null,15,null,1989]
[null,1006,{"$f":"IFERROR(MATCH(B369,vypujcene,0),0)","v":0},"Aprílová škola","Žáček Jiří","Poezie pro děti",null,null,15,null,1989]
[null,1007,{"$f":"IFERROR(MATCH(B370,vypujcene,0),0)","v":0},"Aprílová škola","Žáček Jiří","Poezie pro děti",null,null,15,null,1989]
[null,1008,{"$f":"IFERROR(MATCH(B371,vypujcene,0),0)","v":0},"Aprílová škola","Žáček Jiří","Poezie pro děti",null,null,15,null,1989]
[null,1009,{"$f":"IFERROR(MATCH(B372,vypujcene,0),0)","v":0},"Aprílová škola","Žáček Jiří","Poezie pro děti",null,null,15,null,1989]
[null,1010,{"$f":"IFERROR(MATCH(B373,vypujcene,0),0)","v":0},"Aprílová škola","Žáček Jiří","Poezie pro děti",null,null,15,null,1989]
[null,1011,{"$f":"IFERROR(MATCH(B374,vypujcene,0),0)","v":0},"Aprílová škola","Žáček Jiří","Poezie pro děti",null,null,15,null,1989]
[null,1012,{"$f":"IFERROR(MATCH(B375,vypujcene,0),0)","v":0},"Aprílová škola","Žáček Jiří","Poezie pro děti",null,null,15,null,1989]
[null,1013,{"$f":"IFERROR(MATCH(B376,vypujcene,0),0)","v":0},"Aprílová škola","Žáček Jiří","Poezie pro děti",null,null,15,null,1989]
[null,1014,{"$f":"IFERROR(MATCH(B377,vypujcene,0),0)","v":0},"Aprílová škola","Žáček Jiří","Poezie pro děti",null,null,15,null,1989]
[null,1015,{"$f":"IFERROR(MATCH(B378,vypujcene,0),0)","v":0},"Aprílová škola","Žáček Jiří","Poezie pro děti",null,null,15,null,1989]
[null,1016,{"$f":"IFERROR(MATCH(B379,vypujcene,0),0)","v":0},"Aprílová škola","Žáček Jiří","Poezie pro děti",null,null,15,null,1989]
[null,1017,{"$f":"IFERROR(MATCH(B380,vypujcene,0),0)","v":0},"Aprílová škola","Žáček Jiří","Poezie pro děti",null,null,15,null,1989]
[null,1020,{"$f":"IFERROR(MATCH(B381,vypujcene,0),0)","v":0},"Slovník spisovného jazyka","kol. autorů","Český jazyk",null,"Český jazyk a lit.",78,null,1989]
[null,1021,{"$f":"IFERROR(MATCH(B382,vypujcene,0),0)","v":0},"Slovník spisovného jazyka","kol. autorů","Český jazyk",null,"Český jazyk a lit.",78,null,1989]
[null,1022,{"$f":"IFERROR(MATCH(B383,vypujcene,0),0)","v":0},"Slovník spisovného jazyka","kol. autorů","Český jazyk",null,"Český jazyk a lit.",78,null,1989]
[null,1024,{"$f":"IFERROR(MATCH(B384,vypujcene,0),0)","v":0},"Cesta slepých ptáků","Souček Ludvík","Sci-fi",null,"2. stupeň",50,null,1989]
[null,1025,{"$f":"IFERROR(MATCH(B385,vypujcene,0),0)","v":0},"Cesta slepých ptáků","Souček Ludvík","Sci-fi",null,"2. stupeň",50,null,1989]
[null,1028,{"$f":"IFERROR(MATCH(B386,vypujcene,0),0)","v":0},"Ivanhoe","Scott Walter","Dobrodružné",null,"2. stupeň",43,null,1989]
[null,1029,{"$f":"IFERROR(MATCH(B387,vypujcene,0),0)","v":0},"Ivanhoe","Scott Walter","Dobrodružné",null,"2. stupeň",43,null,1989]
[null,1030,{"$f":"IFERROR(MATCH(B388,vypujcene,0),0)","v":0},"Ivanhoe","Scott Walter","Dobrodružné",null,"2. stupeň",43,null,1989]
[null,1031,{"$f":"IFERROR(MATCH(B389,vypujcene,0),0)","v":0},"Ivanhoe","Scott Walter","Dobrodružné",null,"2. stupeň",43,null,1989]
[null,1032,{"$f":"IFERROR(MATCH(B390,vypujcene,0),0)","v":0},"Ivanhoe","Scott Walter","Dobrodružné",null,"2. stupeň",43,null,1989]
[null,1033,{"$f":"IFERROR(MATCH(B391,vypujcene,0),0)","v":0},"Dobrodružství Toma Sawyera","Twain Mark","Dobrodružné",null,"2. stupeň",30,null,1989]
[null,1034,{"$f":"IFERROR(MATCH(B392,vypujcene,0),0)","v":0},"Dobrodružství Toma Sawyera","Twain Mark","Dobrodružné",null,"2. stupeň",30,null,1989]
[null,1038,{"$f":"IFERROR(MATCH(B393,vypujcene,0),0)","v":0},"Bílé Karpaty","Pecina Pavel","Příroda",null,"Zeměpis",38,null,1989]
[null,1039,{"$f":"IFERROR(MATCH(B394,vypujcene,0),0)","v":0},"Bílé Karpaty","Pecina Pavel","Příroda",null,"Zeměpis",38,null,1989]
[null,1042,{"$f":"IFERROR(MATCH(B395,vypujcene,0),0)","v":0},"Spisovný slovník jazyka českého","kol. autorů","Český jazyk",null,"Český jazyk a lit.",60,null,1989]
[null,1043,{"$f":"IFERROR(MATCH(B396,vypujcene,0),0)","v":0},"Spisovný slovník jazyka českého","kol. autorů","Český jazyk",null,"Český jazyk a lit.",74,null,1989]
[null,1045,{"$f":"IFERROR(MATCH(B397,vypujcene,0),0)","v":0},"Pohádky","Erben Karel Jaromír","Pohádky",null,"Pohádky",30,null,1989]
[null,1046,{"$f":"IFERROR(MATCH(B398,vypujcene,0),0)","v":0},"Děti kapitána Granta","Verne Jules","Dobrodružné",null,"2. stupeň",54,null,1989]
[null,1047,{"$f":"IFERROR(MATCH(B399,vypujcene,0),0)","v":0},"S malířem kolem světa","Kalousek Jiří","Zeměpis",null,"Zeměpis",115,null,1990]
[null,1050,{"$f":"IFERROR(MATCH(B400,vypujcene,0),0)","v":0},"Maminka","Seifert Jaroslav","Poezie",null,null,16,null,1990]
[null,1051,{"$f":"IFERROR(MATCH(B401,vypujcene,0),0)","v":0},"Maminka","Seifert Jaroslav","Poezie",null,null,16,null,1990]
[null,1052,{"$f":"IFERROR(MATCH(B402,vypujcene,0),0)","v":0},"Maminka","Seifert Jaroslav","Poezie",null,null,16,null,1990]
[null,1053,{"$f":"IFERROR(MATCH(B403,vypujcene,0),0)","v":0},"Maminka","Seifert Jaroslav","Poezie",null,null,16,null,1990]
[null,1054,{"$f":"IFERROR(MATCH(B404,vypujcene,0),0)","v":0},"Maminka","Seifert Jaroslav","Poezie",null,null,16,null,1990]
[null,1055,{"$f":"IFERROR(MATCH(B405,vypujcene,0),0)","v":0},"Maminka","Seifert Jaroslav","Poezie",null,null,16,null,1990]
[null,1056,{"$f":"IFERROR(MATCH(B406,vypujcene,0),0)","v":0},"Maminka","Seifert Jaroslav","Poezie",null,null,16,null,1990]
[null,1057,{"$f":"IFERROR(MATCH(B407,vypujcene,0),0)","v":0},"Maminka","Seifert Jaroslav","Poezie",null,null,16,null,1990]
[null,1058,{"$f":"IFERROR(MATCH(B408,vypujcene,0),0)","v":0},"Maminka","Seifert Jaroslav","Poezie",null,null,16,null,1990]
[null,1059,{"$f":"IFERROR(MATCH(B409,vypujcene,0),0)","v":0},"Maminka","Seifert Jaroslav","Poezie",null,null,16,null,1990]
[null,1069,null,"Děti z Bullerbynu","Lindgrenová Astrid","Příběh ze života",null,null,52,null,1990]
[null,1070,{"$f":"IFERROR(MATCH(B411,vypujcene,0),0)","v":0},"Děti z Bullerbynu","Lindgrenová Astrid","Příběh ze života",null,null,52,null,1990]
[null,1071,{"$f":"IFERROR(MATCH(B412,vypujcene,0),0)","v":0},"Děti z Bullerbynu","Lindgrenová Astrid","Příběh ze života",null,null,52,null,1990]
[null,1072,{"$f":"IFERROR(MATCH(B413,vypujcene,0),0)","v":0},"Děti z Bullerbynu","Lindgrenová Astrid","Příběh ze života",null,null,52,null,1990]
[null,1073,{"$f":"IFERROR(MATCH(B414,vypujcene,0),0)","v":0},"Děti z Bullerbynu","Lindgrenová Astrid","Příběh ze života",null,null,52,null,1990]
[null,1074,{"$f":"IFERROR(MATCH(B415,vypujcene,0),0)","v":0},"Děti z Bullerbynu","Lindgrenová Astrid","Příběh ze života",null,null,52,null,1990]
[null,1075,{"$f":"IFERROR(MATCH(B416,vypujcene,0),0)","v":0},"Děti z Bullerbynu","Lindgrenová Astrid","Příběh ze života",null,null,52,null,1990]
[null,1076,{"$f":"IFERROR(MATCH(B417,vypujcene,0),0)","v":0},"Děti z Bullerbynu","Lindgrenová Astrid","Příběh ze života",null,null,52,null,1990]
[null,1077,{"$f":"IFERROR(MATCH(B418,vypujcene,0),0)","v":0},"Děti z Bullerbynu","Lindgrenová Astrid","Příběh ze života",null,null,52,null,1990]
[null,1078,{"$f":"IFERROR(MATCH(B419,vypujcene,0),0)","v":0},"Děti z Bullerbynu","Lindgrenová Astrid","Příběh ze života",null,null,52,null,1990]
[null,1079,{"$f":"IFERROR(MATCH(B420,vypujcene,0),0)","v":0},"Děti z Bullerbynu","Lindgrenová Astrid","Příběh ze života",null,null,52,null,1990]
[null,1080,{"$f":"IFERROR(MATCH(B421,vypujcene,0),0)","v":0},"Děti z Bullerbynu","Lindgrenová Astrid","Příběh ze života",null,null,52,null,1990]
[null,1085,{"$f":"IFERROR(MATCH(B422,vypujcene,0),0)","v":0},"Kniha džunglí","Kipling Rudyard","Dobrodružné",null,null,58,null,1990]
[null,1093,{"$f":"IFERROR(MATCH(B423,vypujcene,0),0)","v":0},"Kronika dějin 20. století","Bowman John","Historie",null,"Dějepis",390,null,1995]
[null,1094,{"$f":"IFERROR(MATCH(B424,vypujcene,0),0)","v":0},"Velký atlas živočichů","kol. autorů","Zvířata",null,"Přírodopis",259,null,1995]
[null,1095,{"$f":"IFERROR(MATCH(B425,vypujcene,0),0)","v":0},"Země, vznik a vývoj","kol. autorů","Naučná",null,"Přírodopis",149,null,1995]
[null,1096,{"$f":"IFERROR(MATCH(B426,vypujcene,0),0)","v":0},"Velký atlas světových dějin","kol. autorů","Historie",null,"Dějepis",210,null,1995]
[null,1099,{"$f":"IFERROR(MATCH(B427,vypujcene,0),0)","v":0},"Zvířátka z celého světa","kol. autorů","Zvířata",null,"Přírodopis",49,null,1995]
[null,1101,{"$f":"IFERROR(MATCH(B428,vypujcene,0),0)","v":0},"Dobrodružství Hudkleberryho Fina","Twain Mark","Dobrodružné",null,"6. stupeň",32,null,1995]
[null,1102,{"$f":"IFERROR(MATCH(B429,vypujcene,0),0)","v":0},"Dobrodružství Hudkleberryho Fina","Twain Mark","Dobrodružné",null,"5. stupeň",32,null,1995]
[null,1103,{"$f":"IFERROR(MATCH(B430,vypujcene,0),0)","v":0},"Děti kapitána Granta","Verne Jules","Dobrodružné",null,"2. stupeň",30,null,1995]
[null,1104,{"$f":"IFERROR(MATCH(B431,vypujcene,0),0)","v":0},"Děti kapitána Granta","Verne Jules","Dobrodružné",null,"2. stupeň",30,null,1995]
[null,1105,{"$f":"IFERROR(MATCH(B432,vypujcene,0),0)","v":0},"Děti kapitána Granta","Verne Jules","Dobrodružné",null,"3. stupeň",30,null,1995]
[null,1106,{"$f":"IFERROR(MATCH(B433,vypujcene,0),0)","v":0},"Děti kapitána Granta","Verne Jules","Dobrodružné",null,"4. stupeň",30,null,1995]
[null,1107,{"$f":"IFERROR(MATCH(B434,vypujcene,0),0)","v":0},"Metráček","Rudolf Stanislav","Příběh ze života",null,null,50,null,1996]
[null,1108,{"$f":"IFERROR(MATCH(B435,vypujcene,0),0)","v":0},"Metráček","Rudolf Stanislav","Příběh ze života",null,null,50,null,1996]
[null,1109,{"$f":"IFERROR(MATCH(B436,vypujcene,0),0)","v":0},"Metráček","Rudolf Stanislav","Příběh ze života",null,null,50,null,1996]
[null,1110,{"$f":"IFERROR(MATCH(B437,vypujcene,0),0)","v":0},"Metráček","Rudolf Stanislav","Příběh ze života",null,null,50,null,1996]
[null,1111,{"$f":"IFERROR(MATCH(B438,vypujcene,0),0)","v":0},"Metráček","Rudolf Stanislav","Příběh ze života",null,null,50,null,1996]
[null,1112,{"$f":"IFERROR(MATCH(B439,vypujcene,0),0)","v":0},"Metráček","Rudolf Stanislav","Příběh ze života",null,null,50,null,1996]
[null,1112,{"$f":"IFERROR(MATCH(B440,vypujcene,0),0)","v":0},"Metráček","Rudolf Stanislav","Příběh ze života",null,null,50,null,1996]
[null,1114,{"$f":"IFERROR(MATCH(B441,vypujcene,0),0)","v":0},"Metráček","Rudolf Stanislav","Příběh ze života",null,null,50,null,1996]
[null,1115,{"$f":"IFERROR(MATCH(B442,vypujcene,0),0)","v":0},"Metráček","Rudolf Stanislav","Příběh ze života",null,null,50,null,1996]
[null,1118,{"$f":"IFERROR(MATCH(B443,vypujcene,0),0)","v":0},"Zlatí úhoři","Pavel Ota","Příběh ze života",null,null,60,null,1996]
[null,1119,{"$f":"IFERROR(MATCH(B444,vypujcene,0),0)","v":0},"Zlatí úhoři","Pavel Ota","Příběh ze života",null,null,60,null,1996]
[null,1120,{"$f":"IFERROR(MATCH(B445,vypujcene,0),0)","v":0},"Zlatí úhoři","Pavel Ota","Příběh ze života",null,null,60,null,1996]
[null,1121,{"$f":"IFERROR(MATCH(B446,vypujcene,0),0)","v":0},"Zlatí úhoři","Pavel Ota","Příběh ze života",null,null,60,null,1996]
[null,1123,{"$f":"IFERROR(MATCH(B447,vypujcene,0),0)","v":0},"Zlatí úhoři","Pavel Ota","Příběh ze života",null,null,60,null,1996]
[null,1124,{"$f":"IFERROR(MATCH(B448,vypujcene,0),0)","v":0},"Zlatí úhoři","Pavel Ota","Příběh ze života",null,null,60,null,1996]
[null,1125,{"$f":"IFERROR(MATCH(B449,vypujcene,0),0)","v":0},"Zlatí úhoři","Pavel Ota","Příběh ze života",null,null,60,null,1996]
[null,1128,{"$f":"IFERROR(MATCH(B450,vypujcene,0),0)","v":0},"O štěstí rybářském","Hule Miroslav","Pohádky",null,"Pohádky",30,null,1997]
[null,1130,{"$f":"IFERROR(MATCH(B451,vypujcene,0),0)","v":0},"O chlapci, který se nestal číslem","Klíma Ivan","2. svět. válka",null,null,0,"dar",1999]
[null,1131,{"$f":"IFERROR(MATCH(B452,vypujcene,0),0)","v":0},"Safari","Kimuri - Vágner","Příroda",null,"Přírodopis",0,"dar",1999]
[null,1132,{"$f":"IFERROR(MATCH(B453,vypujcene,0),0)","v":0},"Obsahy z děl světové literatury","Ulricková L.","Český jazyk",null,"Český jazyk a lit.",169,null,2000]
[null,1134,{"$f":"IFERROR(MATCH(B454,vypujcene,0),0)","v":0},"Řekni mi proč","Charman Andrew","Encyklopedie",null,"Encyklopedie",359,null,2000]
[null,1136,{"$f":"IFERROR(MATCH(B455,vypujcene,0),0)","v":0},"Škola kreslení a malování","kol. autorů","Tvoření",null,"Výtvarná výchova",229,null,2000]
[null,1137,{"$f":"IFERROR(MATCH(B456,vypujcene,0),0)","v":0},"Lidé a země","kol. autorů","Encyklopedie",null,"Encyklopedie",899,null,2000]
[null,1138,{"$f":"IFERROR(MATCH(B457,vypujcene,0),0)","v":0},"Obří dětská encyklopedie","kol. autorů","Encyklopedie",null,"Encyklopedie",449,null,2000]
[null,1140,{"$f":"IFERROR(MATCH(B458,vypujcene,0),0)","v":0},"Každý to zvládne","Jackson Paul","Tvoření",null,"Výtvarná výchova",249,null,2000]
[null,1141,{"$f":"IFERROR(MATCH(B459,vypujcene,0),0)","v":0},"Zeměpis světa","kol. autorů","Encyklopedie",null,"Zeměpis",500,null,2000]
[null,1141,{"$f":"IFERROR(MATCH(B460,vypujcene,0),0)","v":0},"Spisovný slovník jazyka českého","kol. autorů","Český jazyk",null,"Český jazyk a lit.",58,null,2000]
[null,1142,{"$f":"IFERROR(MATCH(B461,vypujcene,0),0)","v":0},"Galerie geniů","Haškovec - Muller","Osobnosti a osudy",null,"Dějepis",165,null,2000]
[null,1143,{"$f":"IFERROR(MATCH(B462,vypujcene,0),0)","v":0},"Galerie geniů","Haškovec - Muller","Osobnosti a osudy",null,"Dějepis",165,null,2000]
[null,1146,{"$f":"IFERROR(MATCH(B463,vypujcene,0),0)","v":0},"Dějiny světa v souvislostech","Geiss Imanuel","Historie",null,"Dějepis",150,null,2002]
[null,1147,{"$f":"IFERROR(MATCH(B464,vypujcene,0),0)","v":0},"Nejkrásnější pohádky","Andersen Hans Christian","Pohádky",null,"Pohádky",100,null,2002]
[null,1149,{"$f":"IFERROR(MATCH(B465,vypujcene,0),0)","v":0},"Já chci taky do školy","Lindgrenová Astrid","Příběh ze života",null,"1. stupeň",100,null,2003]
[null,1150,{"$f":"IFERROR(MATCH(B466,vypujcene,0),0)","v":0},"Zpěvník","Vodňanský","Zpěvník",null,"Hudební výchova",120,null,2003]
[null,1153,{"$f":"IFERROR(MATCH(B467,vypujcene,0),0)","v":0},"Harry Potter a tajemná komnata","Rowlingová J. K.","Fantasy",null,"2. stupeň",115,null,2003]
[null,1154,{"$f":"IFERROR(MATCH(B468,vypujcene,0),0)","v":0},"Harry Potter a kámen mudrců","Rowlingová J. K.","Fantasy",null,"2. stupeň",115,null,2003]
[null,1155,{"$f":"IFERROR(MATCH(B469,vypujcene,0),0)","v":0},"Pekelná třída","Steklač Vojtěch","Příběh ze života",null,"1. stupeň",135,null,2003]
[null,1156,{"$f":"IFERROR(MATCH(B470,vypujcene,0),0)","v":0},"Lucie, postrach ulice","Hofman Ota","Příběh ze života",null,"1. stupeň",138,null,2003]
[null,1157,{"$f":"IFERROR(MATCH(B471,vypujcene,0),0)","v":0},"Lucie, postrach ulice","Hofman Ota","Příběh ze života",null,"1. stupeň",138,null,2003]
[null,1158,{"$f":"IFERROR(MATCH(B472,vypujcene,0),0)","v":0},"Rok do kapsy","Muller, Tatíčková","Encyklopedie",null,"Dějepis",153,null,2003]
[null,1159,{"$f":"IFERROR(MATCH(B473,vypujcene,0),0)","v":0},"Bylinář","Bremnesová","Rostliny",null,"Přírodopis",200,null,2003]
[null,1160,{"$f":"IFERROR(MATCH(B474,vypujcene,0),0)","v":0},"Tajemství strašidelné věže","Blytonová Enid","Detektivka",null,"2. stupeň",123,null,2003]
[null,1161,{"$f":"IFERROR(MATCH(B475,vypujcene,0),0)","v":0},"Bílý tesák","London Jack","Dobrodružné",null,"2. stupeň",125,null,2003]
[null,1162,{"$f":"IFERROR(MATCH(B476,vypujcene,0),0)","v":0},"Černý hřebec","Farley Walter","Dobrodružné",null,"2. stupeň",135,null,2003]
[null,1164,{"$f":"IFERROR(MATCH(B477,vypujcene,0),0)","v":0},"Bob a Bobek","Jiránek - Šrut","Pohádky",null,"1. stupeň",135,null,2003]
[null,1165,{"$f":"IFERROR(MATCH(B478,vypujcene,0),0)","v":0},"Na každém prstu jeden","Ullrichová Hortense","Pro dospívající",null,"2. stupeň",115,null,2003]
[null,1166,{"$f":"IFERROR(MATCH(B479,vypujcene,0),0)","v":0},"Krtek a raketa","Miler Zdeněk","Pohádky",null,"1. stupeň",130,null,2005]
[null,1167,{"$f":"IFERROR(MATCH(B480,vypujcene,0),0)","v":0},"Krtek a raketa","Miler Zdeněk","Pohádky",null,"1. stupeň",130,null,2005]
[null,1169,{"$f":"IFERROR(MATCH(B481,vypujcene,0),0)","v":0},"Čarovná zima","Janssonová Tove","Pohádky",null,"1. stupeň",120,null,2005]
[null,1170,{"$f":"IFERROR(MATCH(B482,vypujcene,0),0)","v":0},"Pipi Dlouhá punčocha","Lindgrenová Astrid","Dobrodružné",null,"1. stupeň",190,null,2005]
[null,1171,{"$f":"IFERROR(MATCH(B483,vypujcene,0),0)","v":0},"Nikdo nejsme dokonalí","Fanta Vladimír","Naučná",null,"Výchova ke zdraví",150,null,2005]
[null,1172,{"$f":"IFERROR(MATCH(B484,vypujcene,0),0)","v":0},"Ať žijí duchové","Melíšek - Sýkora","Pohádky",null,"1. stupeň",125,null,2005]
[null,1173,{"$f":"IFERROR(MATCH(B485,vypujcene,0),0)","v":0},"Tatínku, ta se ti povedla","Svěrák Zdeněk","Pohádky",null,"1. stupeň",125,null,2005]
[null,1175,{"$f":"IFERROR(MATCH(B486,vypujcene,0),0)","v":0},"Tatínku, ta se ti povedla","Svěrák Zdeněk","Pohádky",null,"1. stupeň",125,null,2005]
[null,1176,{"$f":"IFERROR(MATCH(B487,vypujcene,0),0)","v":0},"Supervědátor","Colfer Eoin","Sci-fi",null,"2. stupeň",137,null,2005]
[null,1177,{"$f":"IFERROR(MATCH(B488,vypujcene,0),0)","v":0},"Kroniky Prydainu","Alexander Lloyd","Fantasy",null,"2. stupeň",200,null,2005]
[null,1178,{"$f":"IFERROR(MATCH(B489,vypujcene,0),0)","v":0},"Bob a Bobek na cestách","Šrut - Jiránek","Pohádky",null,"1. stupeň",140,null,2005]
[null,1180,{"$f":"IFERROR(MATCH(B490,vypujcene,0),0)","v":0},"Bob a Bobek na cestách","Šrut - Jiránek","Pohádky",null,"1. stupeň",140,null,2005]
[null,1182,{"$f":"IFERROR(MATCH(B491,vypujcene,0),0)","v":0},"Včelí medvídci","Kahoun Jiří","Pohádky",null,"1. stupeň",155,null,2005]
[null,1183,{"$f":"IFERROR(MATCH(B492,vypujcene,0),0)","v":0},"Včelí medvídci","Kahoun Jiří","Pohádky",null,"1. stupeň",155,null,2005]
[null,1185,{"$f":"IFERROR(MATCH(B493,vypujcene,0),0)","v":0},"Devatero pohádek","Čapek Karel","Pohádky",null,null,165,null,2005]
[null,1186,{"$f":"IFERROR(MATCH(B494,vypujcene,0),0)","v":0},"Devatero pohádek","Čapek Karel","Pohádky",null,null,165,null,2005]
[null,1187,{"$f":"IFERROR(MATCH(B495,vypujcene,0),0)","v":0},"Devatero pohádek","Čapek Karel","Pohádky",null,null,165,null,2005]
[null,1188,{"$f":"IFERROR(MATCH(B496,vypujcene,0),0)","v":0},"Devatero pohádek","Čapek Karel","Pohádky",null,null,165,null,2005]
[null,1189,{"$f":"IFERROR(MATCH(B497,vypujcene,0),0)","v":0},"Devatero pohádek","Čapek Karel","Pohádky",null,null,165,null,2005]
[null,1190,{"$f":"IFERROR(MATCH(B498,vypujcene,0),0)","v":0},"Krtek a Paraplíčko","Miler Zdeněk","Pohádky",null,"1. stupeň",125,null,2005]
[null,1192,{"$f":"IFERROR(MATCH(B499,vypujcene,0),0)","v":0},"Táto, mámo, řekni, proč","kol. autorů","Encyklopedie",null,"Encyklopedie",299,null,2005]
[null,1193,{"$f":"IFERROR(MATCH(B500,vypujcene,0),0)","v":0},"Dětský atlas",null,"Zeměpis",null,"Zeměpis",0,"dar",2005]
[null,1194,{"$f":"IFERROR(MATCH(B501,vypujcene,0),0)","v":0},"České zvyky a obyčeje","Vondrušková A.","-",null,"???",159,null,2005]
[null,1195,{"$f":"IFERROR(MATCH(B502,vypujcene,0),0)","v":0},"Jak přežít svou maličkost","Oomen F.","Příběh ze života",null,"2. stupeň",130,null,2005]
[null,1196,{"$f":"IFERROR(MATCH(B503,vypujcene,0),0)","v":0},"Slovník cizích slov","Klimeš Lumír","Český jazyk",null,"Český jazyk a lit.",299,null,2005]
[null,1197,{"$f":"IFERROR(MATCH(B504,vypujcene,0),0)","v":0},"Slovník cizích slov","Klimeš Lumír","Český jazyk",null,"Český jazyk a lit.",299,null,2005]
[null,1198,{"$f":"IFERROR(MATCH(B505,vypujcene,0),0)","v":0},"Slovník cizích slov","Klimeš Lumír","Český jazyk",null,"Český jazyk a lit.",299,null,2005]
[null,1199,{"$f":"IFERROR(MATCH(B506,vypujcene,0),0)","v":0},"Nový akademický slovník cizích slov A - Ž","Kraus J. a kol.","Český jazyk",null,"Český jazyk a lit.",495,null,2005]
[null,1200,{"$f":"IFERROR(MATCH(B507,vypujcene,0),0)","v":0},"Objevujeme svět","kol. autorů","Zeměpis",null,"Encyklopedie",930,null,2005]
[null,1201,{"$f":"IFERROR(MATCH(B508,vypujcene,0),0)","v":0},"Praha známá i neznámá","Motlová","Zeměpis",null,"Zeměpis",249,null,2005]
[null,1202,{"$f":"IFERROR(MATCH(B509,vypujcene,0),0)","v":0},"Gigantické stavby","Kirkwood J.","Encyklopedie",null,"Encyklopedie",199,null,2005]
[null,1203,{"$f":"IFERROR(MATCH(B510,vypujcene,0),0)","v":0},"Svět. kronika - Objevy a vynálezy","Meidentauer","Encyklopedie",null,"Encyklopedie",999,null,2005]
[null,1206,{"$f":"IFERROR(MATCH(B511,vypujcene,0),0)","v":0},"Všeobecný rozhled","Vogt","Encyklopedie",null,"Dějepis",149,null,2007]
[null,1207,{"$f":"IFERROR(MATCH(B512,vypujcene,0),0)","v":0},"Ezopovy bajky","Ezop","-",null,null,null,null,2007]
[null,1208,{"$f":"IFERROR(MATCH(B513,vypujcene,0),0)","v":0},"Obrázkový zeměpis - puzzle","Mappin Jennifer","Zeměpis",null,"Zeměpis",149,null,2007]
[null,1209,{"$f":"IFERROR(MATCH(B514,vypujcene,0),0)","v":0},"Obrázkový zeměpis - puzzle","Mappin Jennifer","Zeměpis",null,"Zeměpis",149,null,2007]
[null,1210,{"$f":"IFERROR(MATCH(B515,vypujcene,0),0)","v":0},"Druhá knížka Dědečka Večerníčka","Pavlovič Jozef","Pohádky",null,null,100,null,2008]
[null,1211,{"$f":"IFERROR(MATCH(B516,vypujcene,0),0)","v":0},"Druhá knížka Dědečka Večerníčka","Pavlovič Jozef","Pohádky",null,null,100,null,2008]
[null,1212,{"$f":"IFERROR(MATCH(B517,vypujcene,0),0)","v":0},"Druhá knížka Dědečka Večerníčka","Pavlovič Jozef","Pohádky",null,null,100,null,2008]
[null,1213,{"$f":"IFERROR(MATCH(B518,vypujcene,0),0)","v":0},"Druhá knížka Dědečka Večerníčka","Pavlovič Jozef","Pohádky",null,null,100,null,2008]
[null,1214,{"$f":"IFERROR(MATCH(B519,vypujcene,0),0)","v":0},"Druhá knížka Dědečka Večerníčka","Pavlovič Jozef","Pohádky",null,null,100,null,2008]
[null,1215,{"$f":"IFERROR(MATCH(B520,vypujcene,0),0)","v":0},"Druhá knížka Dědečka Večerníčka","Pavlovič Jozef","Pohádky",null,null,100,null,2008]
[null,1216,{"$f":"IFERROR(MATCH(B521,vypujcene,0),0)","v":0},"Druhá knížka Dědečka Večerníčka","Pavlovič Jozef","Pohádky",null,null,100,null,2008]
[null,1217,{"$f":"IFERROR(MATCH(B522,vypujcene,0),0)","v":0},"Druhá knížka Dědečka Večerníčka","Pavlovič Jozef","Pohádky",null,null,100,null,2008]
[null,1218,{"$f":"IFERROR(MATCH(B523,vypujcene,0),0)","v":0},"Druhá knížka Dědečka Večerníčka","Pavlovič Jozef","Pohádky",null,null,100,null,2008]
[null,1219,{"$f":"IFERROR(MATCH(B524,vypujcene,0),0)","v":0},"Druhá knížka Dědečka Večerníčka","Pavlovič Jozef","Pohádky",null,null,100,null,2008]
[null,1220,{"$f":"IFERROR(MATCH(B525,vypujcene,0),0)","v":0},"Druhá knížka Dědečka Večerníčka","Pavlovič Jozef","Pohádky",null,null,100,null,2008]
[null,1221,{"$f":"IFERROR(MATCH(B526,vypujcene,0),0)","v":0},"Druhá knížka Dědečka Večerníčka","Pavlovič Jozef","Pohádky",null,null,100,null,2008]
[null,1222,{"$f":"IFERROR(MATCH(B527,vypujcene,0),0)","v":0},"Druhá knížka Dědečka Večerníčka","Pavlovič Jozef","Pohádky",null,null,100,null,2008]
[null,1223,{"$f":"IFERROR(MATCH(B528,vypujcene,0),0)","v":0},"Druhá knížka Dědečka Večerníčka","Pavlovič Jozef","Pohádky",null,null,100,null,2008]
[null,1224,{"$f":"IFERROR(MATCH(B529,vypujcene,0),0)","v":0},"Druhá knížka Dědečka Večerníčka","Pavlovič Jozef","Pohádky",null,null,100,null,2008]
[null,1225,{"$f":"IFERROR(MATCH(B530,vypujcene,0),0)","v":0},"Druhá knížka Dědečka Večerníčka","Pavlovič Jozef","Pohádky",null,null,100,null,2008]
[null,1226,{"$f":"IFERROR(MATCH(B531,vypujcene,0),0)","v":0},"Druhá knížka Dědečka Večerníčka","Pavlovič Jozef","Pohádky",null,null,100,null,2008]
[null,1227,{"$f":"IFERROR(MATCH(B532,vypujcene,0),0)","v":0},"Druhá knížka Dědečka Večerníčka","Pavlovič Jozef","Pohádky",null,null,100,null,2008]
[null,1228,{"$f":"IFERROR(MATCH(B533,vypujcene,0),0)","v":0},"Druhá knížka Dědečka Večerníčka","Pavlovič Jozef","Pohádky",null,null,100,null,2008]
[null,1229,{"$f":"IFERROR(MATCH(B534,vypujcene,0),0)","v":0},"Druhá knížka Dědečka Večerníčka","Pavlovič Jozef","Pohádky",null,null,100,null,2008]
[null,1230,{"$f":"IFERROR(MATCH(B535,vypujcene,0),0)","v":0},"Baníčku, my jsme s tebou","Bruzl - Šiřina","Sport",null,null,0,"dar",2008]
[null,1231,{"$f":"IFERROR(MATCH(B536,vypujcene,0),0)","v":0},"Bronzový poklad","Štorch Eduard","Dobrodružné",null,null,139,null,2008]
[null,1232,{"$f":"IFERROR(MATCH(B537,vypujcene,0),0)","v":0},"Bronzový poklad","Štorch Eduard","Dobrodružné",null,null,139,null,2008]
[null,1233,{"$f":"IFERROR(MATCH(B538,vypujcene,0),0)","v":0},"Bronzový poklad","Štorch Eduard","Dobrodružné",null,null,139,null,2008]
[null,1234,{"$f":"IFERROR(MATCH(B539,vypujcene,0),0)","v":0},"Bronzový poklad","Štorch Eduard","Dobrodružné",null,null,139,null,2008]
[null,1235,{"$f":"IFERROR(MATCH(B540,vypujcene,0),0)","v":0},"Bronzový poklad","Štorch Eduard","Dobrodružné",null,null,139,null,2008]
[null,1236,{"$f":"IFERROR(MATCH(B541,vypujcene,0),0)","v":0},"Bronzový poklad","Štorch Eduard","Dobrodružné",null,null,139,null,2008]
[null,1237,{"$f":"IFERROR(MATCH(B542,vypujcene,0),0)","v":0},"Bronzový poklad","Štorch Eduard","Dobrodružné",null,null,139,null,2008]
[null,1238,{"$f":"IFERROR(MATCH(B543,vypujcene,0),0)","v":0},"Bronzový poklad","Štorch Eduard","Dobrodružné",null,null,139,null,2008]
[null,1239,{"$f":"IFERROR(MATCH(B544,vypujcene,0),0)","v":0},"Bronzový poklad","Štorch Eduard","Dobrodružné",null,null,139,null,2008]
[null,1240,{"$f":"IFERROR(MATCH(B545,vypujcene,0),0)","v":0},"Bronzový poklad","Štorch Eduard","Dobrodružné",null,null,139,null,2008]
[null,1241,{"$f":"IFERROR(MATCH(B546,vypujcene,0),0)","v":0},"Bronzový poklad","Štorch Eduard","Dobrodružné",null,null,139,null,2008]
[null,1242,{"$f":"IFERROR(MATCH(B547,vypujcene,0),0)","v":0},"Bronzový poklad","Štorch Eduard","Dobrodružné",null,null,139,null,2008]
[null,1243,{"$f":"IFERROR(MATCH(B548,vypujcene,0),0)","v":0},"Bronzový poklad","Štorch Eduard","Dobrodružné",null,null,139,null,2008]
[null,1244,{"$f":"IFERROR(MATCH(B549,vypujcene,0),0)","v":0},"Bronzový poklad","Štorch Eduard","Dobrodružné",null,null,139,null,2008]
[null,1245,{"$f":"IFERROR(MATCH(B550,vypujcene,0),0)","v":0},"Bronzový poklad","Štorch Eduard","Dobrodružné",null,null,139,null,2008]
[null,1246,{"$f":"IFERROR(MATCH(B551,vypujcene,0),0)","v":0},"Bronzový poklad","Štorch Eduard","Dobrodružné",null,null,139,null,2008]
[null,1247,{"$f":"IFERROR(MATCH(B552,vypujcene,0),0)","v":0},"Bronzový poklad","Štorch Eduard","Dobrodružné",null,null,139,null,2008]
[null,1248,{"$f":"IFERROR(MATCH(B553,vypujcene,0),0)","v":0},"Bronzový poklad","Štorch Eduard","Dobrodružné",null,null,139,null,2008]
[null,1249,{"$f":"IFERROR(MATCH(B554,vypujcene,0),0)","v":0},"Bronzový poklad","Štorch Eduard","Dobrodružné",null,null,139,null,2008]
[null,1250,{"$f":"IFERROR(MATCH(B555,vypujcene,0),0)","v":0},"Bronzový poklad","Štorch Eduard","Dobrodružné",null,null,139,null,2008]
[null,1251,{"$f":"IFERROR(MATCH(B556,vypujcene,0),0)","v":0},"Jmenuji se Martina","Březinová Ivona","Pro dospívající","od 14 let","2. stupeň",129,null,2008]
[null,1252,{"$f":"IFERROR(MATCH(B557,vypujcene,0),0)","v":0},"Jmenuji se Alice","Březinová Ivona","Pro dospívající","od 14 let","2. stupeň",129,null,2008]
[null,1257,{"$f":"IFERROR(MATCH(B558,vypujcene,0),0)","v":0},"Co dělat - kniha + DVD","Kašparová Kateřina","Naučná",null,"Výchova ke zdraví",86,null,2009]
[null,1258,{"$f":"IFERROR(MATCH(B559,vypujcene,0),0)","v":0},"Co dělat - kniha + DVD","Kašparová Kateřina","Naučná",null,"Výchova ke zdraví",86,null,2009]
[null,1259,{"$f":"IFERROR(MATCH(B560,vypujcene,0),0)","v":0},"Co dělat - kniha + DVD","Kašparová Kateřina","Naučná",null,"Výchova ke zdraví",86,null,2009]
[null,1260,{"$f":"IFERROR(MATCH(B561,vypujcene,0),0)","v":0},"Co dělat - kniha + DVD","Kašparová Kateřina","Naučná",null,"Výchova ke zdraví",86,null,2009]
[null,1261,{"$f":"IFERROR(MATCH(B562,vypujcene,0),0)","v":0},"Co dělat - kniha + DVD","Kašparová Kateřina","Naučná",null,"Výchova ke zdraví",86,null,2009]
[null,1262,{"$f":"IFERROR(MATCH(B563,vypujcene,0),0)","v":0},"Co dělat - kniha + DVD","Kašparová Kateřina","Naučná",null,"Výchova ke zdraví",86,null,2009]
[null,1263,{"$f":"IFERROR(MATCH(B564,vypujcene,0),0)","v":0},"Krtek a Vánoce","Miler Zdeněk","Pohádky",null,"1. stupeň",159,null,2009]
[null,1264,{"$f":"IFERROR(MATCH(B565,vypujcene,0),0)","v":0},"Krtek a Vánoce","Miler Zdeněk","Pohádky",null,"1. stupeň",159,null,2009]
[null,1265,{"$f":"IFERROR(MATCH(B566,vypujcene,0),0)","v":0},"Nekonečný příběh","Ende Michael","Fantasy",null,"2. stupeň",239,null,2009]
[null,1266,{"$f":"IFERROR(MATCH(B567,vypujcene,0),0)","v":0},"Tajemství spálené chaty","Blytonová","Detektivka",null,"2. stupeň",154,null,2009]
[null,1267,{"$f":"IFERROR(MATCH(B568,vypujcene,0),0)","v":0},"Míříme na Měsíc","Hergé","Komiks",null,"1. stupeň",109,null,2009]
[null,1268,{"$f":"IFERROR(MATCH(B569,vypujcene,0),0)","v":0},"Slovník českých synonym","kol. autorů","Český jazyk",null,"Český jazyk a lit.",79,null,2010]
[null,1269,{"$f":"IFERROR(MATCH(B570,vypujcene,0),0)","v":0},"Pravidla českého pravopisu","kol. autorů","Český jazyk",null,"Český jazyk a lit.",79,null,2010]
[null,1270,{"$f":"IFERROR(MATCH(B571,vypujcene,0),0)","v":0},"Slovník českých synonym","kol. autorů","Český jazyk",null,"Český jazyk a lit.",173,null,2010]
[null,1273,{"$f":"IFERROR(MATCH(B572,vypujcene,0),0)","v":0},"Ztrácím tep","Hartová Veronika","Poezie",null,"2. stupeň",29,null,2010]
[null,1274,{"$f":"IFERROR(MATCH(B573,vypujcene,0),0)","v":0},"Chatrč z kostí","Dolejší Pavel","dobrodružné",null,"2. stupeň",39,null,2010]
[null,1276,{"$f":"IFERROR(MATCH(B574,vypujcene,0),0)","v":0},"Já, Sindy","Brandejsová Irena","Příběh ze života",null,"2. stupeň",59,null,2010]
[null,1278,{"$f":"IFERROR(MATCH(B575,vypujcene,0),0)","v":0},"Diamantová cesta","Hlaváčová Iva","Fantasy",null,"2. stupeň",99,null,2010]
[null,1279,{"$f":"IFERROR(MATCH(B576,vypujcene,0),0)","v":0},"Diamantová cesta","Hlaváčová Iva","Fantasy",null,"2. stupeň",99,null,2010]
[null,1280,{"$f":"IFERROR(MATCH(B577,vypujcene,0),0)","v":0},"Dyslexie","Černá - Strnadová","-",null,null,99,null,2010]
[null,1282,{"$f":"IFERROR(MATCH(B578,vypujcene,0),0)","v":0},"Hybatelé dějin","kol. autorů","Osobnosti a osudy",null,"Dějepis",199,null,2011]
[null,1283,{"$f":"IFERROR(MATCH(B579,vypujcene,0),0)","v":0},"Nové Mikulášovy patálie - Návrat z prázdnin","Goscinny René","Příběh ze života",null,"1. stupeň",0,"dar",2011]
[null,1284,{"$f":"IFERROR(MATCH(B580,vypujcene,0),0)","v":0},"Obrázky z českých dějin a pověstí","kol. autorů","Historie",null,null,187,null,2012]
[null,1285,{"$f":"IFERROR(MATCH(B581,vypujcene,0),0)","v":0},"Obrázky z českých dějin a pověstí","kol. autorů","Historie",null,null,187,null,2012]
[null,1286,{"$f":"IFERROR(MATCH(B582,vypujcene,0),0)","v":0},"Obrázky z českých dějin a pověstí","kol. autorů","Historie",null,null,187,null,2012]
[null,1287,{"$f":"IFERROR(MATCH(B583,vypujcene,0),0)","v":0},"Obrázky z českých dějin a pověstí","kol. autorů","Historie",null,null,187,null,2012]
[null,1288,{"$f":"IFERROR(MATCH(B584,vypujcene,0),0)","v":0},"Obrázky z českých dějin a pověstí","kol. autorů","Historie",null,null,187,null,2012]
[null,1289,{"$f":"IFERROR(MATCH(B585,vypujcene,0),0)","v":0},"Obrázky z českých dějin a pověstí","kol. autorů","Historie",null,null,187,null,2012]
[null,1290,{"$f":"IFERROR(MATCH(B586,vypujcene,0),0)","v":0},"Obrázky z českých dějin a pověstí","kol. autorů","Historie",null,null,187,null,2012]
[null,1291,{"$f":"IFERROR(MATCH(B587,vypujcene,0),0)","v":0},"Obrázky z českých dějin a pověstí","kol. autorů","Historie",null,null,187,null,2012]
[null,1293,{"$f":"IFERROR(MATCH(B588,vypujcene,0),0)","v":0},"O svatém Cyrilu a svatém Metoději","Piťha Petr","Náboženství",null,"Dějepis",null,null,2020]
[null,1294,{"$f":"IFERROR(MATCH(B589,vypujcene,0),0)","v":0},"Pravěk","Parker Steve","Zvířata",null,"Přírodopis",0,"dar",2012]
[null,1295,{"$f":"IFERROR(MATCH(B590,vypujcene,0),0)","v":0},"Holocaust Romů v povídkách","Lacková Elena","Příběh ze života",null,"2. stupeň",0,"dar",2012]
[null,1296,{"$f":"IFERROR(MATCH(B591,vypujcene,0),0)","v":0},"Robinson Crusoe","Daniel Defoe","dobrodružné",null,null,224,null,2012]
[null,1297,{"$f":"IFERROR(MATCH(B592,vypujcene,0),0)","v":0},"Robinson Crusoe","Daniel Defoe","dobrodružné",null,null,224,null,2012]
[null,1298,{"$f":"IFERROR(MATCH(B593,vypujcene,0),0)","v":0},"Robinson Crusoe","Daniel Defoe","dobrodružné",null,null,224,null,2012]
[null,1299,{"$f":"IFERROR(MATCH(B594,vypujcene,0),0)","v":0},"Robinson Crusoe","Daniel Defoe","dobrodružné",null,null,224,null,2012]
[null,1300,{"$f":"IFERROR(MATCH(B595,vypujcene,0),0)","v":0},"Robinson Crusoe","Daniel Defoe","dobrodružné",null,null,224,null,2012]
[null,1301,{"$f":"IFERROR(MATCH(B596,vypujcene,0),0)","v":0},"Robinson Crusoe","Daniel Defoe","dobrodružné",null,null,224,null,2012]
[null,1302,{"$f":"IFERROR(MATCH(B597,vypujcene,0),0)","v":0},"Robinson Crusoe","Daniel Defoe","dobrodružné",null,null,224,null,2012]
[null,1303,{"$f":"IFERROR(MATCH(B598,vypujcene,0),0)","v":0},"Robinson Crusoe","Daniel Defoe","dobrodružné",null,null,224,null,2012]
[null,1304,{"$f":"IFERROR(MATCH(B599,vypujcene,0),0)","v":0},"Robinson Crusoe","Daniel Defoe","dobrodružné",null,null,224,null,2012]
[null,1305,{"$f":"IFERROR(MATCH(B600,vypujcene,0),0)","v":0},"Robinson Crusoe","Daniel Defoe","dobrodružné",null,null,224,null,2012]
[null,1306,{"$f":"IFERROR(MATCH(B601,vypujcene,0),0)","v":0},"Čertovo kopyto","Sviták Jan","dobrodružné",null,"2. stupeň",0,"dar",2012]
[null,1307,{"$f":"IFERROR(MATCH(B602,vypujcene,0),0)","v":0},"Nové Mikulášovy patálie","Goscinny René","Příběh ze života",null,null,154,null,2014]
[null,1308,{"$f":"IFERROR(MATCH(B603,vypujcene,0),0)","v":0},"Nové Mikulášovy patálie","Goscinny René","Příběh ze života",null,null,154,null,2014]
[null,1309,{"$f":"IFERROR(MATCH(B604,vypujcene,0),0)","v":0},"Nové Mikulášovy patálie","Goscinny René","Příběh ze života",null,null,154,null,2014]
[null,1310,{"$f":"IFERROR(MATCH(B605,vypujcene,0),0)","v":0},"Nové Mikulášovy patálie","Goscinny René","Příběh ze života",null,null,154,null,2014]
[null,1311,{"$f":"IFERROR(MATCH(B606,vypujcene,0),0)","v":0},"Nové Mikulášovy patálie","Goscinny René","Příběh ze života",null,null,154,null,2014]
[null,1312,{"$f":"IFERROR(MATCH(B607,vypujcene,0),0)","v":0},"Nové Mikulášovy patálie","Goscinny René","Příběh ze života",null,null,154,null,2014]
[null,1313,{"$f":"IFERROR(MATCH(B608,vypujcene,0),0)","v":0},"Nové Mikulášovy patálie","Goscinny René","Příběh ze života",null,null,154,null,2014]
[null,1314,{"$f":"IFERROR(MATCH(B609,vypujcene,0),0)","v":0},"Nové Mikulášovy patálie","Goscinny René","Příběh ze života",null,null,154,null,2014]
[null,1315,{"$f":"IFERROR(MATCH(B610,vypujcene,0),0)","v":0},"Nové Mikulášovy patálie","Goscinny René","Příběh ze života",null,null,154,null,2014]
[null,1316,{"$f":"IFERROR(MATCH(B611,vypujcene,0),0)","v":0},"Nové Mikulášovy patálie","Goscinny René","Příběh ze života",null,null,154,null,2014]
[null,1317,{"$f":"IFERROR(MATCH(B612,vypujcene,0),0)","v":0},"Nové Mikulášovy patálie","Goscinny René","Příběh ze života",null,null,154,null,2014]
[null,1318,{"$f":"IFERROR(MATCH(B613,vypujcene,0),0)","v":0},"Nové Mikulášovy patálie","Goscinny René","Příběh ze života",null,null,154,null,2014]
[null,1319,{"$f":"IFERROR(MATCH(B614,vypujcene,0),0)","v":0},"Nové Mikulášovy patálie","Goscinny René","Příběh ze života",null,null,154,null,2014]
[null,1320,{"$f":"IFERROR(MATCH(B615,vypujcene,0),0)","v":0},"Bohové a hrdinové antických bájí","Zamarovský Vojtěch","-",null,"Báje a pověsti",0,"dar",2014]
[null,1321,{"$f":"IFERROR(MATCH(B616,vypujcene,0),0)","v":0},"F. L. Věk I.","Jirásek Alois","Historie",null,"Čs. klasika",0,"dar",2014]
[null,1322,{"$f":"IFERROR(MATCH(B617,vypujcene,0),0)","v":0},"F. L. Věk II.","Jirásek Alois","Historie",null,"Čs. klasika",0,"dar",2014]
[null,1323,{"$f":"IFERROR(MATCH(B618,vypujcene,0),0)","v":0},"F. L. Věk III.","Jirásek Alois","Historie",null,"Čs. klasika",0,"dar",2014]
[null,1324,{"$f":"IFERROR(MATCH(B619,vypujcene,0),0)","v":0},"F. L. Věk IV.","Jirásek Alois","Historie",null,"Čs. Klasika",0,"dar",2014]
[null,1325,{"$f":"IFERROR(MATCH(B620,vypujcene,0),0)","v":0},"Poklad","Jirásek Alois","Historie",null,"Čs. klasika",0,"dar",2014]
[null,1326,{"$f":"IFERROR(MATCH(B621,vypujcene,0),0)","v":0},"Romeo, Julie a tma","Otčenášek Jan","Pro dospívající",null,"Čs. klasika",0,null,2014]
[null,1327,{"$f":"IFERROR(MATCH(B622,vypujcene,0),0)","v":0},"První čtení pro děti","Eislerová Jana","Historie",null,null,159,null,2014]
[null,1328,{"$f":"IFERROR(MATCH(B623,vypujcene,0),0)","v":0},"První čtení pro děti","Eislerová Jana","Historie",null,null,159,null,2014]
[null,1329,{"$f":"IFERROR(MATCH(B624,vypujcene,0),0)","v":0},"První čtení pro děti","Eislerová Jana","Historie",null,null,159,null,2014]
[null,1330,{"$f":"IFERROR(MATCH(B625,vypujcene,0),0)","v":0},"První čtení pro děti","Eislerová Jana","Historie",null,null,159,null,2014]
[null,1331,{"$f":"IFERROR(MATCH(B626,vypujcene,0),0)","v":0},"První čtení pro děti","Eislerová Jana","Historie",null,null,159,null,2014]
[null,1332,{"$f":"IFERROR(MATCH(B627,vypujcene,0),0)","v":0},"První čtení pro děti","Eislerová Jana","Historie",null,null,159,null,2014]
[null,1333,{"$f":"IFERROR(MATCH(B628,vypujcene,0),0)","v":0},"První čtení pro děti","Eislerová Jana","Historie",null,null,159,null,2014]
[null,1334,{"$f":"IFERROR(MATCH(B629,vypujcene,0),0)","v":0},"První čtení pro děti","Eislerová Jana","Historie",null,null,159,null,2014]
[null,1335,{"$f":"IFERROR(MATCH(B630,vypujcene,0),0)","v":0},"První čtení pro děti","Eislerová Jana","Historie",null,null,159,null,2014]
[null,1336,{"$f":"IFERROR(MATCH(B631,vypujcene,0),0)","v":0},"První čtení pro děti","Eislerová Jana","Historie",null,null,159,null,2014]
[null,1337,{"$f":"IFERROR(MATCH(B632,vypujcene,0),0)","v":0},"První čtení pro děti","Eislerová Jana","Historie",null,null,159,null,2014]
[null,1338,{"$f":"IFERROR(MATCH(B633,vypujcene,0),0)","v":0},"Slovník spisovné češtiny","kol. autorů","Český jazyk",null,"Český jazyk a lit.",262,null,2014]
[null,1339,{"$f":"IFERROR(MATCH(B634,vypujcene,0),0)","v":0},"Slovník spisovné češtiny","kol. autorů","Český jazyk",null,"Český jazyk a lit.",262,null,2014]
[null,1340,{"$f":"IFERROR(MATCH(B635,vypujcene,0),0)","v":0},"Slovník spisovné češtiny","kol. autorů","Český jazyk",null,"Český jazyk a lit.",262,null,2014]
[null,1341,{"$f":"IFERROR(MATCH(B636,vypujcene,0),0)","v":0},"Slovník spisovné češtiny","kol. autorů","Český jazyk",null,"Český jazyk a lit.",262,null,2014]
[null,1342,{"$f":"IFERROR(MATCH(B637,vypujcene,0),0)","v":0},"Slovník spisovné češtiny","kol. autorů","Český jazyk",null,"Český jazyk a lit.",262,null,2014]
[null,1343,{"$f":"IFERROR(MATCH(B638,vypujcene,0),0)","v":0},"Slovník spisovné češtiny","kol. autorů","Český jazyk",null,"Český jazyk a lit.",262,null,2014]
[null,1344,{"$f":"IFERROR(MATCH(B639,vypujcene,0),0)","v":0},"Slovník spisovné češtiny","kol. autorů","Český jazyk",null,"Český jazyk a lit.",262,null,2014]
[null,1345,{"$f":"IFERROR(MATCH(B640,vypujcene,0),0)","v":0},"Slovník spisovné češtiny","kol. autorů","Český jazyk",null,"Český jazyk a lit.",262,null,2014]
[null,1346,{"$f":"IFERROR(MATCH(B641,vypujcene,0),0)","v":0},"Slovník spisovné češtiny","kol. autorů","Český jazyk",null,"Český jazyk a lit.",262,null,2014]
[null,1347,{"$f":"IFERROR(MATCH(B642,vypujcene,0),0)","v":0},"Slovník spisovné češtiny","kol. autorů","Český jazyk",null,"Český jazyk a lit.",262,null,2014]
[null,1348,{"$f":"IFERROR(MATCH(B643,vypujcene,0),0)","v":0},"Slovník spisovné češtiny","kol. autorů","Český jazyk",null,"Český jazyk a lit.",262,null,2014]
[null,1349,{"$f":"IFERROR(MATCH(B644,vypujcene,0),0)","v":0},"Slovník spisovné češtiny","kol. autorů","Český jazyk",null,"Český jazyk a lit.",262,null,2014]
[null,1350,{"$f":"IFERROR(MATCH(B645,vypujcene,0),0)","v":0},"Slovník spisovné češtiny","kol. autorů","Český jazyk",null,"Český jazyk a lit.",262,null,2014]
[null,1351,{"$f":"IFERROR(MATCH(B646,vypujcene,0),0)","v":0},"Slovník spisovné češtiny","kol. autorů","Český jazyk",null,"Český jazyk a lit.",262,null,2014]
[null,1352,{"$f":"IFERROR(MATCH(B647,vypujcene,0),0)","v":0},"Slovník spisovné češtiny","kol. autorů","Český jazyk",null,"Český jazyk a lit.",262,null,2014]
[null,1353,{"$f":"IFERROR(MATCH(B648,vypujcene,0),0)","v":0},"Pravidla českého pravopisu","kol. autorů","Český jazyk",null,"Český jazyk a lit.",149,null,2014]
[null,1354,{"$f":"IFERROR(MATCH(B649,vypujcene,0),0)","v":0},"Putování českými dějinami","Kučerová Radka","Historie",null,null,0,null,2014]
[null,1355,{"$f":"IFERROR(MATCH(B650,vypujcene,0),0)","v":0},"Malované čtení","Havel Jiří","Humor",null,null,150,null,2014]
[null,1356,{"$f":"IFERROR(MATCH(B651,vypujcene,0),0)","v":0},"Malované čtení","Havel Jiří","Humor",null,null,150,null,2014]
[null,1357,{"$f":"IFERROR(MATCH(B652,vypujcene,0),0)","v":0},"Malované čtení","Havel Jiří","Humor",null,null,150,null,2014]
[null,1358,{"$f":"IFERROR(MATCH(B653,vypujcene,0),0)","v":0},"Malované čtení","Havel Jiří","Humor",null,null,150,null,2014]
[null,1359,{"$f":"IFERROR(MATCH(B654,vypujcene,0),0)","v":0},"Malované čtení","Havel Jiří","Humor",null,null,150,null,2014]
[null,1360,{"$f":"IFERROR(MATCH(B655,vypujcene,0),0)","v":0},"Malované čtení","Havel Jiří","Humor",null,null,150,null,2014]
[null,1361,{"$f":"IFERROR(MATCH(B656,vypujcene,0),0)","v":0},"Malované čtení","Havel Jiří","Humor",null,null,150,null,2014]
[null,1362,{"$f":"IFERROR(MATCH(B657,vypujcene,0),0)","v":0},"Malované čtení","Havel Jiří","Humor",null,null,150,null,2014]
[null,1363,{"$f":"IFERROR(MATCH(B658,vypujcene,0),0)","v":0},"Malované čtení","Havel Jiří","Humor",null,null,150,null,2014]
[null,1364,{"$f":"IFERROR(MATCH(B659,vypujcene,0),0)","v":0},"Malované čtení","Havel Jiří","Humor",null,null,150,null,2014]
[null,1365,{"$f":"IFERROR(MATCH(B660,vypujcene,0),0)","v":0},"Kryštof a Očoun","Pospíšilová Zuzana","Dobrodružné","od 5 let","1. stupeň",0,"dar",2017]
[null,1366,{"$f":"IFERROR(MATCH(B661,vypujcene,0),0)","v":0},"Myslí ptáci na legraci?","Pospíšilová Zuzana","Poezie","od 5 let","1. stupeň",0,"dar",2017]
[null,1367,{"$f":"IFERROR(MATCH(B662,vypujcene,0),0)","v":0},"Ježimlada Stazička","Rožnovská Lenka","Pohádky","od 5 let","1. stupeň",0,"dar",2017]
[null,1368,{"$f":"IFERROR(MATCH(B663,vypujcene,0),0)","v":0},"Všehochuť","Reschová Stanislava","Humor",null,"1. stupeň",0,"dar",2017]
[null,1369,{"$f":"IFERROR(MATCH(B664,vypujcene,0),0)","v":0},"Duhový cirkus","Neomillnerová","Humor",null,"1. stupeň",0,"dar",2017]
[null,1371,{"$f":"IFERROR(MATCH(B665,vypujcene,0),0)","v":0},"Vzhůru do Afriky","Řezáčová Helena","Dobrodružné",null,"1. stupeň",0,"dar",2017]
[null,1372,{"$f":"IFERROR(MATCH(B666,vypujcene,0),0)","v":0},"Ve staré cihelně se svítí","Šlik Petr Hugo","Dobrodružné",null,"2. stupeň",191,null,2018]
[null,1373,{"$f":"IFERROR(MATCH(B667,vypujcene,0),0)","v":0},"Po stopách ztraceného Syna","Šlik Petr Hugo","Dobrodružné",null,"2.stupeň",191,null,2018]
[null,1374,{"$f":"IFERROR(MATCH(B668,vypujcene,0),0)","v":0},"Rychlé šípy ve Stínadlech","Foglar Jaroslav","Komiks",null,"2.stupeň",87,null,2018]
[null,1375,{"$f":"IFERROR(MATCH(B669,vypujcene,0),0)","v":0},"Vinnetou - Rudý gentleman","May Carl","Dobrodružné",null,"2.stupeň",303,null,2018]
[null,1376,{"$f":"IFERROR(MATCH(B670,vypujcene,0),0)","v":0},"Řvi potichu, brácho","Březinová Ivona","Příběh ze života",null,"2.stupeň",164,null,2018]
[null,1377,{"$f":"IFERROR(MATCH(B671,vypujcene,0),0)","v":0},"Řvi potichu, brácho","Březinová Ivona","Příběh ze života",null,"2.stupeň",164,null,2018]
[null,1378,{"$f":"IFERROR(MATCH(B672,vypujcene,0),0)","v":0},"Dívka z inkoustu a hvězd","Hargrave K. M.","Fantasy",null,"2.stupeň",198,null,2018]
[null,1379,{"$f":"IFERROR(MATCH(B673,vypujcene,0),0)","v":0},"Láska a gelato","Welchová","Pro dospívající",null,"2.stupeň",199,null,2018]
[null,1380,{"$f":"IFERROR(MATCH(B674,vypujcene,0),0)","v":0},"Vinnetou","May Carl","Dobrodružné",null,"2.stupeň",252,null,2018]
[null,1381,{"$f":"IFERROR(MATCH(B675,vypujcene,0),0)","v":0},"Tajný deník Adriana Molea","Towsendová Sue","Humor",null,"2.stupeň",196,null,2018]
[null,1382,{"$f":"IFERROR(MATCH(B676,vypujcene,0),0)","v":0},"Já, písničkář","Klus Tomáš","Zpěvník",null,"2.stupeň",137,null,2018]
[null,1383,{"$f":"IFERROR(MATCH(B677,vypujcene,0),0)","v":0},"Jmenuji se Ester","Březinová Ivona","Pro dospívající",null,"2.stupeň",184,null,2018]
[null,1384,{"$f":"IFERROR(MATCH(B678,vypujcene,0),0)","v":0},"Příběhy na dobrou noc pro malé rebelky","Favilli","Osobnosti a osudy",null,"2.stupeň",288,null,2018]
[null,1385,{"$f":"IFERROR(MATCH(B679,vypujcene,0),0)","v":0},"Lauro, ty jsi ale číslo","Březinová Ivona","Příběh ze života",null,"2.stupeň",284,null,2018]
[null,1386,{"$f":"IFERROR(MATCH(B680,vypujcene,0),0)","v":0},"Lauro, ty jsi ale číslo","Březinová Ivona","Příběh ze života",null,"2.stupeň",284,null,2018]
[null,1387,{"$f":"IFERROR(MATCH(B681,vypujcene,0),0)","v":0},"Zločin slečnám nesluší","Stevensová","Detektivka",null,"2.stupeň",232,null,2018]
[null,1388,{"$f":"IFERROR(MATCH(B682,vypujcene,0),0)","v":0},"Alea - dívka moře: Tajemství oceánu","Stewnerová Tanya","Fantasy",null,"2.stupeň",236,null,2018]
[null,1389,{"$f":"IFERROR(MATCH(B683,vypujcene,0),0)","v":0},"Co tu kvete?","Spohneová","Rostliny",null,"Přírodopis",399,null,2018]
[null,1390,{"$f":"IFERROR(MATCH(B684,vypujcene,0),0)","v":0},"Co tu kvete?","Spohneová","Rostliny",null,"Přírodopis",399,null,2018]
[null,1391,{"$f":"IFERROR(MATCH(B685,vypujcene,0),0)","v":0},"Co tu kvete?","Spohneová","Rostliny",null,"Přírodopis",399,null,2018]
[null,1392,{"$f":"IFERROR(MATCH(B686,vypujcene,0),0)","v":0},"Co tu kvete?","Spohneová","Rostliny",null,"Přírodopis",399,null,2018]
[null,1393,{"$f":"IFERROR(MATCH(B687,vypujcene,0),0)","v":0},"Co tu kvete?","Spohneová","Rostliny",null,"Přírodopis",399,null,2018]
[null,1394,{"$f":"IFERROR(MATCH(B688,vypujcene,0),0)","v":0},"Co tu kvete?","Spohneová","Rostliny",null,"Přírodopis",399,null,2018]
[null,1395,{"$f":"IFERROR(MATCH(B689,vypujcene,0),0)","v":0},"Zápisky z Rosewoodu - Princezna v utajení","Glynová Connie","Pro dospívající",null,"2.stupeň",233,null,2018]
[null,1396,{"$f":"IFERROR(MATCH(B690,vypujcene,0),0)","v":0},"Nebe, na němž nesvítily hvězdy","Schroder","Příběh ze života",null,"2.stupeň",319,"židovské téma",2018]
[null,1397,{"$f":"IFERROR(MATCH(B691,vypujcene,0),0)","v":0},"Tajemství jeskyně pokladů","Šlik Petr Hugo","Dobrodružné",null,"2.stupeň",184,null,2018]
[null,1398,{"$f":"IFERROR(MATCH(B692,vypujcene,0),0)","v":0},"Alea - dívka moře: Volání z hlubin","Stewnerová Tanya","Fantasy",null,"2.stupeň",249,null,2018]
[null,1399,{"$f":"IFERROR(MATCH(B693,vypujcene,0),0)","v":0},"Deník Baltazara Iks ","Cechia","Dobrodružné",null,"2.stupeň",194,null,2018]
[null,1400,{"$f":"IFERROR(MATCH(B694,vypujcene,0),0)","v":0},"Deník Baltazara Iks ","Cechia","Dobrodružné",null,"2.stupeň",194,null,2018]
[null,1401,{"$f":"IFERROR(MATCH(B695,vypujcene,0),0)","v":0},"Deník Baltazara Iks II","Cechia","Dobrodružné",null,"2.stupeň",194,null,2018]
[null,1402,{"$f":"IFERROR(MATCH(B696,vypujcene,0),0)","v":0},"Deník Baltazara Iks II","Cechia","Dobrodružné",null,"2.stupeň",194,null,2018]
[null,1403,{"$f":"IFERROR(MATCH(B697,vypujcene,0),0)","v":0},"Anna ze zeleného domu","Montgomeryová L. M.","Příběh ze života","od 11 let","2.stupeň",299,null,2018]
[null,1404,{"$f":"IFERROR(MATCH(B698,vypujcene,0),0)","v":0},"Jak správně mluvit dracky","Cowellová Cressida","Fantasy",null,"1. stupeň",176,null,2018]
[null,1405,{"$f":"IFERROR(MATCH(B699,vypujcene,0),0)","v":0},"Karlík a továrna na čokoládu","Dahl Roald","Fantasy",null,"1. stupeň",190,null,2018]
[null,1406,{"$f":"IFERROR(MATCH(B700,vypujcene,0),0)","v":0},"Dobrodružství Billa Madlafouska","Laňka David","Dobrodružné",null,"1. stupeň",176,null,2018]
[null,1407,{"$f":"IFERROR(MATCH(B701,vypujcene,0),0)","v":0},"Prevítovi","Dahl Roald","Dobrodružné",null,"1. stupeň",119,null,2018]
[null,1408,{"$f":"IFERROR(MATCH(B702,vypujcene,0),0)","v":0},"Jedenáct","Myracleová","Příběh ze života",null,"1. stupeň",170,null,2018]
[null,1409,{"$f":"IFERROR(MATCH(B703,vypujcene,0),0)","v":0},"Krysburger","Williams David","Dobrodružné",null,"1. stupeň",195,null,2018]
[null,1410,{"$f":"IFERROR(MATCH(B704,vypujcene,0),0)","v":0},"Doktor Proktor a prdicí prášek","Nesbo Jo","Humor","od 9 let","1. stupeň",164,null,2018]
[null,1411,{"$f":"IFERROR(MATCH(B705,vypujcene,0),0)","v":0},"Ztraceni v džungli","Brezina Thomas","Detektivka",null,"1. stupeň",157,null,2018]
[null,1412,{"$f":"IFERROR(MATCH(B706,vypujcene,0),0)","v":0},"Dědečkův velký útěk","Williams David","Dobrodružné",null,"1. stupeň",230,null,2018]
[null,1413,{"$f":"IFERROR(MATCH(B707,vypujcene,0),0)","v":0},"Nejhorší děti na světě","Williams David","Humor",null,"1. stupeň",237,null,2018]
[null,1414,{"$f":"IFERROR(MATCH(B708,vypujcene,0),0)","v":0},"Brontík - Rytíř z pravěku","Brezina Thomas","Dobrodružné",null,"1. stupeň",181,null,2018]
[null,1415,{"$f":"IFERROR(MATCH(B709,vypujcene,0),0)","v":0},"Písečný vlk","Lind Asa","Příběh ze života","od 9 let","1. stupeň",168,null,2018]
[null,1416,{"$f":"IFERROR(MATCH(B710,vypujcene,0),0)","v":0},"Velké myší spiknutí","Dahl Roald","Pohádky",null,"1. stupeň",116,null,2018]
[null,1417,{"$f":"IFERROR(MATCH(B711,vypujcene,0),0)","v":0},"Nové pohádky skřítka Medovníčka","Lebeda","Pohádky",null,"1. stupeň",188,null,2018]
[null,1418,{"$f":"IFERROR(MATCH(B712,vypujcene,0),0)","v":0},"Záhada školní půdy","Pospíšilová Zuzana","Dobrodružné",null,"1. stupeň",210,null,2018]
[null,1419,{"$f":"IFERROR(MATCH(B713,vypujcene,0),0)","v":0},"Ema a jednorožec - Kouzelný roh","Ciprová Oldřiška","Fantasy",null,"1. stupeň",168,null,2018]
[null,1420,{"$f":"IFERROR(MATCH(B714,vypujcene,0),0)","v":0},"Kluk v sukních","Williams David","Dobrodružné",null,"1. stupeň",195,null,2018]
[null,1421,{"$f":"IFERROR(MATCH(B715,vypujcene,0),0)","v":0},"Pomsta trapáků","Kowitt N. H.","Humor",null,"1. stupeň",154,null,2018]
[null,1422,{"$f":"IFERROR(MATCH(B716,vypujcene,0),0)","v":0},"Příšerní nezbedníci","Drijverová Martina","Pohádky",null,"1. stupeň",157,null,2018]
[null,1423,{"$f":"IFERROR(MATCH(B717,vypujcene,0),0)","v":0},"Pan Smraďoch","Williams David","Humor",null,"1. stupeň",195,null,2018]
[null,1424,{"$f":"IFERROR(MATCH(B718,vypujcene,0),0)","v":0},"Chechtavé pohádky","Pospíšilová Zuzana","Pohádky","od 4 let","1. stupeň",227,null,2018]
[null,1425,{"$f":"IFERROR(MATCH(B719,vypujcene,0),0)","v":0},"Malý miliardář","Williams David","Dobrodružné",null,"1. stupeň",195,null,2018]
[null,1426,{"$f":"IFERROR(MATCH(B720,vypujcene,0),0)","v":0},"Deník m. poseroutky - Výprava za teplem","Kinney Jeff","Humor",null,"1. stupeň",184,null,2018]
[null,1427,{"$f":"IFERROR(MATCH(B721,vypujcene,0),0)","v":0},"Detektivové a narozeninový případ","Pospíšilová Zuzana","Detektivka",null,"1. stupeň",193,null,2018]
[null,1428,{"$f":"IFERROR(MATCH(B722,vypujcene,0),0)","v":0},"Dvanáct ","Myracleová","Příběh ze života",null,"1. stupeň",170,null,2018]
[null,1429,{"$f":"IFERROR(MATCH(B723,vypujcene,0),0)","v":0},"Příšerná teta","Williams David","Fantasy",null,"1. stupeň",230,null,2018]
[null,1430,{"$f":"IFERROR(MATCH(B724,vypujcene,0),0)","v":0},"Dvojčata na stopě - Tajemný kód","Hendrych Josef","Detektivka",null,"1. stupeň",144,null,2018]
[null,1431,{"$f":"IFERROR(MATCH(B725,vypujcene,0),0)","v":0},"Moje první knížka pohádek","Zahálková","Pohádky",null,"1. stupeň",104,null,2018]
[null,1432,{"$f":"IFERROR(MATCH(B726,vypujcene,0),0)","v":0},"Medovníček a Medulka","Lebeda Jan","Pohádky",null,"1. stupeň",223,null,2018]
[null,1433,{"$f":"IFERROR(MATCH(B727,vypujcene,0),0)","v":0},"Ukradená data","Adamec Miroslav","Dobrodružné",null,"1. stupeň",157,null,2018]
[null,1434,{"$f":"IFERROR(MATCH(B728,vypujcene,0),0)","v":0},"Strašidelná knihovna - Ztracený duch","Buttlerová D. H.","Fantasy",null,"1. stupeň",237,null,2018]
[null,1435,{"$f":"IFERROR(MATCH(B729,vypujcene,0),0)","v":0},"Moje velká tlustá zombí ryba","O´harová","Dobrodružné",null,"1. stupeň",84,null,2018]
[null,1436,{"$f":"IFERROR(MATCH(B730,vypujcene,0),0)","v":0},"Lapuťák a kapitán Adorabl","Landsman","Dobrodružné",null,"1. stupeň",210,null,2018]
[null,1437,{"$f":"IFERROR(MATCH(B731,vypujcene,0),0)","v":0},"Malované čtení","Havel","Humor",null,"1. stupeň",203,null,2018]
[null,1438,{"$f":"IFERROR(MATCH(B732,vypujcene,0),0)","v":0},"Hasičské pohádky","Pospíšilová Zuzana","Pohádky",null,"1. stupeň",139,null,2018]
[null,1439,{"$f":"IFERROR(MATCH(B733,vypujcene,0),0)","v":0},"Devatero pohádek","Čapek Karel","Pohádky",null,null,203,null,2018]
[null,1440,{"$f":"IFERROR(MATCH(B734,vypujcene,0),0)","v":0},"Devatero pohádek","Čapek Karel","Pohádky",null,null,203,null,2018]
[null,1441,{"$f":"IFERROR(MATCH(B735,vypujcene,0),0)","v":0},"Devatero pohádek","Čapek Karel","Pohádky",null,null,203,null,2018]
[null,1442,{"$f":"IFERROR(MATCH(B736,vypujcene,0),0)","v":0},"Honzíkova cesta","Říha Bohumil","Příběh ze života","od 5 let",null,170,null,2018]
[null,1443,{"$f":"IFERROR(MATCH(B737,vypujcene,0),0)","v":0},"Honzíkova cesta","Říha Bohumil","Příběh ze života","od 5 let",null,170,null,2018]
[null,1444,{"$f":"IFERROR(MATCH(B738,vypujcene,0),0)","v":0},"Honzíkova cesta","Říha Bohumil","Příběh ze života","od 5 let",null,170,null,2018]
[null,1445,{"$f":"IFERROR(MATCH(B739,vypujcene,0),0)","v":0},"Honzíkova cesta","Říha Bohumil","Příběh ze života","od 5 let",null,170,null,2018]
[null,1446,{"$f":"IFERROR(MATCH(B740,vypujcene,0),0)","v":0},"Honzíkova cesta","Říha Bohumil","Příběh ze života","od 5 let",null,170,null,2018]
[null,1447,{"$f":"IFERROR(MATCH(B741,vypujcene,0),0)","v":0},"Honzíkova cesta","Říha Bohumil","Příběh ze života","od 5 let",null,170,null,2018]
[null,1448,{"$f":"IFERROR(MATCH(B742,vypujcene,0),0)","v":0},"Honzíkova cesta","Říha Bohumil","Příběh ze života","od 5 let",null,170,null,2018]
[null,1449,{"$f":"IFERROR(MATCH(B743,vypujcene,0),0)","v":0},"Honzíkova cesta","Říha Bohumil","Příběh ze života","od 5 let",null,170,null,2018]
[null,1450,{"$f":"IFERROR(MATCH(B744,vypujcene,0),0)","v":0},"Honzíkova cesta","Říha Bohumil","Příběh ze života","od 5 let",null,170,null,2018]
[null,1451,{"$f":"IFERROR(MATCH(B745,vypujcene,0),0)","v":0},"Honzíkova cesta","Říha Bohumil","Příběh ze života","od 5 let",null,170,null,2018]
[null,1452,{"$f":"IFERROR(MATCH(B746,vypujcene,0),0)","v":0},"Honzíkova cesta","Říha Bohumil","Příběh ze života","od 5 let",null,170,null,2018]
[null,1453,{"$f":"IFERROR(MATCH(B747,vypujcene,0),0)","v":0},"Honzíkova cesta","Říha Bohumil","Příběh ze života","od 5 let",null,170,null,2018]
[null,1454,{"$f":"IFERROR(MATCH(B748,vypujcene,0),0)","v":0},"Honzíkova cesta","Říha Bohumil","Příběh ze života","od 5 let",null,170,null,2018]
[null,1455,{"$f":"IFERROR(MATCH(B749,vypujcene,0),0)","v":0},"Honzíkova cesta","Říha Bohumil","Příběh ze života","od 5 let",null,170,null,2018]
[null,1456,{"$f":"IFERROR(MATCH(B750,vypujcene,0),0)","v":0},"Honzíkova cesta","Říha Bohumil","Příběh ze života","od 5 let",null,170,null,2018]
[null,1457,{"$f":"IFERROR(MATCH(B751,vypujcene,0),0)","v":0},"Nové Mikulášovy patálie - Sváteční oběd","Gosciny","Humor",null,null,157,null,2018]
[null,1458,{"$f":"IFERROR(MATCH(B752,vypujcene,0),0)","v":0},"Nové Mikulášovy patálie - Sváteční oběd","Gosciny","Humor",null,null,157,null,2018]
[null,1459,{"$f":"IFERROR(MATCH(B753,vypujcene,0),0)","v":0},"Nové Mikulášovy patálie - Sváteční oběd","Gosciny","Humor",null,null,157,null,2018]
[null,1460,{"$f":"IFERROR(MATCH(B754,vypujcene,0),0)","v":0},"Nové Mikulášovy patálie - Sváteční oběd","Gosciny","Humor",null,null,157,null,2018]
[null,1461,{"$f":"IFERROR(MATCH(B755,vypujcene,0),0)","v":0},"Nové Mikulášovy patálie - Sváteční oběd","Gosciny","Humor",null,null,157,null,2018]
[null,1462,{"$f":"IFERROR(MATCH(B756,vypujcene,0),0)","v":0},"Nové Mikulášovy patálie - Sváteční oběd","Gosciny","Humor",null,null,157,null,2018]
[null,1463,{"$f":"IFERROR(MATCH(B757,vypujcene,0),0)","v":0},"Nové Mikulášovy patálie - Sváteční oběd","Gosciny","Humor",null,null,157,null,2018]
[null,1464,{"$f":"IFERROR(MATCH(B758,vypujcene,0),0)","v":0},"Nové Mikulášovy patálie - Sváteční oběd","Gosciny","Humor",null,null,157,null,2018]
[null,1465,{"$f":"IFERROR(MATCH(B759,vypujcene,0),0)","v":0},"Nové Mikulášovy patálie - Sváteční oběd","Gosciny","Humor",null,null,157,null,2018]
[null,1466,{"$f":"IFERROR(MATCH(B760,vypujcene,0),0)","v":0},"Nové Mikulášovy patálie - Sváteční oběd","Gosciny","Humor",null,null,157,null,2018]
[null,1467,{"$f":"IFERROR(MATCH(B761,vypujcene,0),0)","v":0},"Nové Mikulášovy patálie - Sváteční oběd","Gosciny","Humor",null,null,157,null,2018]
[null,1468,{"$f":"IFERROR(MATCH(B762,vypujcene,0),0)","v":0},"Nové Mikulášovy patálie - Sváteční oběd","Gosciny","Humor",null,null,157,null,2018]
[null,1469,{"$f":"IFERROR(MATCH(B763,vypujcene,0),0)","v":0},"Nové Mikulášovy patálie - Sváteční oběd","Gosciny","Humor",null,null,157,null,2018]
[null,1470,{"$f":"IFERROR(MATCH(B764,vypujcene,0),0)","v":0},"Obrázky z č. dějin a pověstí","Černý a kol.","Komiks",null,null,184,null,2018]
[null,1471,{"$f":"IFERROR(MATCH(B765,vypujcene,0),0)","v":0},"Obrázky z č. dějin a pověstí","Černý a kol.","Komiks",null,null,184,null,2018]
[null,1472,{"$f":"IFERROR(MATCH(B766,vypujcene,0),0)","v":0},"Obrázky z č. dějin a pověstí","Černý a kol.","Komiks",null,null,184,null,2018]
[null,1473,{"$f":"IFERROR(MATCH(B767,vypujcene,0),0)","v":0},"Obrázky z č. dějin a pověstí","Černý a kol.","Komiks",null,null,184,null,2018]
[null,1474,{"$f":"IFERROR(MATCH(B768,vypujcene,0),0)","v":0},"Obrázky z č. dějin a pověstí","Černý a kol.","Komiks",null,null,184,null,2018]
[null,1475,{"$f":"IFERROR(MATCH(B769,vypujcene,0),0)","v":0},"Obrázky z č. dějin a pověstí","Černý a kol.","Komiks",null,null,184,null,2018]
[null,1476,{"$f":"IFERROR(MATCH(B770,vypujcene,0),0)","v":0},"Obrázky z č. dějin a pověstí","Černý a kol.","Komiks",null,null,184,null,2018]
[null,1477,{"$f":"IFERROR(MATCH(B771,vypujcene,0),0)","v":0},"Obrázky z č. dějin a pověstí","Černý a kol.","Komiks",null,null,184,null,2018]
[null,1478,{"$f":"IFERROR(MATCH(B772,vypujcene,0),0)","v":0},"Všehochuť","Reschová Stanislava","Humor",null,"1. stupeň",0,"dar",2018]
[null,1479,{"$f":"IFERROR(MATCH(B773,vypujcene,0),0)","v":0},"Duhový cirkus","Neomillnerová","Humor",null,"1. stupeň",0,"dar",2018]
[null,1480,{"$f":"IFERROR(MATCH(B774,vypujcene,0),0)","v":0},"Vzhůru do Afriky","Řezáčová Helena","Dobrodružné",null,"1. stupeň",0,"dar",2018]
[null,1481,{"$f":"IFERROR(MATCH(B775,vypujcene,0),0)","v":0},"Ten, který si všímal","Andrews Andy","Životní moudrost",null,"2. stupeň",190,null,2019]
[null,1482,{"$f":"IFERROR(MATCH(B776,vypujcene,0),0)","v":0},"Karpatské hry","Nevrlý Miroslav","Cestopisy",null,null,265,null,2019]
[null,1483,{"$f":"IFERROR(MATCH(B777,vypujcene,0),0)","v":0},"Co tu kvete?","Spohnová","Rostliny",null,"Přírodopis",399,null,2019]
[null,1484,{"$f":"IFERROR(MATCH(B778,vypujcene,0),0)","v":0},"Co tu kvete?","Spohnová","Rostliny",null,"Přírodopis",399,null,2019]
[null,1485,{"$f":"IFERROR(MATCH(B779,vypujcene,0),0)","v":0},"Co tu kvete?","Spohnová","Rostliny",null,"Přírodopis",399,null,2019]
[null,1486,{"$f":"IFERROR(MATCH(B780,vypujcene,0),0)","v":0},"Co tu kvete?","Spohnová","Rostliny",null,"Přírodopis",399,null,2019]
[null,1487,{"$f":"IFERROR(MATCH(B781,vypujcene,0),0)","v":0},"Co tu kvete?","Spohnová","Rostliny",null,"Přírodopis",399,null,2019]
[null,1488,{"$f":"IFERROR(MATCH(B782,vypujcene,0),0)","v":0},"Co tu kvete?","Spohnová Margot","Rostliny",null,"Přírodopis",399,null,2019]
[null,1489,{"$f":"IFERROR(MATCH(B783,vypujcene,0),0)","v":0},"Knihy džunglí","Kipling J. R.","Dobrodružné",null,"2. stupeň",187,null,2019]
[null,1490,{"$f":"IFERROR(MATCH(B784,vypujcene,0),0)","v":0},"Stezkami záhadných zvířat","Mareš Jaroslav","Zvířata",null,"Přírodopis",170,null,2019]
[null,1491,{"$f":"IFERROR(MATCH(B785,vypujcene,0),0)","v":0},"To nejdůležitější v životě","Urban Hal","Životní moudrost",null,"2. stupeň",25,null,2019]
[null,1492,{"$f":"IFERROR(MATCH(B786,vypujcene,0),0)","v":0},"Poutníkův dar","Andrews Andy","Životní moudrost",null,"2. stupeň",270,null,2019]
[null,1493,{"$f":"IFERROR(MATCH(B787,vypujcene,0),0)","v":0},"Ten, který se vrací","Andrews Andy","Životní moudrost",null,"2. stupeň",207,null,2019]
[null,1494,{"$f":"IFERROR(MATCH(B788,vypujcene,0),0)","v":0},"Princ se žlutou hvězdou","Tichý František","2. svět. válka",null,"2. stupeň",217,null,2019]
[null,1495,{"$f":"IFERROR(MATCH(B789,vypujcene,0),0)","v":0},"Kniha astronomie","kol. autorů","Vesmír",null,null,479,null,2019]
[null,1496,{"$f":"IFERROR(MATCH(B790,vypujcene,0),0)","v":0},"Poselství náčelníka Dana George","George Dan","Poezie",null,"2. stupeň",187,null,2019]
[null,1497,{"$f":"IFERROR(MATCH(B791,vypujcene,0),0)","v":0},"Poznáváme naše savce","Anděra, Horáček","Zvířata",null,"Přírodopis",261,null,2019]
[null,1498,{"$f":"IFERROR(MATCH(B792,vypujcene,0),0)","v":0},"Geologická abeceda","Kukal Zdeněk","Geologie",null,"Přírodopis",196,null,2019]
[null,1499,{"$f":"IFERROR(MATCH(B793,vypujcene,0),0)","v":0},"Škola malého stromu","Carter Forrest","Autobiografie",null,"2. stupeň",170,null,2019]
[null,1500,{"$f":"IFERROR(MATCH(B794,vypujcene,0),0)","v":0},"Chata v jezerní kotlině","Foglar Jaroslav","Dobrodružné",null,"2. stupeň",264,null,2019]
[null,1501,{"$f":"IFERROR(MATCH(B795,vypujcene,0),0)","v":0},"Hobit aneb cesta tam a zase zpátky","Tolkien J. R. R.","Fantasy",null,"2. stupeň",297,null,2019]
[null,1502,{"$f":"IFERROR(MATCH(B796,vypujcene,0),0)","v":0},"Transport za věčnost","Tichý František","2. svět. válka",null,"2. stupeň",189,null,2019]
[null,1503,{"$f":"IFERROR(MATCH(B797,vypujcene,0),0)","v":0},"Savci Evropy, severní Afriky…",null,"Zvířata",null,"Přírodopis",276,null,2019]
[null,1504,{"$f":"IFERROR(MATCH(B798,vypujcene,0),0)","v":0},"Lovec draků","Hosseini Khaled","Příběh ze života",null,"2. stupeň",85,null,2019]
[null,1505,{"$f":"IFERROR(MATCH(B799,vypujcene,0),0)","v":0},"Evropa, náš domov","Cílek Václav","Naučná",null,"Přírodopis",266,null,2019]
[null,1506,{"$f":"IFERROR(MATCH(B800,vypujcene,0),0)","v":0},"Děvčátko Momo a ukradený čas","Ende Michael","Fantasy",null,"2. stupeň",168,null,2019]
[null,1507,{"$f":"IFERROR(MATCH(B801,vypujcene,0),0)","v":0},"Kameny domova","Cílek Václav","Geologie",null,"Přírodopis",204,null,2019]
[null,1508,{"$f":"IFERROR(MATCH(B802,vypujcene,0),0)","v":0},"Slyšíš, jak mluví stromy","Wohlleben Peter","Příroda",null,"Přírodopis",218,null,2019]
[null,1509,{"$f":"IFERROR(MATCH(B803,vypujcene,0),0)","v":0},"Velká kniha drobné havěti","Zommer Yuval","Zvířata",null,"Přírodopis",236,null,2019]
[null,1510,{"$f":"IFERROR(MATCH(B804,vypujcene,0),0)","v":0},"Velká kniha mořské havěti","Zommer Yuval","Zvířata",null,"Přírodopis",238,null,2019]
[null,1511,{"$f":"IFERROR(MATCH(B805,vypujcene,0),0)","v":0},"Sestry hurikánu","Frank Dorothea","Příběh ze života",null,"2. stupeň",0,null,2019]
[null,1512,{"$f":"IFERROR(MATCH(B806,vypujcene,0),0)","v":0},"Habermannův mlýn","Urban Josef","2. svět. válka",null,"2. stupeň",0,null,2019]
[null,1513,{"$f":"IFERROR(MATCH(B807,vypujcene,0),0)","v":0},"Výtvarné nápady pro celý rok",null,"Tvoření",null,"Výtvarná vých.",0,null,2019]
[null,1514,{"$f":"IFERROR(MATCH(B808,vypujcene,0),0)","v":0},"Prodaná nevěsta","Marková Jiřina","Komiks",null,"Hudební vých.",0,null,2019]
[null,1515,{"$f":"IFERROR(MATCH(B809,vypujcene,0),0)","v":0},"Lásky českých spisovatelů","Drijverová Martina","Osobnosti a osudy",null,"Český jazyk a lit.",0,null,2019]
[null,1516,{"$f":"IFERROR(MATCH(B810,vypujcene,0),0)","v":0},"Tisíce planoucích sluncí","Hosseini Khaled","Příběh ze života",null,"2. stupeň",91,null,2019]
[null,1517,{"$f":"IFERROR(MATCH(B811,vypujcene,0),0)","v":0},"Příroda Slezska","kol. autorů","Příroda",null,"Přírodopis",499,null,2019]
[null,1518,{"$f":"IFERROR(MATCH(B812,vypujcene,0),0)","v":0},"Ptáci","Lang Angelika","Zvířata",null,"Přírodopis",149,null,2019]
[null,1519,{"$f":"IFERROR(MATCH(B813,vypujcene,0),0)","v":0},"Kvetoucí rostliny","Lang Angelika","Rostliny",null,"Přírodopis",104,null,2019]
[null,1520,{"$f":"IFERROR(MATCH(B814,vypujcene,0),0)","v":0},"Ptáci z naší zahrady","kol. autorů","Zvířata",null,"Přírodopis",96,null,2019]
[null,1521,{"$f":"IFERROR(MATCH(B815,vypujcene,0),0)","v":0},"Hmyz - pozorování a určování…","kol. autorů","Zvířata",null,"Přírodopis",92,null,2019]
[null,1522,{"$f":"IFERROR(MATCH(B816,vypujcene,0),0)","v":0},"Horské rostliny","Hofmannová Helga","Rostliny",null,"Přírodopis",92,null,2019]
[null,1523,{"$f":"IFERROR(MATCH(B817,vypujcene,0),0)","v":0},"Stopy zvířat","Lausser Martin","Zvířata",null,"Přírodopis",92,null,2019]
[null,1524,{"$f":"IFERROR(MATCH(B818,vypujcene,0),0)","v":0},"Léčivé rostliny",null,"Rostliny",null,"Přírodopis",92,null,2019]
[null,1525,{"$f":"IFERROR(MATCH(B819,vypujcene,0),0)","v":0},"Houby",null,"Rostliny",null,"Přírodopis",92,null,2019]
[null,1526,{"$f":"IFERROR(MATCH(B820,vypujcene,0),0)","v":0},"Animalium","Broom Jenny","Zvířata",null,"Přírodopis",340,null,2019]
[null,1527,{"$f":"IFERROR(MATCH(B821,vypujcene,0),0)","v":0},"Jedlé bylinky a plody","Hofmannová Helga","Rostliny",null,"Přírodopis",247,null,2019]
[null,1528,{"$f":"IFERROR(MATCH(B822,vypujcene,0),0)","v":0},"Botanicum","Broom Jenny","Rostliny",null,"Přírodopis",340,null,2019]
[null,1529,{"$f":"IFERROR(MATCH(B823,vypujcene,0),0)","v":0},"Příběh života",null,"Příroda",null,null,183,null,2019]
[null,1530,{"$f":"IFERROR(MATCH(B824,vypujcene,0),0)","v":0},"Dinosaurium","Wormell Chriss","Zvířata",null,"Přírodopis",340,null,2019]
[null,1531,{"$f":"IFERROR(MATCH(B825,vypujcene,0),0)","v":0},"Stromy a keře",null,"Rostliny",null,"Přírodopis",92,null,2019]
[null,1532,{"$f":"IFERROR(MATCH(B826,vypujcene,0),0)","v":0},"Ptáci na krmítku","Lang Angelika","Zvířata",null,"Přírodopis",96,null,2019]
[null,1533,{"$f":"IFERROR(MATCH(B827,vypujcene,0),0)","v":0},"Já jsem Malála","Yousafzai Malála","Autobiografie",null,"2. stupeň",0,null,2019]
[null,1534,{"$f":"IFERROR(MATCH(B828,vypujcene,0),0)","v":0},"Světem šumavské přírody","Kučerová Martina","Příroda",null,"Přírodopis",414,null,2019]
[null,1535,{"$f":"IFERROR(MATCH(B829,vypujcene,0),0)","v":0},"Světem šumavské přírody","Kučerová Martina","Příroda",null,"Přírodopis",414,null,2019]
[null,1536,{"$f":"IFERROR(MATCH(B830,vypujcene,0),0)","v":0},"Jde sem lesem","Krolupperová Daniela","Pohádky",null,"1. stupeň",104,null,2019]
[null,1537,{"$f":"IFERROR(MATCH(B831,vypujcene,0),0)","v":0},"Atlas vyhubených živočichů","Radek Malý","Zvířata",null,"Přírodopis",321,null,2019]
[null,1538,{"$f":"IFERROR(MATCH(B832,vypujcene,0),0)","v":0},"Pohádky čajových skřítků ","Kučera Zbyněk","Pohádky",null,"1. stupeň",191,null,2019]
[null,1539,{"$f":"IFERROR(MATCH(B833,vypujcene,0),0)","v":0},"Krvavé jahody","Kupka Jiří","Příběh ze života",null,"2. stupeň",224,null,2019]
[null,1540,{"$f":"IFERROR(MATCH(B834,vypujcene,0),0)","v":0},"Skřítek Kořínek","Streit Jakob","Pohádky",null,"1. stupeň",145,null,2019]
[null,1541,{"$f":"IFERROR(MATCH(B835,vypujcene,0),0)","v":0},"Jedlé rostliny z přírody","Lánská Dagmar","Rostliny",null,"Přírodopis",185,null,2019]
[null,1542,{"$f":"IFERROR(MATCH(B836,vypujcene,0),0)","v":0},"Láska k šutrům ","Vaněk Marcel","Geologie",null,"Přírodopis",321,null,2019]
[null,1543,{"$f":"IFERROR(MATCH(B837,vypujcene,0),0)","v":0},"Láska k šutrům pro děti","Vaněk Marcel","Geologie",null,"Přírodopis",330,null,2019]
[null,1544,{"$f":"IFERROR(MATCH(B838,vypujcene,0),0)","v":0},"Pohádky horských květin","Streit Jakob","Pohádky",null,"1. stupeň",161,null,2019]
[null,1545,{"$f":"IFERROR(MATCH(B839,vypujcene,0),0)","v":0},"Zvířata ve skutečné velikosti","Grott Isabella","Zvířata",null,"Přírodopis",243,null,2019]
[null,1546,{"$f":"IFERROR(MATCH(B840,vypujcene,0),0)","v":0},"Daleká cesta za domovem","Adams Richard","Dobrodružné",null,"2. stupeň",280,null,2019]
[null,1547,{"$f":"IFERROR(MATCH(B841,vypujcene,0),0)","v":0},"Krajiny domova","Cílek Václav","Příroda",null,"Přírodopis",251,null,2019]
[null,1548,{"$f":"IFERROR(MATCH(B842,vypujcene,0),0)","v":0},"Uprchlík na ptačím stromě","Sekora Ondřej","Pohádky",null,"1. stupeň",239,null,2019]
[null,1549,{"$f":"IFERROR(MATCH(B843,vypujcene,0),0)","v":0},"Pohádky čajových skřítků - Putování…","Kučera Zbyněk","Pohádky",null,"1. stupeň",197,null,2019]
[null,1550,{"$f":"IFERROR(MATCH(B844,vypujcene,0),0)","v":0},"Sloni, vlaštovky, delfíni","Ghromann Gerbert","Zvířata",null,"Přírodopis",157,null,2019]
[null,1551,{"$f":"IFERROR(MATCH(B845,vypujcene,0),0)","v":0},"Tuláci ze světa zvířat","Špačková Markéta","Zvířata",null,"Přírodopis",197,null,2019]
[null,1552,{"$f":"IFERROR(MATCH(B846,vypujcene,0),0)","v":0},"Jednosměrná jízdenka","Yaksha Katy","Autobiografie",null,"2. stupeň",196,null,2019]
[null,1553,{"$f":"IFERROR(MATCH(B847,vypujcene,0),0)","v":0},"Zvířata a rostliny v lese","Wohlleben Peter","Příroda",null,"Přírodopis",239,null,2019]
[null,1553,{"$f":"IFERROR(MATCH(B848,vypujcene,0),0)","v":0},"Utajený les","Haskell David","Příroda",null,"Přírodopis",239,null,2019]
[null,1554,{"$f":"IFERROR(MATCH(B849,vypujcene,0),0)","v":0},"Zima ve světě zvířat","Špačková Markéta","Zvířata",null,"Přírodopis",197,null,2019]
[null,1555,{"$f":"IFERROR(MATCH(B850,vypujcene,0),0)","v":0},"Zvířata v lese","Anděra Miloš","Zvířata",null,"Přírodopis",205,null,2019]
[null,1556,{"$f":"IFERROR(MATCH(B851,vypujcene,0),0)","v":0},"Příběhy skřítka Puka","Streit Jakob","Pohádky",null,"1. stupeň",143,null,2019]
[null,1557,{"$f":"IFERROR(MATCH(B852,vypujcene,0),0)","v":0},"Planetarium","Wormell Chriss","Vesmír",null,"Přírodopis",329,null,2019]
[null,1558,{"$f":"IFERROR(MATCH(B853,vypujcene,0),0)","v":0},"Alea, dívka moře - Barevné vody","Stewnerová Tanya","Fantasy",null,"2. stupeň",0,"dar",2019]
[null,1559,{"$f":"IFERROR(MATCH(B854,vypujcene,0),0)","v":0},"Tajemná zpráva","Press Julian","Detektivka",null,"2. stupeň",0,"dar",2019]
[null,1560,{"$f":"IFERROR(MATCH(B855,vypujcene,0),0)","v":0},"Klub tygrů - Po stopách Yettiho","Brezina Thomas","Dobrodružné",null,"1. stupeň",0,"dar",2019]
[null,1561,{"$f":"IFERROR(MATCH(B856,vypujcene,0),0)","v":0},"Chlapec na vrcholu hory","Boyne John","2. svět. válka",null,"2. stupeň",0,"dar",2019]
[null,1562,{"$f":"IFERROR(MATCH(B857,vypujcene,0),0)","v":0},"Bergogliův seznam","Scavo Nelto","Osobnosti a osudy",null,"2. stupeň",0,"dar",2019]
[null,1563,{"$f":"IFERROR(MATCH(B858,vypujcene,0),0)","v":0},"O třech stromech","Ringelt G.","Pohádky",null,"1. stupeň",0,"dar",2019]
[null,1564,{"$f":"IFERROR(MATCH(B859,vypujcene,0),0)","v":0},"Prvokující evangelia","Pronzato","Náboženství",null,"2. stupeň",0,"dar",2019]
[null,1565,{"$f":"IFERROR(MATCH(B860,vypujcene,0),0)","v":0},"Drakobijce","Domes M.","Dobrodružné",null,"1. stupeň",0,"dar",2019]
[null,1566,{"$f":"IFERROR(MATCH(B861,vypujcene,0),0)","v":0},"Odpustila jsem","Erwin S.","Osobnosti a osudy",null,"2. stupeň",0,"dar",2019]
[null,1567,{"$f":"IFERROR(MATCH(B862,vypujcene,0),0)","v":0},"Třešňovou alejí","Tvrdá Eva","Příběh ze života",null,"2. stupeň",0,"dar",2019]
[null,1568,{"$f":"IFERROR(MATCH(B863,vypujcene,0),0)","v":0},"Zlaté ruce","Carson Ben","Osobnosti a osudy",null,"2. stupeň",0,"dar",2019]
[null,1569,{"$f":"IFERROR(MATCH(B864,vypujcene,0),0)","v":0},"Útěk ze Sibiře","Piotrowski R.","Osobnosti a osudy",null,"2. stupeň",0,"dar",2019]
[null,1570,{"$f":"IFERROR(MATCH(B865,vypujcene,0),0)","v":0},"Darwinie","Wilson R. Ch.","Sci-fi",null,"2. stupeň",0,"dar",2019]
[null,1571,{"$f":"IFERROR(MATCH(B866,vypujcene,0),0)","v":0},"Ptáci Austrálie","Chvapil S.","Zvířata",null,"Přírodopis",0,"dar",2019]
[null,1572,{"$f":"IFERROR(MATCH(B867,vypujcene,0),0)","v":0},"Masožravé rostliny","Studnička M.","Rostliny",null,"Přírodopis",0,"dar",2019]
[null,1573,{"$f":"IFERROR(MATCH(B868,vypujcene,0),0)","v":0},"Povídání o pejskovi a kočičce","Čapek Josef","Pohádky",null,null,89,null,2019]
[null,1574,{"$f":"IFERROR(MATCH(B869,vypujcene,0),0)","v":0},"Povídání o pejskovi a kočičce","Čapek Josef","Pohádky",null,null,89,null,2019]
[null,1575,{"$f":"IFERROR(MATCH(B870,vypujcene,0),0)","v":0},"Povídání o pejskovi a kočičce","Čapek Josef","Pohádky",null,null,89,null,2019]
[null,1576,{"$f":"IFERROR(MATCH(B871,vypujcene,0),0)","v":0},"Povídání o pejskovi a kočičce","Čapek Josef","Pohádky",null,null,89,null,2019]
[null,1577,{"$f":"IFERROR(MATCH(B872,vypujcene,0),0)","v":0},"Vězeň noci a mlhy","Blaukmanová A.","2. svět. válka",null,"2. stupeň",0,"dar",2019]
[null,1578,{"$f":"IFERROR(MATCH(B873,vypujcene,0),0)","v":0},"Deníky Poliny Žerebcovové","Žerebcovová P.","Osobnosti a osudy",null,"2. stupeň",0,"dar",2019]
[null,1579,{"$f":"IFERROR(MATCH(B874,vypujcene,0),0)","v":0},"Ahatha Raisinová a výletníci","Beaton M. C.","Detektivka",null,"1. stupeň",0,"dar",2019]
[null,1580,{"$f":"IFERROR(MATCH(B875,vypujcene,0),0)","v":0},"O Záhořovi, prasátku s kníry","Binar Ivan","Pohádky",null,"1. stupeň",0,"dar",2019]
[null,1581,{"$f":"IFERROR(MATCH(B876,vypujcene,0),0)","v":0},"Nejkrásnější české pohádky",null,"Pohádky",null,"1. stupeň",0,"dar",2019]
[null,1582,{"$f":"IFERROR(MATCH(B877,vypujcene,0),0)","v":0},"Povídání o pejskovi a kočičce","Čapek Josef","Pohádky",null,null,89,null,2019]
[null,1583,{"$f":"IFERROR(MATCH(B878,vypujcene,0),0)","v":0},"Povídání o pejskovi a kočičce","Čapek Josef","Pohádky",null,null,89,null,2019]
[null,1584,{"$f":"IFERROR(MATCH(B879,vypujcene,0),0)","v":0},"Na svou první velrybu nikdy nezapomeneš","Kiefner Ralf","Zvířata",null,"Přírodopis",226,"šablony II",2020]
[null,1585,{"$f":"IFERROR(MATCH(B880,vypujcene,0),0)","v":0},"Já chci být archeologem","Sklenářová - Popelka","Naučná",null,"Přírodopis",208,"šablony II",2020]
[null,1586,{"$f":"IFERROR(MATCH(B881,vypujcene,0),0)","v":0},"Proč má kos žlutý nos","Šoltys Vladimír","Zvířata","od 7 let","Přírodopis",187,"šablony II",2020]
[null,1587,{"$f":"IFERROR(MATCH(B882,vypujcene,0),0)","v":0},"Doteky přírody","Chaloupek Václav","Příroda",null,"Přírodopis",265,"šablony II",2020]
[null,1588,{"$f":"IFERROR(MATCH(B883,vypujcene,0),0)","v":0},"Krajina s vlky","Kvasnica Jaroslav","Zvířata",null,"Přírodopis",437,"šablony II",2020]
[null,1589,{"$f":"IFERROR(MATCH(B884,vypujcene,0),0)","v":0},"Měli dinosauři blechy?","Táborská Pavlína","Příroda","od 8 let",null,208,"šablony II",2020]
[null,1590,{"$f":"IFERROR(MATCH(B885,vypujcene,0),0)","v":0},"Můj přítel rys","Kunc Ludvík","Zvířata",null,"Přírodopis",319,"šablony II",2020]
[null,1591,{"$f":"IFERROR(MATCH(B886,vypujcene,0),0)","v":0},"Jevy na hvězdné obloze","Kraul Walter","Vesmír",null,"Přírodopis",240,"šablony II",2020]
[null,1592,{"$f":"IFERROR(MATCH(B887,vypujcene,0),0)","v":0},"Voda v pohybu - úžas v nás","kol. autorů","Naučná",null,"Přírodopis",268,"šablony II",2020]
[null,1593,{"$f":"IFERROR(MATCH(B888,vypujcene,0),0)","v":0},"Velká kniha živočichů","kol. autorů","Zvířata",null,"Přírodopis",768,"šablony II",2020]
[null,1594,{"$f":"IFERROR(MATCH(B889,vypujcene,0),0)","v":0},"Měli mravenci žihadla?","Táborská Pavlína","Příroda",null,"Přírodopis",208,"šablony II",2020]
[null,1595,{"$f":"IFERROR(MATCH(B890,vypujcene,0),0)","v":0},"Darwin - plavba na lodi Beagle *","Grolleau - Royer","Naučná",null,"2. stupeň",291,"šablony II",2020]
[null,1596,{"$f":"IFERROR(MATCH(B891,vypujcene,0),0)","v":0},"Zoologie obratlovců","Gaisler - Zima","Zvířata",null,"Přírodopis",436,"šablony II",2020]
[null,1597,{"$f":"IFERROR(MATCH(B892,vypujcene,0),0)","v":0},"Velká cesta","Steingasser Jana","Ekologie",null,"Přírodopis",269,"šablony II",2020]
[null,1598,{"$f":"IFERROR(MATCH(B893,vypujcene,0),0)","v":0},"Tajemství evoluce","Pecháček Pavel","Naučná",null,"Přírodopis",208,"šablony II",2020]
[null,1599,{"$f":"IFERROR(MATCH(B894,vypujcene,0),0)","v":0},"Stopa legionáře *","Ležák Zdeněk","Historie",null,"Dějepis",209,"šablony II",2020]
[null,1600,{"$f":"IFERROR(MATCH(B895,vypujcene,0),0)","v":0},"Astronomický atlas hvězdné oblohy","Karkoschka Erich","Vesmír",null,"Přírodopis",208,"šablony II",2020]
[null,1601,{"$f":"IFERROR(MATCH(B896,vypujcene,0),0)","v":0},"Genialita ptáků","Ackerman Jennifer","Zvířata",null,"Přírodopis",268,"šablony II",2020]
[null,1602,{"$f":"IFERROR(MATCH(B897,vypujcene,0),0)","v":0},"Mají chobotnice duši?","Montgomeryová Sy","Zvířata",null,"Přírodopis",269,"šablony II",2020]
[null,1603,{"$f":"IFERROR(MATCH(B898,vypujcene,0),0)","v":0},"O čem si šeptají souhvězdí","Koval David","Vesmír",null,"Přírodopis",187,"šablony II",2020]
[null,1604,{"$f":"IFERROR(MATCH(B899,vypujcene,0),0)","v":0},"Hory a řeky bez konce","Snyder Gary","Poezie",null,"Přírodopis",181,"šablony II",2020]
[null,1605,{"$f":"IFERROR(MATCH(B900,vypujcene,0),0)","v":0},"Rostlinopis","Dvořák Jiří","Rostliny",null,"Přírodopis",null,"šablony II",2020]
[null,1606,{"$f":"IFERROR(MATCH(B901,vypujcene,0),0)","v":0},"Malované dějiny Evropy","Haškovec - Muller","Historie",null,"Dějepis",208,"šablony II",2020]
[null,1607,{"$f":"IFERROR(MATCH(B902,vypujcene,0),0)","v":0},"Obrázky z československých dějin *","Černý - Veis","Historie",null,"Dějepis",159,"šablony II",2020]
[null,1608,{"$f":"IFERROR(MATCH(B903,vypujcene,0),0)","v":0},"Obrázky z dějin zeměpisných objevů *","Černý - Zátka","Osobnosti a osudy","od 8 let","Dějepis",187,"šablony II",2020]
[null,1609,{"$f":"IFERROR(MATCH(B904,vypujcene,0),0)","v":0},"České svátky a tradice","Tinková Eva","Naučná",null,"Dějepis",148,"šablony II",2020]
[null,1610,{"$f":"IFERROR(MATCH(B905,vypujcene,0),0)","v":0},"O vlcích a lidech","Lopez Barry","Zvířata",null,"2. stupeň",384,"šablony II",2020]
[null,1611,{"$f":"IFERROR(MATCH(B906,vypujcene,0),0)","v":0},"Kamínek","Fišerová Michaela","Pohádky",null,"1. stupeň",173,"šablony II",2020]
[null,1612,{"$f":"IFERROR(MATCH(B907,vypujcene,0),0)","v":0},"Naše planeta","Fothergill Alastair","Vesmír",null,"Přírodopis",371,"šablony II",2020]
[null,1613,{"$f":"IFERROR(MATCH(B908,vypujcene,0),0)","v":0},"Neobyčejný kluk","Palaciová R. J.","Příběh ze života",null,"2. stupeň",239,"šablony II",2020]
[null,1614,{"$f":"IFERROR(MATCH(B909,vypujcene,0),0)","v":0},"Ztraceni v čase","Braunová Petra","Sci-fi",null,"2. stupeň",132,"šablony II",2020]
[null,1615,{"$f":"IFERROR(MATCH(B910,vypujcene,0),0)","v":0},"Cílovníci","Papoušková Eva","Příběh ze života",null,"2. stupeň",174,"šablony II",2020]
[null,1616,{"$f":"IFERROR(MATCH(B911,vypujcene,0),0)","v":0},"Bordeří povídačky","Mondschein Pavel","Humor",null,"2. stupeň",189,"šablony II",2020]
[null,1617,{"$f":"IFERROR(MATCH(B912,vypujcene,0),0)","v":0},"Past na korunu","Krolupperová Daniela","Detektivka",null,"2. stupeň",153,"šablony II",2020]
[null,1618,{"$f":"IFERROR(MATCH(B913,vypujcene,0),0)","v":0},"Sirotčinec slečny Peregrinové","Riggs Kansom","Fantasy","od 13 let","2. stupeň",219,"šablony II",2020]
[null,1619,{"$f":"IFERROR(MATCH(B914,vypujcene,0),0)","v":0},"Faja","Stehlíková Petra","Fantasy","od 12 let","2. stupeň",215,"šablony II",2020]
[null,1620,{"$f":"IFERROR(MATCH(B915,vypujcene,0),0)","v":0},"Prašina - Černý merkurit","Matocha Vojtěch","Dobrodružné",null,"2. stupeň",195,"šablony II",2020]
[null,1621,{"$f":"IFERROR(MATCH(B916,vypujcene,0),0)","v":0},"Prašina ","Matocha Vojtěch","Dobrodružné",null,"2. stupeň",212,"šablony II",2020]
[null,1622,{"$f":"IFERROR(MATCH(B917,vypujcene,0),0)","v":0},"Naslouchač","Stehlíková Petra","Fantasy","od 12 let","2. stupeň",203,"šablony II",2020]
[null,1623,{"$f":"IFERROR(MATCH(B918,vypujcene,0),0)","v":0},"Anna z Avonlea","Montgomeryová L. M.","Příběh ze života",null,"2. stupeň",193,"šablony II",2020]
[null,1624,{"$f":"IFERROR(MATCH(B919,vypujcene,0),0)","v":0},"Anna z ostrova","Montgomeryová L. M.","Příběh ze života",null,"2. stupeň",207,"šablony II",2020]
[null,1625,{"$f":"IFERROR(MATCH(B920,vypujcene,0),0)","v":0},"Dvůr trnů a růží","Maasová Sarah J.","Fantasy","od 13 let","2. stupeň",234,"šablony II",2020]
[null,1626,{"$f":"IFERROR(MATCH(B921,vypujcene,0),0)","v":0},"Dvůr mlhy a hněvu","Maasová Sarah J.","Fantasy","od 13 let","2. stupeň",246,"šablony II",2020]
[null,1627,{"$f":"IFERROR(MATCH(B922,vypujcene,0),0)","v":0},"Hvězdy nám nepřály","Green John","Příběh ze života","od 13 let","2. stupeň",239,"šablony II",2020]
[null,1628,{"$f":"IFERROR(MATCH(B923,vypujcene,0),0)","v":0},"Dědečkův velký útěk","Williams David","Dobrodružné",null,"1. stupeň",211,"šablony II",2020]
[null,1629,{"$f":"IFERROR(MATCH(B924,vypujcene,0),0)","v":0},"Dědečkův velký útěk","Williams David","Dobrodružné",null,"1. stupeň",211,"šablony II",2020]
[null,1630,{"$f":"IFERROR(MATCH(B925,vypujcene,0),0)","v":0},"Dědečkův velký útěk","Williams David","Dobrodružné",null,"1. stupeň",211,"šablony II",2020]
[null,1631,{"$f":"IFERROR(MATCH(B926,vypujcene,0),0)","v":0},"Dědečkův velký útěk","Williams David","Dobrodružné",null,"1. stupeň",211,"šablony II",2020]
[null,1632,{"$f":"IFERROR(MATCH(B927,vypujcene,0),0)","v":0},"Dědečkův velký útěk","Williams David","Dobrodružné",null,"1. stupeň",211,"šablony II",2020]
[null,1633,{"$f":"IFERROR(MATCH(B928,vypujcene,0),0)","v":0},"Dědečkův velký útěk","Williams David","Dobrodružné",null,"1. stupeň",211,"šablony II",2020]
[null,1634,{"$f":"IFERROR(MATCH(B929,vypujcene,0),0)","v":0},"Dědečkův velký útěk","Williams David","Dobrodružné",null,"1. stupeň",211,"šablony II",2020]
[null,1635,{"$f":"IFERROR(MATCH(B930,vypujcene,0),0)","v":0},"Dědečkův velký útěk","Williams David","Dobrodružné",null,"1. stupeň",211,"šablony II",2020]
[null,1636,{"$f":"IFERROR(MATCH(B931,vypujcene,0),0)","v":0},"Dědečkův velký útěk","Williams David","Dobrodružné",null,"1. stupeň",211,"šablony II",2020]
[null,1637,{"$f":"IFERROR(MATCH(B932,vypujcene,0),0)","v":0},"Dědečkův velký útěk","Williams David","Dobrodružné",null,"1. stupeň",211,"šablony II",2020]
[null,1638,{"$f":"IFERROR(MATCH(B933,vypujcene,0),0)","v":0},"Dědečkův velký útěk","Williams David","Dobrodružné",null,"1. stupeň",211,"šablony II",2020]
[null,1639,{"$f":"IFERROR(MATCH(B934,vypujcene,0),0)","v":0},"Dědečkův velký útěk","Williams David","Dobrodružné",null,"1. stupeň",211,"šablony II",2020]
[null,1640,{"$f":"IFERROR(MATCH(B935,vypujcene,0),0)","v":0},"Dědečkův velký útěk","Williams David","Dobrodružné",null,"1. stupeň",211,"šablony II",2020]
[null,1641,{"$f":"IFERROR(MATCH(B936,vypujcene,0),0)","v":0},"Dědečkův velký útěk","Williams David","Dobrodružné",null,"1. stupeň",211,"šablony II",2020]
[null,1642,{"$f":"IFERROR(MATCH(B937,vypujcene,0),0)","v":0},"Dědečkův velký útěk","Williams David","Dobrodružné",null,"1. stupeň",211,"šablony II",2020]
[null,1643,{"$f":"IFERROR(MATCH(B938,vypujcene,0),0)","v":0},"Dědečkův velký útěk","Williams David","Dobrodružné",null,"1. stupeň",211,"šablony II",2020]
[null,1644,{"$f":"IFERROR(MATCH(B939,vypujcene,0),0)","v":0},"Dědečkův velký útěk","Williams David","Dobrodružné",null,"1. stupeň",211,"šablony II",2020]
[null,1645,{"$f":"IFERROR(MATCH(B940,vypujcene,0),0)","v":0},"Eliáš a babička z vajíčka","Procházková Iva","Pohádky","od 6 let","1. stupeň",196,"šablony II",2020]
[null,1646,{"$f":"IFERROR(MATCH(B941,vypujcene,0),0)","v":0},"Eliáš a babička z vajíčka","Procházková Iva","Pohádky","od 6 let","1. stupeň",196,"šablony II",2020]
[null,1647,{"$f":"IFERROR(MATCH(B942,vypujcene,0),0)","v":0},"Eliáš a babička z vajíčka","Procházková Iva","Pohádky","od 6 let","1. stupeň",196,"šablony II",2020]
[null,1648,{"$f":"IFERROR(MATCH(B943,vypujcene,0),0)","v":0},"Eliáš a babička z vajíčka","Procházková Iva","Pohádky","od 6 let","1. stupeň",196,"šablony II",2020]
[null,1649,{"$f":"IFERROR(MATCH(B944,vypujcene,0),0)","v":0},"Eliáš a babička z vajíčka","Procházková Iva","Pohádky","od 6 let","1. stupeň",196,"šablony II",2020]
[null,1650,{"$f":"IFERROR(MATCH(B945,vypujcene,0),0)","v":0},"Eliáš a babička z vajíčka","Procházková Iva","Pohádky","od 6 let","1. stupeň",196,"šablony II",2020]
[null,1651,{"$f":"IFERROR(MATCH(B946,vypujcene,0),0)","v":0},"Eliáš a babička z vajíčka","Procházková Iva","Pohádky","od 6 let","1. stupeň",196,"šablony II",2020]
[null,1652,{"$f":"IFERROR(MATCH(B947,vypujcene,0),0)","v":0},"Eliáš a babička z vajíčka","Procházková Iva","Pohádky","od 6 let","1. stupeň",196,"šablony II",2020]
[null,1653,{"$f":"IFERROR(MATCH(B948,vypujcene,0),0)","v":0},"Eliáš a babička z vajíčka","Procházková Iva","Pohádky","od 6 let","1. stupeň",196,"šablony II",2020]
[null,1654,{"$f":"IFERROR(MATCH(B949,vypujcene,0),0)","v":0},"Eliáš a babička z vajíčka","Procházková Iva","Pohádky","od 6 let","1. stupeň",196,"šablony II",2020]
[null,1655,{"$f":"IFERROR(MATCH(B950,vypujcene,0),0)","v":0},"Eliáš a babička z vajíčka","Procházková Iva","Pohádky","od 6 let","1. stupeň",196,"šablony II",2020]
[null,1656,{"$f":"IFERROR(MATCH(B951,vypujcene,0),0)","v":0},"Eliáš a babička z vajíčka","Procházková Iva","Pohádky","od 6 let","1. stupeň",196,"šablony II",2020]
[null,1657,{"$f":"IFERROR(MATCH(B952,vypujcene,0),0)","v":0},"Eliáš a babička z vajíčka","Procházková Iva","Pohádky","od 6 let","1. stupeň",196,"šablony II",2020]
[null,1658,{"$f":"IFERROR(MATCH(B953,vypujcene,0),0)","v":0},"Eliáš a babička z vajíčka","Procházková Iva","Pohádky","od 6 let","1. stupeň",196,"šablony II",2020]
[null,1659,{"$f":"IFERROR(MATCH(B954,vypujcene,0),0)","v":0},"Eliáš a babička z vajíčka","Procházková Iva","Pohádky","od 6 let","1. stupeň",196,"šablony II",2020]
[null,1660,{"$f":"IFERROR(MATCH(B955,vypujcene,0),0)","v":0},"Eliáš a babička z vajíčka","Procházková Iva","Pohádky","od 6 let","1. stupeň",196,"šablony II",2020]
[null,1661,{"$f":"IFERROR(MATCH(B956,vypujcene,0),0)","v":0},"Eliáš a babička z vajíčka","Procházková Iva","Pohádky","od 6 let","1. stupeň",196,"šablony II",2020]
[null,1662,{"$f":"IFERROR(MATCH(B957,vypujcene,0),0)","v":0},"Eliáš a babička z vajíčka","Procházková Iva","Pohádky","od 6 let","1. stupeň",196,"šablony II",2020]
[null,1663,{"$f":"IFERROR(MATCH(B958,vypujcene,0),0)","v":0},"Eliáš a babička z vajíčka","Procházková Iva","Pohádky","od 6 let","1. stupeň",196,"šablony II",2020]
[null,1664,{"$f":"IFERROR(MATCH(B959,vypujcene,0),0)","v":0},"Eliáš a babička z vajíčka","Procházková Iva","Pohádky","od 6 let","1. stupeň",196,"šablony II",2020]
[null,1665,{"$f":"IFERROR(MATCH(B960,vypujcene,0),0)","v":0},"Eliáš a babička z vajíčka","Procházková Iva","Pohádky","od 6 let","1. stupeň",196,"šablony II",2020]
[null,1666,{"$f":"IFERROR(MATCH(B961,vypujcene,0),0)","v":0},"Grandspa´s great escape","Dahl Roald","Dobrodružné",null,"1. stupeň",158,"šablony II",2020]
[null,1667,{"$f":"IFERROR(MATCH(B962,vypujcene,0),0)","v":0},"Kluk - příběhy z dětství","Dahl Roald","Dobrodružné",null,"1. stupeň",80,"šablony II",2020]
[null,1668,{"$f":"IFERROR(MATCH(B963,vypujcene,0),0)","v":0},"Karlík a továrna na čokoládu","Dahl Roald","Fantasy",null,"1. stupeň",69,"šablony II",2020]
[null,1669,{"$f":"IFERROR(MATCH(B964,vypujcene,0),0)","v":0},"Jakub a obří broskev","Dahl Roald","Fantasy","od 6 let","1. stupeň",69,"šablony II",2020]
[null,1670,{"$f":"IFERROR(MATCH(B965,vypujcene,0),0)","v":0},"Matylda","Dahl Roald","Příběh ze života","od 7 let","1. stupeň",69,"šablony II",2020]
[null,1671,{"$f":"IFERROR(MATCH(B966,vypujcene,0),0)","v":0},"Obr Dobr","Dahl Roald","Pohádky","od 7 let","1 stupeň",69,"šablony II",2020]
[null,1672,{"$f":"IFERROR(MATCH(B967,vypujcene,0),0)","v":0},"Prevítovi","Dahl Roald","Dobrodružné","od 7 let","1. stupeň",59,"šablony II",2020]
[null,1673,{"$f":"IFERROR(MATCH(B968,vypujcene,0),0)","v":0},"Kouzelný prst","Dahl Roald","Fantasy","od 7 let","1. stupeň",59,"šablony II",2020]
[null,1674,{"$f":"IFERROR(MATCH(B969,vypujcene,0),0)","v":0},"Jirkova zázračná medicína","Dahl Roald","Dobrodružné","od 7 let","1. stupeň",59,"šablony II",2020]
[null,1675,{"$f":"IFERROR(MATCH(B970,vypujcene,0),0)","v":0},"Velké myší spiknutí","Dahl Roald","Pohádky","od 7 let","1. stupeň",59,"šablony II",2020]
[null,1676,{"$f":"IFERROR(MATCH(B971,vypujcene,0),0)","v":0},"Danny, mistr světa","Dahl Roald","Dobrodružné","od 7 let","1. stupeň",69,"šablony II",2020]
[null,1677,{"$f":"IFERROR(MATCH(B972,vypujcene,0),0)","v":0},"Čarodějnice","Dahl Roald","Horor pro děti","od 7 let","1. stupeň",69,"šablony II",2020]
[null,1678,{"$f":"IFERROR(MATCH(B973,vypujcene,0),0)","v":0},"Fantastický pan Lišák","Dahl Roald","Pohádky","od 7 let","1. stupeň",59,"šablony II",2020]
[null,1679,{"$f":"IFERROR(MATCH(B974,vypujcene,0),0)","v":0},"Zdivočelé pohádky","Dahl Roald","Pohádky","od 5 let","1. stupeň",169,"šablony II",2020]
[null,1680,{"$f":"IFERROR(MATCH(B975,vypujcene,0),0)","v":0},"Nejhorší děti na světě 3","Williams David","Humor",null,"1. stupeň",212,"šablony II",2020]
[null,1681,{"$f":"IFERROR(MATCH(B976,vypujcene,0),0)","v":0},"Nejhorší děti na světě 2","Williams David","Humor",null,"1. stupeň",210,"šablony II",2020]
[null,1682,{"$f":"IFERROR(MATCH(B977,vypujcene,0),0)","v":0},"Nejhorší děti na světě","Williams David","Humor",null,"1. stupeň",210,"šablony II",2020]
[null,1683,{"$f":"IFERROR(MATCH(B978,vypujcene,0),0)","v":0},"Čeští panovníci byli taky jenom lidi","Drijverová Martina","Osobnosti a osudy",null,null,166,"šablony II",2020]
[null,1684,{"$f":"IFERROR(MATCH(B979,vypujcene,0),0)","v":0},"Knihožrouti","Smolíková Klára","Pohádky",null,"1. stupeň",118,"šablony II",2020]
[null,1685,{"$f":"IFERROR(MATCH(B980,vypujcene,0),0)","v":0},"Rybí sliby","Krolupperová Daniela","Pohádky",null,"1. stupeň",198,"šablony II",2020]
[null,1686,{"$f":"IFERROR(MATCH(B981,vypujcene,0),0)","v":0},"Černobílé prázdniny","Šavlíková Lucie","Pohádky",null,"1. stupeň",233,"šablony II",2020]
[null,1687,{"$f":"IFERROR(MATCH(B982,vypujcene,0),0)","v":0},"Kluci netančej!","Stehlíková Olga","Příběh ze života","od 10 let","1. stupeň",211,"šablony II",2020]
[null,1688,{"$f":"IFERROR(MATCH(B983,vypujcene,0),0)","v":0},"Mizící hmyzíci","Krolupperová Daniela","Pohádky",null,"1. stupeň",211,"šablony II",2020]
[null,1689,{"$f":"IFERROR(MATCH(B984,vypujcene,0),0)","v":0},"Ztřeštěný dům na stromě","Griffiths Andy","Humor",null,"1. stupeň",154,"šablony II",2020]
[null,1691,{"$f":"IFERROR(MATCH(B985,vypujcene,0),0)","v":0},"Ježibaba Poletucha","Pernická Dagmar","Pohádky","od 5 let","1. stupeň",119,"šablony II",2020]
[null,1692,{"$f":"IFERROR(MATCH(B986,vypujcene,0),0)","v":0},"Doktor Proktor a vana času","Nesbo Jo","Humor","od 9 let","1. stupeň",228,"šablony II",2020]
[null,1693,{"$f":"IFERROR(MATCH(B987,vypujcene,0),0)","v":0},"Doktor Proktor a vana času","Nesbo Jo","Humor","od 9 let","1. stupeň",228,"šablony II",2020]
[null,1694,{"$f":"IFERROR(MATCH(B988,vypujcene,0),0)","v":0},"Doktor Proktor a vana času","Nesbo Jo","Humor","od 9 let","1. stupeň",228,"šablony II",2020]
[null,1695,{"$f":"IFERROR(MATCH(B989,vypujcene,0),0)","v":0},"Doktor Proktor a vana času","Nesbo Jo","Humor","od 9 let","1. stupeň",228,"šablony II",2020]
[null,1696,{"$f":"IFERROR(MATCH(B990,vypujcene,0),0)","v":0},"Doktor Proktor a vana času","Nesbo Jo","Humor","od 9 let","1. stupeň",228,"šablony II",2020]
[null,1697,{"$f":"IFERROR(MATCH(B991,vypujcene,0),0)","v":0},"Doktor Proktor a vana času","Nesbo Jo","Humor","od 9 let","1. stupeň",228,"šablony II",2020]
[null,1698,{"$f":"IFERROR(MATCH(B992,vypujcene,0),0)","v":0},"Doktor Proktor a vana času","Nesbo Jo","Humor","od 9 let","1. stupeň",228,"šablony II",2020]
[null,1699,{"$f":"IFERROR(MATCH(B993,vypujcene,0),0)","v":0},"Hobit aneb cesta tam a zase zpátky","Tolkien J. R. R.","Fantasy",null,"2. stupeň",222,"šablony II",2020]
[null,1700,{"$f":"IFERROR(MATCH(B994,vypujcene,0),0)","v":0},"Malý princ","Exupéry A. de Saint","Pohádky",null,"1. stupeň",137,"šablony II",2020]
[null,1701,{"$f":"IFERROR(MATCH(B995,vypujcene,0),0)","v":0},"Ostrov v ptačí ulici","Orlev Uri","2. svět. válka",null,"2. stupeň",239,"šablony II",2020]
[null,1702,{"$f":"IFERROR(MATCH(B996,vypujcene,0),0)","v":0},"Eliáš a babička z vajíčka","Procházková Iva","Pohádky","od 6 let","1. stupeň",196,"šablony II",2020]
[null,1703,{"$f":"IFERROR(MATCH(B997,vypujcene,0),0)","v":0},"Egbérie a Olténie","Fischerová Sylva","Pohádky",null,"1.stupeň",71,"šablony II",2020]
[null,1704,{"$f":"IFERROR(MATCH(B998,vypujcene,0),0)","v":0},"Lichožrouti","Šrut Pavel","Pohádky",null,"1.stupeň",264,"šablony II",2020]
[null,1705,{"$f":"IFERROR(MATCH(B999,vypujcene,0),0)","v":0},"Lichožrouti","Šrut Pavel","Pohádky",null,"1.stupeň",264,"šablony II",2020]
[null,1706,{"$f":"IFERROR(MATCH(B1000,vypujcene,0),0)","v":0},"Lichožrouti","Šrut Pavel","Pohádky",null,"1.stupeň",264,"šablony II",2020]
[null,1707,{"$f":"IFERROR(MATCH(B1001,vypujcene,0),0)","v":0},"Lichožrouti","Šrut Pavel","Pohádky",null,"1.stupeň",264,"šablony II",2020]
[null,1708,{"$f":"IFERROR(MATCH(B1002,vypujcene,0),0)","v":0},"Lichožrouti","Šrut Pavel","Pohádky",null,"1.stupeň",264,"šablony II",2020]
[null,1709,{"$f":"IFERROR(MATCH(B1003,vypujcene,0),0)","v":0},"Lichožrouti","Šrut Pavel","Pohádky",null,"1.stupeň",264,"šablony II",2020]
[null,1710,{"$f":"IFERROR(MATCH(B1004,vypujcene,0),0)","v":0},"Lichožrouti","Šrut Pavel","Pohádky",null,"1.stupeň",264,"šablony II",2020]
[null,1711,{"$f":"IFERROR(MATCH(B1005,vypujcene,0),0)","v":0},"Divergence","Rothová Veronica","Sci-fi","od 13 let","2. stupeň",176,"šablony II",2020]
[null,1712,{"$f":"IFERROR(MATCH(B1006,vypujcene,0),0)","v":0},"Jen jestli si nevymejšlíš","Silverstein Shel","Poezie pro děti",null,"1. stupeň",224,"šablony II",2020]
[null,1713,{"$f":"IFERROR(MATCH(B1007,vypujcene,0),0)","v":0},"Blues","Hrabě Václav","Poezie",null,"2. stupeň",153,"šablony II",2020]
[null,1714,{"$f":"IFERROR(MATCH(B1008,vypujcene,0),0)","v":0},"Hvězdy nám nepřály","Green John","Příběh ze života","od 13 let","2. stupeň",239,"šablony II",2020]
[null,1715,{"$f":"IFERROR(MATCH(B1009,vypujcene,0),0)","v":0},"Jak počítají koťata","Žáček Jiří","Poezie pro děti",null,"1. stupeň",284,"šablony II",2020]
[null,1716,{"$f":"IFERROR(MATCH(B1010,vypujcene,0),0)","v":0},"Dárce","Lowryová Lois","Sci-fi",null,"2. stupeň",182,"šablony II",2020]
[null,1717,{"$f":"IFERROR(MATCH(B1011,vypujcene,0),0)","v":0},"Povídky","Svěrák Zdeněk","Humor",null,"2. stupeň",176,"šablony II",2020]
[null,1718,{"$f":"IFERROR(MATCH(B1012,vypujcene,0),0)","v":0},"Zá hádky","Nikl Petr","Poezie",null,"2. stupeň",459,"šablony II",2020]
[null,1719,{"$f":"IFERROR(MATCH(B1013,vypujcene,0),0)","v":0},"Kdo chytá v žitě","Salinger, J. D.","Pro dospívající","od 13 let","2. stupeň",159,"šablony II",2020]
[null,1720,{"$f":"IFERROR(MATCH(B1014,vypujcene,0),0)","v":0},"Postřelená kniha","Kašpárek v rohlíku","Poezie",null,"1. stupeň",168,"šablony II",2020]
[null,1721,{"$f":"IFERROR(MATCH(B1015,vypujcene,0),0)","v":0},"O hrůzném padouchu Manfredovi","Fardell John","Komiks","od 6 let","1. stupeň",49,"šablony II",2020]
[null,1722,{"$f":"IFERROR(MATCH(B1016,vypujcene,0),0)","v":0},"Poznej báječné ženy","Bailleyová Ellen","Osobnosti a osudy",null,"2. stupeň",0,null,2020]
[null,1723,{"$f":"IFERROR(MATCH(B1017,vypujcene,0),0)","v":0},"Půlnoční gang","Williams David","Dobrodružné",null,"2. stupeň",219,"šablony II",2020]
[null,1724,{"$f":"IFERROR(MATCH(B1018,vypujcene,0),0)","v":0},"Táta za všechny prachy","Williams David","Dobrodružné",null,"1. stupeň",219,"šablony II",2020]
[null,1725,{"$f":"IFERROR(MATCH(B1019,vypujcene,0),0)","v":0},"Modrý poťouch","Kratochvíl Miloš","Humor","od 6 let","1. stupeň",155,"šablony II",2020]
[null,1726,{"$f":"IFERROR(MATCH(B1020,vypujcene,0),0)","v":0},"Bára krotí Ameriku","Durková Milena","Příběh ze života",null,"2. stupeň",173,null,2020]
[null,1727,{"$f":"IFERROR(MATCH(B1021,vypujcene,0),0)","v":0},"Karpatské hry","Nevrlý Miloslav","Cestopisy",null,null,256,null,2020]
[null,1728,{"$f":"IFERROR(MATCH(B1022,vypujcene,0),0)","v":0},"Bára krotí rodinu","Durková Milena","Humor",null,"2. stupeň",138,null,2020]
[null,1729,{"$f":"IFERROR(MATCH(B1023,vypujcene,0),0)","v":0},"Deník Dory Grayové","Reviláková Naďa","Dobrodružné",null,"2. stupeň",173,null,2020]
[null,1730,{"$f":"IFERROR(MATCH(B1024,vypujcene,0),0)","v":0},"Dobrodružství v Zemi nikoho","Foglar Jaroslav","Dobrodružné",null,"2. stupeň",273,null,2020]
[null,1731,{"$f":"IFERROR(MATCH(B1025,vypujcene,0),0)","v":0},"Dvojčata na stopě - Tajemný kód","Hendrych Josef","Detektivka",null,"1. stupeň",74,null,2020]
[null,1732,{"$f":"IFERROR(MATCH(B1026,vypujcene,0),0)","v":0},"Dvojčata na stopě - Záhada v muzeu","Hendrych Josef","Detektivka",null,"1. stupeň",74,null,2020]
[null,1733,{"$f":"IFERROR(MATCH(B1027,vypujcene,0),0)","v":0},"Harry Potter a Kámen mudrců","Rowling J. K.","Fantasy",null,"2. stupeň",208,null,2020]
[null,1734,{"$f":"IFERROR(MATCH(B1028,vypujcene,0),0)","v":0},"Harry Potter a Ohnivý pohár","Rowling J. K.","Fantasy",null,"2. stupeň",312,null,2020]
[null,1735,{"$f":"IFERROR(MATCH(B1029,vypujcene,0),0)","v":0},"Harry Potter a princ dvojí krve","Rowling J. K.","Fantasy",null,"2. stupeň",382,null,2020]
[null,1736,{"$f":"IFERROR(MATCH(B1030,vypujcene,0),0)","v":0},"Harry Potter a relikvie smrti","Rowling J. K.","Fantasy",null,"2. stupeň",382,null,2020]
[null,1737,{"$f":"IFERROR(MATCH(B1031,vypujcene,0),0)","v":0},"Harry Potter a Tajemná komnata","Rowling J. K.","Fantasy",null,"2. stupeň",208,null,2020]
[null,1738,{"$f":"IFERROR(MATCH(B1032,vypujcene,0),0)","v":0},"Harry Potter a vězeň z Azkabanu","Rowling J. K.","Fantasy",null,"2. stupeň",260,null,2020]
[null,1739,{"$f":"IFERROR(MATCH(B1033,vypujcene,0),0)","v":0},"Harry Potter a Fénixův řád","Rowling J. K.","Fantasy",null,"2. stupeň",491,null,2020]
[null,1740,{"$f":"IFERROR(MATCH(B1034,vypujcene,0),0)","v":0},"Klub Tygrů - Mamutí jeskyně","Brezina Thomas","Dobrodružné",null,"1. stupeň",125,null,2020]
[null,1741,{"$f":"IFERROR(MATCH(B1035,vypujcene,0),0)","v":0},"Klub Tygrů - Zmizení v hlubinách","Brezina Thomas","Dobrodružné",null,"1. stupeň",125,null,2020]
[null,1742,{"$f":"IFERROR(MATCH(B1036,vypujcene,0),0)","v":0},"Starostlivá veverka","Pospíšilová Zuzana","Příběhy se zvířátky",null,"1. stupeň",138,null,2020]
[null,1743,{"$f":"IFERROR(MATCH(B1037,vypujcene,0),0)","v":0},"Statečný čáp","Olivová Jana","Příběhy se zvířátky",null,"1. stupeň",138,null,2020]
[null,1744,{"$f":"IFERROR(MATCH(B1038,vypujcene,0),0)","v":0},"Vystrašený zajíček","Pospíšilová Zuzana","Příběhy se zvířátky",null,"1. stupeň",138,null,2020]
[null,1745,{"$f":"IFERROR(MATCH(B1039,vypujcene,0),0)","v":0},"Olinka a kouzelná truhla","Šlik Hugo Petr","Dobrodružné",null,"1. stupeň",173,null,2020]
[null,1746,{"$f":"IFERROR(MATCH(B1040,vypujcene,0),0)","v":0},"Našlo se koťátko","Mongredien Sue","Příběhy se zvířátky",null,"1. stupeň",104,null,2020]
[null,1747,{"$f":"IFERROR(MATCH(B1041,vypujcene,0),0)","v":0},"Uzdravený poník","Hawkins Sarah","Příběhy se zvířátky",null,"1. stupeň",104,null,2020]
[null,1748,{"$f":"IFERROR(MATCH(B1042,vypujcene,0),0)","v":0},"Zatoulané štěňátko","Mongredien Sue","Příběhy se zvířátky",null,"1. stupeň",104,null,2020]
[null,1749," ","Ztracený ježeček","Hucklesby Jill","Příběhy se zvířátky",null,"1. stupeň",104,null,2020]
[null,1750,{"$f":"IFERROR(MATCH(B1044,vypujcene,0),0)","v":0},"Rošťák Oliver a korále pro mořskou vílu","Braunová Petra","Dobrodružné",null,"1. stupeň",77,null,2020]
[null,1751,{"$f":"IFERROR(MATCH(B1045,vypujcene,0),0)","v":0},"Rošťák Oliver a Marica čaarodějka","Braunová Petra","Příběh ze života",null,"1. stupeň",125,null,2020]
[null,1752,{"$f":"IFERROR(MATCH(B1046,vypujcene,0),0)","v":0},"Tajemství starého domu","Brezina Thomas","Detektivka",null,"1. stupeň",191,null,2020]
[null,1753,{"$f":"IFERROR(MATCH(B1047,vypujcene,0),0)","v":0},"Ťapka, kočka stěhovavá","Březinová Ivona","Příběh ze života",null,"1. stupeň",169,null,2020]
[null,1754,{"$f":"IFERROR(MATCH(B1048,vypujcene,0),0)","v":0},"Ten kluk je holka","Pacovská Ilka","Příběhy se zvířátky",null,"1. stupeň",173,null,2020]
[null,1755,{"$f":"IFERROR(MATCH(B1049,vypujcene,0),0)","v":0},"Valentýnka a daleké kraje","Peroutková Ivana","Příběh ze života",null,"1. stupeň",138,null,2020]
[null,1756,{"$f":"IFERROR(MATCH(B1050,vypujcene,0),0)","v":0},"Valentýnka a narozeniny ","Peroutková Ivana","Příběh ze života",null,"1. stupeň",138,null,2020]
[null,1757,{"$f":"IFERROR(MATCH(B1051,vypujcene,0),0)","v":0},"Zápisky z Rosewoodu - Ztracená princezna","Glynnová Connie","Dobrodružné",null,"2. stupeň",243,null,2020]
[null,1758,{"$f":"IFERROR(MATCH(B1052,vypujcene,0),0)","v":0},"Karpatské hry","Nevrlý Miloslav","Cestopisy",null,"2. stupeň",256,null,2020]
[null,1759,{"$f":"IFERROR(MATCH(B1053,vypujcene,0),0)","v":0},"O chlapci, který spadl z nebe","Braunová Petra","Pohádky",null,"1. stupeň",173,null,2020]
[null,1760,{"$f":"IFERROR(MATCH(B1054,vypujcene,0),0)","v":0},"Karpatské hry","Nevrlý Miloslav","Cestopisy",null,"2. stupeň",256,null,2020]
[null,1761,{"$f":"IFERROR(MATCH(B1055,vypujcene,0),0)","v":0},"Karpatské hry","Nevrlý Miloslav","Cestopisy",null,"2. stupeň",256,null,2020]
[null,1762,{"$f":"IFERROR(MATCH(B1056,vypujcene,0),0)","v":0},"Karpatské hry","Nevrlý Miloslav","Cestopisy",null,"2. stupeň",256,null,2020]
[null,1763,{"$f":"IFERROR(MATCH(B1057,vypujcene,0),0)","v":0},"Karpatské hry","Nevrlý Miloslav","Cestopisy",null,"2. stupeň",256,null,2020]
[null,1764,{"$f":"IFERROR(MATCH(B1058,vypujcene,0),0)","v":0},"Historie Svorné sedmy","Foglar Jaroslav","Dobrodružné",null,"2. stupeň",0,"dar",2020]
[null,1769,{"$f":"IFERROR(MATCH(B1059,vypujcene,0),0)","v":0},"Staré řecké báje a pověsti","Petiška Eduard","Báje a pověsti",null,null,0,"dar",2020]
[null,1772,{"$f":"IFERROR(MATCH(B1060,vypujcene,0),0)","v":0},"Indiánská encyklopedie","Zelený Mnislav","Naučná",null,"Encyklopedie",0,"dar",2020]
[null,1773,{"$f":"IFERROR(MATCH(B1061,vypujcene,0),0)","v":0},"Zlatá kniha indiánských řemesel","Hunt Ben","Naučná",null,"Encyklopedie",0,"dar",2020]
[null,1774,{"$f":"IFERROR(MATCH(B1062,vypujcene,0),0)","v":0},"Literární výchova","Soukal Josef","Český jazyk",null,"Český jazyk",137,null,2020]
[null,1775,{"$f":"IFERROR(MATCH(B1063,vypujcene,0),0)","v":0},"Nejvyšší hora, nejmenší hvězda","Broom Jenny","Příroda",null,"Přírodopis",282,null,2020]
[null,1776,{"$f":"IFERROR(MATCH(B1064,vypujcene,0),0)","v":0},"Mapy","Mizielinski Daniel","Encyklopedie",null,"Zeměpis",470,null,2020]
[null,1777,{"$f":"IFERROR(MATCH(B1065,vypujcene,0),0)","v":0},"Slyšíš, jak mluví stromy","Wohlleben Peter","Příroda",null,"Přírodopis",240,null,2020]
[null,1778,{"$f":"IFERROR(MATCH(B1066,vypujcene,0),0)","v":0},"Spiknutí - Leden","Lord Gabrielle","Dobrodružné",null,"2. stupeň",0,"dar",2020]
[null,1779,{"$f":"IFERROR(MATCH(B1067,vypujcene,0),0)","v":0},"Spiknutí - Únor","Lord Gabrielle","Dobrodružné",null,"2. stupeň",0,"dar",2020]
[null,1780,{"$f":"IFERROR(MATCH(B1068,vypujcene,0),0)","v":0},"Spiknutí - Březen","Lord Gabrielle","Dobrodružné",null,"2. stupeň",0,"dar",2020]
[null,1781,{"$f":"IFERROR(MATCH(B1069,vypujcene,0),0)","v":0},"Spiknutí - Duben","Lord Gabrielle","Dobrodružné",null,"2. stupeň",0,"dar",2020]
[null,1782,{"$f":"IFERROR(MATCH(B1070,vypujcene,0),0)","v":0},"Spiknutí - Duben","Lord Gabrielle","Dobrodružné",null,"2. stupeň",0,"dar",2020]
[null,1783,{"$f":"IFERROR(MATCH(B1071,vypujcene,0),0)","v":0},"Spiknutí - Duben","Lord Gabrielle","Dobrodružné",null,"2. stupeň",0,"dar",2020]
[null,1784,{"$f":"IFERROR(MATCH(B1072,vypujcene,0),0)","v":0},"Spiknutí - Duben","Lord Gabrielle","Dobrodružné",null,"2. stupeň",0,"dar",2020]
[null,1785,{"$f":"IFERROR(MATCH(B1073,vypujcene,0),0)","v":0},"Fantastická dobrodružství Alfreda Kroppa","Yancey Rick","Fantasy",null,"2. stupeň",0,"dar",2020]
[null,1786,{"$f":"IFERROR(MATCH(B1074,vypujcene,0),0)","v":0},"Pečeť krále Šalamouna","Yancey Rick","Fantasy",null,"2. stupeň",0,"dar",2020]
[null,1787,{"$f":"IFERROR(MATCH(B1075,vypujcene,0),0)","v":0},"Kniha o automobilech","Gifford Clive","Encyklopedie",null,"Encyklopedie",0,"dar",2020]
[null,1788,{"$f":"IFERROR(MATCH(B1076,vypujcene,0),0)","v":0},"Tanky","Macoun Jiří","Naučná",null,"Encyklopedie",0,"dar",2020]
[null,1789,{"$f":"IFERROR(MATCH(B1077,vypujcene,0),0)","v":0},"Rytíři a hrady","Dixon Philip","Historie",null,null,0,"dar",2020]
[null,1790,{"$f":"IFERROR(MATCH(B1078,vypujcene,0),0)","v":0},"Jirkův vesmírný lov pokladů","Hawking Stephan","Dobrodružné",null,"2. stupeň",0,"dar",2020]
[null,1791,{"$f":"IFERROR(MATCH(B1079,vypujcene,0),0)","v":0},"Velké vynálezy pro každý den","kol. autorů","Encyklopedie",null,"Encyklopedie",0,"dar",2020]
[null,1792,{"$f":"IFERROR(MATCH(B1080,vypujcene,0),0)","v":0},"Klub záhad - Loď duchů","Brezina Thomas","Horor pro děti",null,"1. stupeň",0,"dar",2020]
[null,1793,{"$f":"IFERROR(MATCH(B1081,vypujcene,0),0)","v":0},"Klub záhad - Přízraky bez tváře","Brezina Thomas","Horor pro děti",null,"1. stupeň",0,"dar",2020]
[null,1794,{"$f":"IFERROR(MATCH(B1082,vypujcene,0),0)","v":0},"Ohrožená plavba","Kopietzová Gerit","Dobrodružné",null,"1. stupeň",0,"dar",2020]
[null,1795,{"$f":"IFERROR(MATCH(B1083,vypujcene,0),0)","v":0},"Chlapec a jeho robot","Wilson Daniel","Sci-fi",null,"2. stupeň",0,"dar",2020]
[null,1796,{"$f":"IFERROR(MATCH(B1084,vypujcene,0),0)","v":0},"Země česká, domov můj","Karakevas David","Encyklopedie",null,null,499,null,2021]
[null,1797,{"$f":"IFERROR(MATCH(B1085,vypujcene,0),0)","v":0},"Země česká, domov můj","Karakevas David","Encyklopedie",null,null,499,null,2021]
[null,1798,{"$f":"IFERROR(MATCH(B1086,vypujcene,0),0)","v":0},"Země česká, domov můj","Karakevas David","Encyklopedie",null,null,499,null,2021]
[null,1799,{"$f":"IFERROR(MATCH(B1087,vypujcene,0),0)","v":0},"Země česká, domov můj","Karakevas David","Encyklopedie",null,null,499,null,2021]
[null,1800,{"$f":"IFERROR(MATCH(B1088,vypujcene,0),0)","v":0},"Země česká, domov můj","Karakevas David","Encyklopedie",null,null,499,null,2021]
[null,1801,{"$f":"IFERROR(MATCH(B1089,vypujcene,0),0)","v":0},"Země česká, domov můj","Karakevas David","Encyklopedie",null,null,499,null,2021]
[null,1802,{"$f":"IFERROR(MATCH(B1090,vypujcene,0),0)","v":0},"Země česká, domov můj","Karakevas David","Encyklopedie",null,null,499,null,2021]
[null,1803,{"$f":"IFERROR(MATCH(B1091,vypujcene,0),0)","v":0},"Země česká, domov můj","Karakevas David","Encyklopedie",null,null,499,null,2021]
[null,1804,{"$f":"IFERROR(MATCH(B1092,vypujcene,0),0)","v":0},"Země česká, domov můj","Karakevas David","Encyklopedie",null,null,499,null,2021]
[null,1805,{"$f":"IFERROR(MATCH(B1093,vypujcene,0),0)","v":0},"Země česká, domov můj","Karakevas David","Encyklopedie",null,null,499,null,2021]
[null,1806,{"$f":"IFERROR(MATCH(B1094,vypujcene,0),0)","v":0},"Mláďata v přírodě","Bouchner Miroslav","Zvířata",null,"Přírodopis",0,"dar",2021]
[null,1807,{"$f":"IFERROR(MATCH(B1095,vypujcene,0),0)","v":0},"Dítě s hvězdičkou","Lizano Marc","2. svět. válka",null,"1. stupeň",0,null,2021]
[null,1808,{"$f":"IFERROR(MATCH(B1096,vypujcene,0),0)","v":0},"Na křídle větrného mlýna","Kožík František","Osobnosti a osudy",null,"2. stupeň",0,null,2021]
[null,1809,{"$f":"IFERROR(MATCH(B1097,vypujcene,0),0)","v":0},"Hopsagónie","Kršková Antonína","Pohádky",null,"1. stupeň",0,null,2021]
[null,1810,{"$f":"IFERROR(MATCH(B1098,vypujcene,0),0)","v":0},"Sindy v nebezpečí","Gellersenová Ruth","Příběh ze života",null,"1. stupeň",0,null,2021]
[null,1811,{"$f":"IFERROR(MATCH(B1099,vypujcene,0),0)","v":0},"Pták Ohnivák a jiné pohádky","Erben Karel Jaromír","Pohádky",null,"Pohádky",0,null,2021]
[null,1812,{"$f":"IFERROR(MATCH(B1100,vypujcene,0),0)","v":0},"Kamilka a zvířátka","Delvaux Nancy","Příběh ze života","MŠ, 1. stupeň","1. stupeň",0,null,2021]
[null,1813,{"$f":"IFERROR(MATCH(B1101,vypujcene,0),0)","v":0},"Klárka a Kubík","Landan Irena","Příběh ze života","MŠ, 1. stupeň","1. stupeň",0,null,2021]
[null,1814,{"$f":"IFERROR(MATCH(B1102,vypujcene,0),0)","v":0},"Pověsti o hradech","Drijverová Martina","Báje a pověsti",null,null,181,null,2021]
[null,1815,{"$f":"IFERROR(MATCH(B1103,vypujcene,0),0)","v":0},"Biblické příběhy","Olbracht Ivan","Náboženství",null,null,0,null,2021]
[null,1816,{"$f":"IFERROR(MATCH(B1104,vypujcene,0),0)","v":0},"Piktové a mučedníci","Ransome Arthur","Dobrodružné",null,"1. stupeň",0,null,2021]
[null,1817,{"$f":"IFERROR(MATCH(B1105,vypujcene,0),0)","v":0},"Sůl nad zlato","Němcová Božena","Pohádky",null,"Pohádky",0,null,2021]
[null,1818,{"$f":"IFERROR(MATCH(B1106,vypujcene,0),0)","v":0},"Život v půdě","Miko Ladislav","Příroda",null,"Přírodopis",350,null,2021]
[null,1819,{"$f":"IFERROR(MATCH(B1107,vypujcene,0),0)","v":0},"Život v půdě","Miko Ladislav","Příroda",null,"Přírodopis",350,null,2021]
[null,1820,{"$f":"IFERROR(MATCH(B1108,vypujcene,0),0)","v":0},"Život v půdě","Miko Ladislav","Příroda",null,"Přírodopis",350,null,2021]
[null,1821,{"$f":"IFERROR(MATCH(B1109,vypujcene,0),0)","v":0},"Život v půdě","Miko Ladislav","Příroda",null,"Přírodopis",350,null,2021]
[null,1822,{"$f":"IFERROR(MATCH(B1110,vypujcene,0),0)","v":0},"Co tu kvete?","Spohnová a kol.","Rostliny",null,"Přírodopis",399,null,2021]
[null,1823,{"$f":"IFERROR(MATCH(B1111,vypujcene,0),0)","v":0},"Co tu kvete?","Spohnová a kol.","Rostliny",null,"Přírodopis",399,null,2021]
[null,1824,{"$f":"IFERROR(MATCH(B1112,vypujcene,0),0)","v":0},"Kouzelná třída","Pospíšilová Zuzana","Fantasy","1. stupeň",null,157,null,2021]
[null,1825,{"$f":"IFERROR(MATCH(B1113,vypujcene,0),0)","v":0},"Kouzelná třída","Pospíšilová Zuzana","Fantasy","1. stupeň",null,157,null,2021]
[null,1826,{"$f":"IFERROR(MATCH(B1114,vypujcene,0),0)","v":0},"Kouzelná třída","Pospíšilová Zuzana","Fantasy","1. stupeň",null,157,null,2021]
[null,1827,{"$f":"IFERROR(MATCH(B1115,vypujcene,0),0)","v":0},"Kouzelná třída","Pospíšilová Zuzana","Fantasy","1. stupeň",null,157,null,2021]
[null,1828,{"$f":"IFERROR(MATCH(B1116,vypujcene,0),0)","v":0},"Kouzelná třída","Pospíšilová Zuzana","Fantasy","1. stupeň",null,157,null,2021]
[null,1829,{"$f":"IFERROR(MATCH(B1117,vypujcene,0),0)","v":0},"Kouzelná třída","Pospíšilová Zuzana","Fantasy","1. stupeň",null,157,null,2021]
[null,1830,{"$f":"IFERROR(MATCH(B1118,vypujcene,0),0)","v":0},"Kouzelná třída","Pospíšilová Zuzana","Fantasy","1. stupeň",null,157,null,2021]
[null,1831,{"$f":"IFERROR(MATCH(B1119,vypujcene,0),0)","v":0},"Kouzelná třída","Pospíšilová Zuzana","Fantasy","1. stupeň",null,157,null,2021]
[null,1832,{"$f":"IFERROR(MATCH(B1120,vypujcene,0),0)","v":0},"Kouzelná třída","Pospíšilová Zuzana","Fantasy","1. stupeň",null,157,null,2021]
[null,1833,{"$f":"IFERROR(MATCH(B1121,vypujcene,0),0)","v":0},"Kouzelná třída","Pospíšilová Zuzana","Fantasy","1. stupeň",null,157,null,2021]
[null,1834,{"$f":"IFERROR(MATCH(B1122,vypujcene,0),0)","v":0},"Kouzelná třída","Pospíšilová Zuzana","Fantasy","1. stupeň",null,157,null,2021]
[null,1835,{"$f":"IFERROR(MATCH(B1123,vypujcene,0),0)","v":0},"Kouzelná třída","Pospíšilová Zuzana","Fantasy","1. stupeň",null,157,null,2021]
[null,1836,{"$f":"IFERROR(MATCH(B1124,vypujcene,0),0)","v":0},"Kouzelná třída","Pospíšilová Zuzana","Fantasy","1. stupeň",null,157,null,2021]
[null,1837,{"$f":"IFERROR(MATCH(B1125,vypujcene,0),0)","v":0},"Kouzelná třída","Pospíšilová Zuzana","Fantasy","1. stupeň",null,157,null,2021]
[null,1838,{"$f":"IFERROR(MATCH(B1126,vypujcene,0),0)","v":0},"Kouzelná třída","Pospíšilová Zuzana","Fantasy","1. stupeň",null,157,null,2021]
[null,1839,{"$f":"IFERROR(MATCH(B1127,vypujcene,0),0)","v":0},"Kouzelná třída","Pospíšilová Zuzana","Fantasy","1. stupeň",null,157,null,2021]
[null,1840,{"$f":"IFERROR(MATCH(B1128,vypujcene,0),0)","v":0},"Kouzelná třída","Pospíšilová Zuzana","Fantasy","1. stupeň",null,157,null,2021]
[null,1841,{"$f":"IFERROR(MATCH(B1129,vypujcene,0),0)","v":0},"Kouzelná třída","Pospíšilová Zuzana","Fantasy","1. stupeň",null,157,null,2021]
[null,1842,{"$f":"IFERROR(MATCH(B1130,vypujcene,0),0)","v":0},"Ve staré cihelně se svítí","Šlik Petr Hugo","Dobrodružné",null,null,196,null,2021]
[null,1843,{"$f":"IFERROR(MATCH(B1131,vypujcene,0),0)","v":0},"Ve staré cihelně se svítí","Šlik Petr Hugo","Dobrodružné",null,null,196,null,2021]
[null,1844,{"$f":"IFERROR(MATCH(B1132,vypujcene,0),0)","v":0},"Ve staré cihelně se svítí","Šlik Petr Hugo","Dobrodružné",null,null,196,null,2021]
[null,1845,{"$f":"IFERROR(MATCH(B1133,vypujcene,0),0)","v":0},"Ve staré cihelně se svítí","Šlik Petr Hugo","Dobrodružné",null,null,196,null,2021]
[null,1846,{"$f":"IFERROR(MATCH(B1134,vypujcene,0),0)","v":0},"Ve staré cihelně se svítí","Šlik Petr Hugo","Dobrodružné",null,null,196,null,2021]
[null,1847,{"$f":"IFERROR(MATCH(B1135,vypujcene,0),0)","v":0},"Ve staré cihelně se svítí","Šlik Petr Hugo","Dobrodružné",null,null,196,null,2021]
[null,1848,{"$f":"IFERROR(MATCH(B1136,vypujcene,0),0)","v":0},"Ve staré cihelně se svítí","Šlik Petr Hugo","Dobrodružné",null,null,196,null,2021]
[null,1849,{"$f":"IFERROR(MATCH(B1137,vypujcene,0),0)","v":0},"Ve staré cihelně se svítí","Šlik Petr Hugo","Dobrodružné",null,null,196,null,2021]
[null,1850,{"$f":"IFERROR(MATCH(B1138,vypujcene,0),0)","v":0},"Ve staré cihelně se svítí","Šlik Petr Hugo","Dobrodružné",null,null,196,null,2021]
[null,1851,{"$f":"IFERROR(MATCH(B1139,vypujcene,0),0)","v":0},"Ve staré cihelně se svítí","Šlik Petr Hugo","Dobrodružné",null,null,196,null,2021]
[null,1852,{"$f":"IFERROR(MATCH(B1140,vypujcene,0),0)","v":0},"Ve staré cihelně se svítí","Šlik Petr Hugo","Dobrodružné",null,null,196,null,2021]
[null,1853,{"$f":"IFERROR(MATCH(B1141,vypujcene,0),0)","v":0},"Ve staré cihelně se svítí","Šlik Petr Hugo","Dobrodružné",null,null,196,null,2021]
[null,1854,{"$f":"IFERROR(MATCH(B1142,vypujcene,0),0)","v":0},"Ve staré cihelně se svítí","Šlik Petr Hugo","Dobrodružné",null,null,196,null,2021]
[null,1855,{"$f":"IFERROR(MATCH(B1143,vypujcene,0),0)","v":0},"Ve staré cihelně se svítí","Šlik Petr Hugo","Dobrodružné",null,null,196,null,2021]
[null,1856,{"$f":"IFERROR(MATCH(B1144,vypujcene,0),0)","v":0},"Ve staré cihelně se svítí","Šlik Petr Hugo","Dobrodružné",null,null,196,null,2021]
[null,1857,{"$f":"IFERROR(MATCH(B1145,vypujcene,0),0)","v":0},"Ve staré cihelně se svítí","Šlik Petr Hugo","Dobrodružné",null,null,196,null,2021]
[null,1858,{"$f":"IFERROR(MATCH(B1146,vypujcene,0),0)","v":0},"Ve staré cihelně se svítí","Šlik Petr Hugo","Dobrodružné",null,null,196,null,2021]
[null,1859,{"$f":"IFERROR(MATCH(B1147,vypujcene,0),0)","v":0},"Ve staré cihelně se svítí","Šlik Petr Hugo","Dobrodružné",null,null,196,null,2021]
[null,1860,{"$f":"IFERROR(MATCH(B1148,vypujcene,0),0)","v":0},"Fungarium","Scottová Katie","Příroda",null,null,357,null,2021]
[null,1861,{"$f":"IFERROR(MATCH(B1149,vypujcene,0),0)","v":0},"Ronja, dcera loupežníka","Lindgrenová Astrid","Dobrodružné",null,"1. stupeň",299,null,2021]
[null,1862,{"$f":"IFERROR(MATCH(B1150,vypujcene,0),0)","v":0},"Písečníci a bludný asteroid","Dvořák Václav","Sci-fi",null,"2. stupeň",306,null,2021]
[null,1863,{"$f":"IFERROR(MATCH(B1151,vypujcene,0),0)","v":0},"Agnes a zakázaná hora","Hurdová Veronika","Fantasy",null,"2. stupeň",302,null,2021]
[null,1864,{"$f":"IFERROR(MATCH(B1152,vypujcene,0),0)","v":0},"Ty, ty, ty, Matyldo","Rožnovská Lenka","Humor",null,"1. stupeň",89,null,2021]
[null,1865,{"$f":"IFERROR(MATCH(B1153,vypujcene,0),0)","v":0},"Hledání modré","Lowryová Lois","Sci-fi",null,"2. stupeň",210,null,2021]
[null,1866,{"$f":"IFERROR(MATCH(B1154,vypujcene,0),0)","v":0},"Posel v temném lese","Lowryová Lois","Sci-fi",null,"2. stupeň",195,null,2021]
[null,1867,{"$f":"IFERROR(MATCH(B1155,vypujcene,0),0)","v":0},"Spočítej hvězdy","Lowryová Lois","2. svět. válka",null,"2. stupeň",167,null,2021]
[null,1868,{"$f":"IFERROR(MATCH(B1156,vypujcene,0),0)","v":0},"Nasterea","Stehlíková Petra","Fantasy",null,"2. stupeň",315,null,2021]
[null,1869,{"$f":"IFERROR(MATCH(B1157,vypujcene,0),0)","v":0},"Prašina 3","Matocha Vojtěch","Dobrodružné",null,"2. stupeň",216,null,2021]
[null,1870,{"$f":"IFERROR(MATCH(B1158,vypujcene,0),0)","v":0},"Já, Finis","Dvořák Václav","Dobrodružné",null,"2. stupeň",294,null,2021]
[null,1871,{"$f":"IFERROR(MATCH(B1159,vypujcene,0),0)","v":0},"Tajemství oblázkové hory","Dočkalová Bára","Fantasy",null,"2. stupeň",252,null,2021]
[null,1872,{"$f":"IFERROR(MATCH(B1160,vypujcene,0),0)","v":0},"Kosprd a telecí","Papoušková Eva","Humor",null,"1. stupeň",166,null,2021]
[null,1873,{"$f":"IFERROR(MATCH(B1161,vypujcene,0),0)","v":0},"Letopisy Narnie - Čarodějův synovec","Lewis C. S.","Fantasy",null,"2. stupeň",183,null,2021]
[null,1874,{"$f":"IFERROR(MATCH(B1162,vypujcene,0),0)","v":0},"Letopisy Narnie - Lev, čarodějnice a skříň","Lewis C. S.","Fantasy",null,"2. stupeň",195,null,2021]
[null,1875,{"$f":"IFERROR(MATCH(B1163,vypujcene,0),0)","v":0},"Letopisy Narnie - Princ Kaspian","Lewis C. S.","Fantasy",null,"2. stupeň",218,null,2021]
[null,1876,{"$f":"IFERROR(MATCH(B1164,vypujcene,0),0)","v":0},"Letopisy Narnie - Plavba Jitřního poutníka","Lewis C. S.","Fantasy",null,"2. stupeň",178,null,2021]
[null,1877,{"$f":"IFERROR(MATCH(B1165,vypujcene,0),0)","v":0},"Letopisy Narnie - Stříbrná židle","Lewis C. S.","Fantasy",null,"2. stupeň",183,null,2021]
[null,1878,{"$f":"IFERROR(MATCH(B1166,vypujcene,0),0)","v":0},"Letopisy Narnie - Poslední bitva","Lewis C. S.","Fantasy",null,"2. stupeň",144,null,2021]
[null,1879,{"$f":"IFERROR(MATCH(B1167,vypujcene,0),0)","v":0},"Kouzelná třída o Vánocích","Pospíšilová Zuzana","Fantasy",null,"1. stupeň",182,null,2021]
[null,1880,{"$f":"IFERROR(MATCH(B1168,vypujcene,0),0)","v":0},"Staré řecké báje a pověsti","Petiška Eduard","Báje a pověsti",null,null,155,null,2021]
[null,1881,{"$f":"IFERROR(MATCH(B1169,vypujcene,0),0)","v":0},"Staré řecké báje a pověsti","Petiška Eduard","Báje a pověsti",null,null,155,null,2021]
[null,1882,{"$f":"IFERROR(MATCH(B1170,vypujcene,0),0)","v":0},"Staré řecké báje a pověsti","Petiška Eduard","Báje a pověsti",null,null,155,null,2021]
[null,1883,{"$f":"IFERROR(MATCH(B1171,vypujcene,0),0)","v":0},"Staré řecké báje a pověsti","Petiška Eduard","Báje a pověsti",null,null,155,null,2021]
[null,1884,{"$f":"IFERROR(MATCH(B1172,vypujcene,0),0)","v":0},"Staré řecké báje a pověsti","Petiška Eduard","Báje a pověsti",null,null,155,null,2021]
[null,1885,{"$f":"IFERROR(MATCH(B1173,vypujcene,0),0)","v":0},"Staré řecké báje a pověsti","Petiška Eduard","Báje a pověsti",null,null,155,null,2021]
[null,1886,{"$f":"IFERROR(MATCH(B1174,vypujcene,0),0)","v":0},"Staré řecké báje a pověsti","Petiška Eduard","Báje a pověsti",null,null,155,null,2021]
[null,1887,{"$f":"IFERROR(MATCH(B1175,vypujcene,0),0)","v":0},"Staré řecké báje a pověsti","Petiška Eduard","Báje a pověsti",null,null,155,null,2021]
[null,1888,{"$f":"IFERROR(MATCH(B1176,vypujcene,0),0)","v":0},"Staré řecké báje a pověsti","Petiška Eduard","Báje a pověsti",null,null,155,null,2021]
[null,1889,{"$f":"IFERROR(MATCH(B1177,vypujcene,0),0)","v":0},"Staré řecké báje a pověsti","Petiška Eduard","Báje a pověsti",null,null,155,null,2021]
[null,1890,{"$f":"IFERROR(MATCH(B1178,vypujcene,0),0)","v":0},"Staré řecké báje a pověsti","Petiška Eduard","Báje a pověsti",null,null,155,null,2021]
[null,1891,{"$f":"IFERROR(MATCH(B1179,vypujcene,0),0)","v":0},"Staré řecké báje a pověsti","Petiška Eduard","Báje a pověsti",null,null,155,null,2021]
[null,1892,{"$f":"IFERROR(MATCH(B1180,vypujcene,0),0)","v":0},"Staré řecké báje a pověsti","Petiška Eduard","Báje a pověsti",null,null,155,null,2021]
[null,1893,{"$f":"IFERROR(MATCH(B1181,vypujcene,0),0)","v":0},"O botě, která si šlapala na jazyk","Žiška Pavel","Pohádky",null,"1. stupeň",0,"dar",2021]
[null,1894,{"$f":"IFERROR(MATCH(B1182,vypujcene,0),0)","v":0},"Wendy mezi nebem a zemí","Osborneová Melisa","Fantasy",null,"2. stupeň",0,"dar",2021]
[null,1895,{"$f":"IFERROR(MATCH(B1183,vypujcene,0),0)","v":0},"Tim Tolar aneb Prodaný smích","Kruss James","Dobrodružné",null,"2. stupeň",0,"dar",2021]
[null,1896,{"$f":"IFERROR(MATCH(B1184,vypujcene,0),0)","v":0},"Velký ilustrovaný atlas světa a vesmíru","kol. autorů","Encyklopedie",null,"Enycyklopedie",0,"dar",2021]
[null,1897,{"$f":"IFERROR(MATCH(B1185,vypujcene,0),0)","v":0},"Příroda Slezska","Roháček Jindřich","Příroda",null,"Přírodopis",945,null,2021]
[null,1898,{"$f":"IFERROR(MATCH(B1186,vypujcene,0),0)","v":0},"Podivuhodná dobrodružství Maria a Marca","Tesařová Olga","Dobrodružné",null,"1. stupeň",0,"dar",2021]
[null,1899,{"$f":"IFERROR(MATCH(B1187,vypujcene,0),0)","v":0},null,null,null,null,null,null,null,2021]
[null,null,{"$f":"IFERROR(MATCH(B1188,vypujcene,0),0)","v":0},null,null,null,null,null,null,null,2021]
[null,null,{"$f":"IFERROR(MATCH(B1189,vypujcene,0),0)","v":0},null,null,null,null,null,null,null,2021]
[null,null,{"$f":"IFERROR(MATCH(B1190,vypujcene,0),0)","v":0}]
[null,null,{"$f":"IFERROR(MATCH(B1191,vypujcene,0),0)","v":0}]
[null,null,{"$f":"IFERROR(MATCH(B1192,vypujcene,0),0)","v":0}]
[null,null,{"$f":"IFERROR(MATCH(B1193,vypujcene,0),0)","v":0}]
[null,null,{"$f":"IFERROR(MATCH(B1194,vypujcene,0),0)","v":0}]
[null,null,{"$f":"IFERROR(MATCH(B1195,vypujcene,0),0)","v":0}]
[null,null,{"$f":"IFERROR(MATCH(B1196,vypujcene,0),0)","v":0}]
[null,null,{"$f":"IFERROR(MATCH(B1197,vypujcene,0),0)","v":0}]
[null,null,{"$f":"IFERROR(MATCH(B1198,vypujcene,0),0)","v":0}]
[null,null,{"$f":"IFERROR(MATCH(B1199,vypujcene,0),0)","v":0}]
[null,null,{"$f":"IFERROR(MATCH(B1200,vypujcene,0),0)","v":0}]
[null,null,{"$f":"IFERROR(MATCH(B1201,vypujcene,0),0)","v":0}]
[null,null,{"$f":"IFERROR(MATCH(B1202,vypujcene,0),0)","v":0}]
[null,null,{"$f":"IFERROR(MATCH(B1203,vypujcene,0),0)","v":0}]
[null,null,{"$f":"IFERROR(MATCH(B1204,vypujcene,0),0)","v":0}]
[null,null,{"$f":"IFERROR(MATCH(B1205,vypujcene,0),0)","v":0}]
[null,null,{"$f":"IFERROR(MATCH(B1206,vypujcene,0),0)","v":0}]
[null,null,{"$f":"IFERROR(MATCH(B1207,vypujcene,0),0)","v":0}]
[null,null,{"$f":"IFERROR(MATCH(B1208,vypujcene,0),0)","v":0}]
[null,null,{"$f":"IFERROR(MATCH(B1209,vypujcene,0),0)","v":0}]
[null,null,{"$f":"IFERROR(MATCH(B1210,vypujcene,0),0)","v":0}]
[null,null,{"$f":"IFERROR(MATCH(B1211,vypujcene,0),0)","v":0}]
[null,null,{"$f":"IFERROR(MATCH(B1212,vypujcene,0),0)","v":0}]
[null,null,{"$f":"IFERROR(MATCH(B1213,vypujcene,0),0)","v":0}]
[null,null,{"$f":"IFERROR(MATCH(B1214,vypujcene,0),0)","v":0}]
[null,null,{"$f":"IFERROR(MATCH(B1215,vypujcene,0),0)","v":0}]
[null,null,{"$f":"IFERROR(MATCH(B1216,vypujcene,0),0)","v":0}]
[null,null,{"$f":"IFERROR(MATCH(B1217,vypujcene,0),0)","v":0}]
[null,null,{"$f":"IFERROR(MATCH(B1218,vypujcene,0),0)","v":0}]
[null,null,{"$f":"IFERROR(MATCH(B1219,vypujcene,0),0)","v":0}]
[null,null,{"$f":"IFERROR(MATCH(B1220,vypujcene,0),0)","v":0}]
[null,null,{"$f":"IFERROR(MATCH(B1221,vypujcene,0),0)","v":0}]
[null,null,{"$f":"IFERROR(MATCH(B1222,vypujcene,0),0)","v":0}]
[null,null,{"$f":"IFERROR(MATCH(B1223,vypujcene,0),0)","v":0}]
[null,null,{"$f":"IFERROR(MATCH(B1224,vypujcene,0),0)","v":0}]
[null,null,{"$f":"IFERROR(MATCH(B1225,vypujcene,0),0)","v":0}]
[null,null,{"$f":"IFERROR(MATCH(B1226,vypujcene,0),0)","v":0}]
[null,null,{"$f":"IFERROR(MATCH(B1227,vypujcene,0),0)","v":0}]
[null,null,{"$f":"IFERROR(MATCH(B1228,vypujcene,0),0)","v":0}]
[null,null,{"$f":"IFERROR(MATCH(B1229,vypujcene,0),0)","v":0}]
[null,null,{"$f":"IFERROR(MATCH(B1230,vypujcene,0),0)","v":0}]
[null,null,{"$f":"IFERROR(MATCH(B1231,vypujcene,0),0)","v":0}]
[null,null,{"$f":"IFERROR(MATCH(B1232,vypujcene,0),0)","v":0}]
[null,null,{"$f":"IFERROR(MATCH(B1233,vypujcene,0),0)","v":0}]
[null,null,{"$f":"IFERROR(MATCH(B1234,vypujcene,0),0)","v":0}]
[null,null,{"$f":"IFERROR(MATCH(B1235,vypujcene,0),0)","v":0}]
[null,null,{"$f":"IFERROR(MATCH(B1236,vypujcene,0),0)","v":0}]
[null,null,{"$f":"IFERROR(MATCH(B1237,vypujcene,0),0)","v":0}]
[null,null,{"$f":"IFERROR(MATCH(B1238,vypujcene,0),0)","v":0}]
[null,null,{"$f":"IFERROR(MATCH(B1239,vypujcene,0),0)","v":0}]
[null,null,{"$f":"IFERROR(MATCH(B1240,vypujcene,0),0)","v":0}]
[null,null,{"$f":"IFERROR(MATCH(B1241,vypujcene,0),0)","v":0}]
[null,null,{"$f":"IFERROR(MATCH(B1242,vypujcene,0),0)","v":0}]
[null,null,{"$f":"IFERROR(MATCH(B1243,vypujcene,0),0)","v":0}]
[null,null,{"$f":"IFERROR(MATCH(B1244,vypujcene,0),0)","v":0}]
[null,null,{"$f":"IFERROR(MATCH(B1245,vypujcene,0),0)","v":0}]
[null,null,{"$f":"IFERROR(MATCH(B1246,vypujcene,0),0)","v":0}]
[null,null,{"$f":"IFERROR(MATCH(B1247,vypujcene,0),0)","v":0}]
[null,null,{"$f":"IFERROR(MATCH(B1248,vypujcene,0),0)","v":0}]
[null,null,{"$f":"IFERROR(MATCH(B1249,vypujcene,0),0)","v":0}]
[null,null,{"$f":"IFERROR(MATCH(B1250,vypujcene,0),0)","v":0}]
[null,null,{"$f":"IFERROR(MATCH(B1251,vypujcene,0),0)","v":0}]
[null,null,{"$f":"IFERROR(MATCH(B1252,vypujcene,0),0)","v":0}]
[null,null,{"$f":"IFERROR(MATCH(B1253,vypujcene,0),0)","v":0}]
[null,null,{"$f":"IFERROR(MATCH(B1254,vypujcene,0),0)","v":0}]
[null,null,{"$f":"IFERROR(MATCH(B1255,vypujcene,0),0)","v":0}]
[null,null,{"$f":"IFERROR(MATCH(B1256,vypujcene,0),0)","v":0}]
[null,null,{"$f":"IFERROR(MATCH(B1257,vypujcene,0),0)","v":0}]
[null,null,{"$f":"IFERROR(MATCH(B1258,vypujcene,0),0)","v":0}]
[null,null,{"$f":"IFERROR(MATCH(B1259,vypujcene,0),0)","v":0}]
[null,null,{"$f":"IFERROR(MATCH(B1260,vypujcene,0),0)","v":0}]
[null,null,{"$f":"IFERROR(MATCH(B1261,vypujcene,0),0)","v":0}]
[null,null,{"$f":"IFERROR(MATCH(B1262,vypujcene,0),0)","v":0}]
[null,null,{"$f":"IFERROR(MATCH(B1263,vypujcene,0),0)","v":0}]
[null,null,{"$f":"IFERROR(MATCH(B1264,vypujcene,0),0)","v":0}]
[null,null,{"$f":"IFERROR(MATCH(B1265,vypujcene,0),0)","v":0}]
[null,null,{"$f":"IFERROR(MATCH(B1266,vypujcene,0),0)","v":0}]
[null,null,{"$f":"IFERROR(MATCH(B1267,vypujcene,0),0)","v":0}]
[null,null,{"$f":"IFERROR(MATCH(B1268,vypujcene,0),0)","v":0}]
[null,null,{"$f":"IFERROR(MATCH(B1269,vypujcene,0),0)","v":0}]
[null,null,{"$f":"IFERROR(MATCH(B1270,vypujcene,0),0)","v":0}]
[null,null,{"$f":"IFERROR(MATCH(B1271,vypujcene,0),0)","v":0}]
[null,null,{"$f":"IFERROR(MATCH(B1272,vypujcene,0),0)","v":0}]
[null,null,{"$f":"IFERROR(MATCH(B1273,vypujcene,0),0)","v":0}]
[null,null,{"$f":"IFERROR(MATCH(B1274,vypujcene,0),0)","v":0}]
[null,null,{"$f":"IFERROR(MATCH(B1275,vypujcene,0),0)","v":0}]
[null,null,{"$f":"IFERROR(MATCH(B1276,vypujcene,0),0)","v":0}]
[null,null,{"$f":"IFERROR(MATCH(B1277,vypujcene,0),0)","v":0}]
[null,null,{"$f":"IFERROR(MATCH(B1278,vypujcene,0),0)","v":0}]
[null,null,{"$f":"IFERROR(MATCH(B1279,vypujcene,0),0)","v":0}]
[null,null,{"$f":"IFERROR(MATCH(B1280,vypujcene,0),0)","v":0}]
[null,null,{"$f":"IFERROR(MATCH(B1281,vypujcene,0),0)","v":0}]
[null,null,{"$f":"IFERROR(MATCH(B1282,vypujcene,0),0)","v":0}]
[null,null,{"$f":"IFERROR(MATCH(B1283,vypujcene,0),0)","v":0}]
[null,null,{"$f":"IFERROR(MATCH(B1284,vypujcene,0),0)","v":0}]
[null,null,{"$f":"IFERROR(MATCH(B1285,vypujcene,0),0)","v":0}]
[null,null,{"$f":"IFERROR(MATCH(B1286,vypujcene,0),0)","v":0}]
[null,null,{"$f":"IFERROR(MATCH(B1287,vypujcene,0),0)","v":0}]
[null,null,{"$f":"IFERROR(MATCH(B1288,vypujcene,0),0)","v":0}]
[null,null,{"$f":"IFERROR(MATCH(B1289,vypujcene,0),0)","v":0}]
[null,null,{"$f":"IFERROR(MATCH(B1290,vypujcene,0),0)","v":0}]
[null,null,{"$f":"IFERROR(MATCH(B1291,vypujcene,0),0)","v":0}]
[null,null,{"$f":"IFERROR(MATCH(B1292,vypujcene,0),0)","v":0}]

{"sheet":"Seznam vypůjček","index":1,"n_rows":99,"n_cols":8,"rows_kept":99,"cut":false,"hidden":false,"merged":[]}
[null,"Seznam vypůjček",null,null,"Pozn.: Zadej pouze příruskové číslo, název a autor se vyplní automaticky.",null,"Limit upozornění:",50]
[null,"STUDENT / UČITEL","Třída","Přírustko-\nvé č.","NÁZEV KNIHY","AUTOR","DATUM VYPUJČENÍ","DNY"]
["    "]
[]
[]
[]
[]
[]
[]
[]
[]
[]
[]
[]
[]
[]
[]
[]
[]
[]
[]
[]
[]
[]
[]
[]
[]
[]
[]
[]
[]
[]
[]
[]
[]
[]
[]
[]
[]
[]
[]
[]
[]
[]
[]
[]
[]
[]
[]
[]
[]
[]
[]
[]
[]
[]
[]
[]
[]
[]
[]
[]
[]
[]
[]
[]
[]
[null,null,null,null,{"$f":"IF(D68=\"\",\"\",VLOOKUP(D68,_xlnm.Database,3,0))","v":""},{"$f":"IF(D68=\"\",\"\",VLOOKUP(D68,_xlnm.Database,4,0))","v":""},null,{"$f":"IF(D68=\"\",\"\",_xlfn.DAYS(TODAY(),G68))","v":""}]
[null,null,null,null,"","",null,""]
[null,null,null,null,"","",null,""]
[null,null,null,null,"","",null,""]
[null,null,null,null,"","",null,""]
[null,null,null,null,"","",null,""]
[null,null,null,null,"","",null,""]
[null,null,null,null,"","",null,""]
[null,null,null,null,"","",null,""]
[null,null,null,null,"","",null,""]
[null,null,null,null,"","",null,""]
[null,null,null,null,"","",null,""]
[null,null,null,null,"","",null,""]
[null,null,null,null,"","",null,""]
[null,null,null,null,"","",null,""]
[null,null,null,null,"","",null,""]
[null,null,null,null,"","",null,""]
[null,null,null,null,"","",null,""]
[null,null,null,null,"","",null,""]
[null,null,null,null,"","",null,""]
[null,null,null,null,"","",null,""]
[null,null,null,null,"","",null,""]
[null,null,null,null,"","",null,""]
[null,null,null,null,"","",null,""]
[null,null,null,null,"","",null,""]
[null,null,null,null,"","",null,""]
[null,null,null,null,"","",null,""]
[null,null,null,null,"","",null,""]
[null,null,null,null,"","",null,""]
[null,null,null,null,"","",null,""]
[null,null,null,null,{"$f":"IF(D98=\"\",\"\",VLOOKUP(D98,_xlnm.Database,3,0))","v":""},{"$f":"IF(D98=\"\",\"\",VLOOKUP(D98,_xlnm.Database,4,0))","v":""},null,{"$f":"IF(D98=\"\",\"\",_xlfn.DAYS(TODAY(),G98))","v":""}]
[null,"konec Tabulky"]

{"sheet":"žánry","index":2,"n_rows":48,"n_cols":3,"rows_kept":48,"cut":false,"hidden":false,"merged":[]}
[null,"Seznam revizí :"]
[null,"01","první vydáni; 2021"]
[]
[]
[]
[]
[]
[]
[null,null,"Seznam platných žánrů"]
[null,null,"Pohádky"]
[null,null,"Příběhy se zvířátky"]
[null,null,"Sci-fi"]
[null,null,"Fantasy"]
[null,null,"Příběh ze života"]
[null,null,"Dobrodružné"]
[null,null,"Detektivka"]
[null,null,"Humor"]
[null,null,"Horor pro děti"]
[null,null,"Pro dospívající"]
[null,null,"2. svět. válka"]
[null,null,"Horor"]
[null,null,"Poezie pro děti"]
[null,null,"Poezie"]
[null,null,"Autobiografie"]
[null,null,"Osobnosti a osudy"]
[null,null,"Encyklopedie"]
[null,null,"Příroda"]
[null,null,"Naučná"]
[null,null,"Historie"]
[null,null,"Zvířata"]
[null,null,"Rostliny"]
[null,null,"Vesmír"]
[null,null,"Ekologie"]
[null,null,"Náboženství"]
[null,null,"Cestopisy"]
[null,null,"Životní moudrost"]
[null,null,"Filozofie"]
[null,null,"Zeměpis"]
[null,null,"Geologie"]
[null,null,"Zpěvník"]
[null,null,"Tvoření"]
[null,null,"Sport"]
[null,null,"Český jazyk"]
[null,null,"Báje a pověsti"]
[]
[]
[]
[null,null,"konec Tabulky ;  pro rozšíření vlož řádek nad \"-\""]

{"sheet":"Kontingenční Tab","index":3,"n_rows":28,"n_cols":4,"rows_kept":28,"cut":false,"hidden":false,"merged":[]}
[]
[]
[]
[null,"Popisky řádků","Počet z Cena","Součet z Cena\n[Kč]"]
[null,2007,3,447]
[null,2008,43,5038]
[null,2009,11,1336]
[null,2010,9,755]
[null,2011,2,199]
[null,2012,21,3736]
[null,2014,58,9330]
[null,2015,326,67216]
[null,2017,6,0]
[null,2018,109,20962]
[null,2019,104,17152]
[null,2020,204,37065]
[null,"(prázdné)",52,1625]
[null,2005,32,7329]
[null,2003,14,1847]
[null,1990,24,957]
[null,1995,11,1241]
[null,1996,16,870]
[null,1997,1,30]
[null,1999,2,0]
[null,2000,9,3184]
[null,2002,2,250]
[null,1988,19,1164]
[null,"Celkový součet",1078,181733]